Workbook

Sheet CoverSheet
A3: ​​Reconsideration of DPP4 default price-quality path for Wellington Electricity – Central Park 2 unforeseeable large project
A4: Final Decision
B14: Date of publication | C14: 2026-04-02

Sheet Table of Contents
B1: Table of Contents
B3: Sheet Name | C3: Link
B4: Description | C4: Description
B5: Reopener | C5: Reopener
B6: ANAR guidance | C6: ANAR guidance
B7: CPI | C7: CPI
B8: Historical | C8: Historical
B9: Thresholds | C9: Thresholds
B10: Inputs | C10: Inputs
B11: EDB data | C11: EDB data
B12: Timing | C12: Timing
B13: RAB | C13: RAB
B14: TAX | C14: TAX
B15: BBAR | C15: BBAR
B16: MAR | C16: MAR
B17: IRR | C17: IRR

Sheet Description
B1: Description
A3: General description
B4: 1 | C4: ="This model contains the calculations for the '"&CoverSheet!$A$3&""&""&" – Final Decision" -> This model contains the calculations for the '​​Reconsideration of DPP4 default price-quality path for Wellington Electricity – Central Park 2 unforeseeable large project – Final Decision
B5: 2 | C5: For the DPP4 reopeners, we have added the FNARI (Forecast Net Allowable Revenue Increment) and ANARI (Actual Net Allowable Revenue Increment) terms to the reopened price path formulas for FNAR and ANAR (refer determination Schedule 1.3 and 1.6) to ensure that the impact of a reopener is properly reflected in both forecast and actual revenue calculations across the remaining regulatory period. Under the original DPP4 formulas, FNAR and ANAR were indexed only for CPI and the X-factor, which meant they could not accommodate mid-period adjustments arising from reopeners. By introducing FNARI and ANARI, we create a mechanism to incorporate the incremental revenue allowance associated with a reopener, starting from the reopener assessment year and compounding through subsequent years, while maintaining consistency with the IMs. FNARI adjusts the forecast price path by applying the reopener increment indexed for forecast CPI and X, as set out in Schedule 1.3(1A), whereas ANARI performs the equivalent adjustment for actual revenue using actual CPI and timing factors per Schedule 1.6(7A). This approach ensures that both forecast and actual revenue paths remain aligned with the amended determination and accurately recover the costs approved through the reopener process.
B6: 3 | C6: For reopeners other than the one published in this model, an early indication of price path impacts may be obtained from entering the required data inputs in this model. This should however be used as indicative amounts only and will be subject to scrutiny and possible adjustments by Comcom.
B7: 4 | C7: This sheet describes the model workings and instructions for use below.
A9: Changes since the draft decision
B10: 1 | C10: Both Stats NZ and the Reserve Bank have updated their data releases since the draft decision was published. The CPI sheet in this final decision financial model has been updated with actual CPI data from Stats NZ and forecast CPI changes from the Reserve Bank's February 2026 Monetary Policy Statement.
A12: Use of this template
B14: 1 | C14: This template (v1) can produce a workable reopener financial model for a data set of reopener data, that data being:
C15: • The name of the EDB
C16: • The "Seq #" of the reopener, i.e. 1, 2 or 3 etc. indicating whether the reopener is the first, second, third etc DPP4 reopener for the EDB.
C17: • If the "Seq #" is not 1, the previous reopener additional and total opex and capex and MAR must be entered in the 'Historical' sheet.
C18: • The "Reopener year", e.g. 2026/27, indicating the first DPP4 year for which the MAR will be different from the previous price path.
C19: • The reopener type of event, e.g. "unforeseeable large project (other than system growth)".
C20: • Publication date of the reopener (estimate if unknown).
C21: • For each DPP4 year, the value of any additional opex that the reopener is to allow (nominal values using DPP4 opex inflators).
C22: • For each DPP4 year, the value of any additional VCA that the reopener is to allow (nominal values using DPP4 capex inflators).
B23: 2 | C23: With these data points entered, the model will display the reopened price path.
B24: 3 | C24: Future versions of this model will include the threshold calculation for the different types of reopeners.
A26: Adjustments made to DPP4 financial model to create this template
B28: 1 | C28: This template was created from a copy of the DPP4 financial model that was published on 20 November 2024. The amendments to that model include the following:
C30: Amendments to this Description sheet and the Table of Contents
B31: =B28+1 -> 2 | C31: As this is an adaptation of the DPP4 financial model, this description sheet should be read in conjunction with the original description sheet in that model.
C33: 'Reopener' sheet added which includes:
B34: =B31+1 -> 3 | C34: A panel of the price paths as set in the original DPP4 financial model for each non-exempt EDB.
B35: =B34+1 -> 4 | C35: Data relating to the reopener, as described under the "Use of this template" section above.
B36: =B35+1 -> 5 | C36: Once this data has been input to the Reopener sheet, the preparation of the financial model will be complete, subject to responses to possible warnings that the Reopener sheet may display. The MAR time series will display in the Outputs section of the Reopener sheet.
B37: =B36+1 -> 6 | C37: ="Operating instructions for entering reopener-specific data onto the reopener sheet is at cell " & ADDRESS(ROW(Reopener!B51),COLUMN(Reopener!B51)) & " on the Reopener sheet." -> Operating instructions for entering reopener-specific data onto the reopener sheet is at cell $B$51 on the Reopener sheet.
C39: 'ANAR guidance' sheet added
B40: =B37+1 -> 7 | C40: This calculation is included to provide guidance on how to calculate ANAR following a reopener. It is a simplified calculation that does not include any revenue from passthrough or recoverable costs. Results from this sheet will be indicative only and EDBs will still be required to perform their own calculation and ensure compliance with IMs.
B41: =B40+1 -> 8 | C41: The CPI sheet will need to be updated as/when actual CPI results for any year are published before the ANAR for that year can be calculated.
C43: 'CPI' sheet added
B44: =B47+1 -> 9 | C44: The purpose of this sheet is to calculate the updated CPI index for use in the ANAR guidance calculation.
C46: 'Historical' sheet added
B47: =B40+1 -> 8 | C47: The purpose of this sheet is to record the results of previous reopeners. This information is required when and EDB has multiple DPP4 reopeners (i.e. when the "Seq #" value is greater than 1), as the last reopener will be the basis of the current reopener calculation. For the first reopener, DPP4 values will be used as the basis. Data entered in this sheet will automatically be linked to the Reopener sheet if a sequence value greater that 1 is selected.
C49: Thresholds' sheet added
B50: =B53+1 -> 11 | C50: This sheet lists the different reopener types and applicable thresholds. Future versions of this model will automate the threshold calculation.
C52: Amendments to the 'MAR' sheet include the following:
B53: =B44+1 -> 10 | C53: Adding row 17 indicating which regulatory years are pre-reopener, the reopener year and post-reopener.
B54: =B53+1 -> 11 | C54: Several changes were made in rows 21 to 33 to apply different formulas according to whether the column is for a pre-reopener year, the reopener year or a post-reopener year. Significant changes were required to calculate the MAR for the reopener year.
B55: =B54+1 -> 12 | C55: ="There is a comment starting at cell " & ADDRESS(ROW(MAR!J21),COLUMN(MAR!J21)) & " on the MAR sheet, explaining the formula that applies to each cell in the row." -> There is a comment starting at cell $J$21 on the MAR sheet, explaining the formula that applies to each cell in the row.
B56: =B55+1 -> 13 | C56: For any years prior to the reopener year, the MAR values shall be the corresponding MAR values from the previously set price path.
B57: =B56+1 -> 14 | C57: For the reopener year, the MAR will be set such that over the DPP4 regulatory period, the present value of the MAR values shall be equal to the present value of the BBAR.
B58: =B57+1 -> 15 | C58: For any years after the reopener year, each MAR value shall be the reopener year MAR increased by forecast CPI since the reopener year minus X. If the reopener year is the last year of DPP4, there will be no post-reopener years.
C60: Deleted 'Outputs' sheet
B61: 1 | C61: Deleted the Outputs sheet as the relevant reopener outputs are contained at the bottom of the 'Reopener' sheet
A63: Outputs
B65: 1 | C65: Outputs related to the reopener are included in the "Outputs" section of the Reopener sheet.
A67: Notes
B69: 1 | C69: This model should not be used for purposes other than those stated under 'general description' above.
B70: =B69+1 -> 2 | C70: The model is not designed to reopen the first year of DPP4 (2025/26). Reopener years can only be specified as years 2 to 5 (2026/27 to 2029/30) of DPP4.
B71: =B70+1 -> 3 | C71: DPP3 and Quality standard variation reopeners are not covered by this template.
B72: =B71+1 -> 4 | C72: Please always check that the latest published reopener template is being used as updates to the template might be made from time to time, i.e., use the last EDB reopener published in the 'documents' section of the DPP4 web page:
C73: www.comcom.govt.nz/regulated-industries/electricity-lines/projects/2025-reset-of-the-electricity-default-price-quality-path-2/?section=documents
B74: =B72+1 -> 5 | C74: Financial quantities in this model are expressed in NZD'000.
B75: =B74+1 -> 6 | C75: Annual quantities relate to years ending on 31 March.
B76: =B75+1 -> 7 | C76: A lighter font is used for cells containing a formula linking to another sheet. A red font is applied to input cells.
B77: =B76+1 -> 8 | C77: Wherever two horizontally adjacent cells contain numerical formulas which differ, a red vertical border has been placed between the cells to indicate that the cell formulas are different.

Sheet Reopener
B1: Reopener | T1: =EDB_Name -> Wellington Electricity
B2: This sheet needs to be followed from top to bottom to perform a reopener calculation.
B3: Inputs
B4: Data from the original DPP4 reset financial model published 20-11-24
D6: Alpine Energy | E6: Aurora Energy | F6: EA Networks | G6: Electricity Invercargill | H6: Firstlight Network | I6: Horizon Energy | J6: Nelson Electricity | K6: Network Tasman | L6: Orion NZ | M6: OtagoNet | N6: Powerco | O6: The Lines Company | P6: Top Energy | Q6: Unison Networks | R6: Vector Lines | S6: Wellington Electricity | T6: Selected EDB
B8: MAR (applicable X factor) 2026 | D8: 73359.82562 | F8: 44281.13973 | G8: 16949.51822 | H8: 34274.8474 | I8: 34127.94908 | J8: 7219.249734 | K8: 37178.88686 | L8: 231403.6174 | M8: 34648.0941 | N8: 446158.3681 | O8: 48646.44263 | P8: 51690.55105 | Q8: 133360.4107 | R8: 579388.8856 | S8: 118695.8121 | T8: =INDEX(D8:S22,,MATCH(D58,D6:S6,0)) -> 118695.8121
B9: MAR (applicable X factor) 2027 | D9: 74827.02213 | F9: 49999.60612 | G9: 18619.72375 | H9: 38526.29947 | I9: 35645.96026 | J9: 7886.452794 | K9: 41070.02916 | L9: 259162.7953 | M9: 39688.00587 | N9: 472829.7154 | O9: 52596.53377 | P9: 59842.15095 | Q9: 152078.878 | R9: 638254.7964 | S9: 132692.4222 | T9: 132692.4222
B10: MAR (applicable X factor) 2028 | D10: 76323.56257 | F10: 56456.55525 | G10: 20454.51133 | H10: 43305.10166 | I10: 37231.49257 | J10: 8615.318762 | K10: 45368.41841 | L10: 290251.9643 | M10: 45461.0232 | N10: 501095.4758 | O10: 56867.37231 | P10: 69279.25816 | Q10: 173424.6693 | R10: 703101.4837 | S10: 148339.5127 | T10: 148339.5127
B11: MAR (applicable X factor) 2029 | D11: 77850.03382 | F11: 63747.3548 | G11: 22470.09887 | H11: 48676.66646 | I11: 38887.54936 | J11: 9411.546521 | K11: 50116.67708 | L11: 325070.5899 | M11: 52073.78364 | N11: 531050.9633 | O11: 61485.00294 | P11: 80204.59717 | Q11: 197766.5559 | R11: 774536.5944 | S11: 165831.708 | T11: 165831.708
B12: MAR (applicable X factor) 2030 | D12: 79407.0345 | F12: 71979.6882 | G12: 24684.30242 | H12: 54714.52017 | I12: 40617.26755 | J12: 10281.36165 | K12: 55361.8885 | L12: 364066.0579 | M12: 59648.43621 | N12: 562797.1899 | O12: 66477.58518 | P12: 92852.86215 | Q12: 225525.0697 | R12: 853229.5124 | S12: 185386.583 | T12: 185386.583
B13: Opex allowance 2026 | D13: 35194.99754 | F13: 17306.34517 | G13: 6808.290398 | H13: 17203.12831 | I13: 14517.20461 | J13: 2729.900705 | K13: 17074.01825 | L13: 94623.96877 | M13: 11772.85037 | N13: 137742.3844 | O13: 20290.83787 | P13: 26345.73431 | Q13: 58104.59611 | R13: 194846.7094 | S13: 45192.98348 | T13: 45192.98348
B14: Opex allowance 2027 | D14: 36447.67042 | F14: 17657.56294 | G14: 7064.12018 | H14: 17707.7962 | I14: 15697.19727 | J14: 2818.070738 | K14: 17687.63734 | L14: 98624.43376 | M14: 12315.40597 | N14: 143835.9861 | O14: 21181.23588 | P14: 27080.44229 | Q14: 61492.11714 | R14: 202840.8593 | S14: 46782.32832 | T14: 46782.32832
B15: Opex allowance 2028 | D15: 37760.70436 | F15: 18024.54871 | G15: 7306.191113 | H15: 18234.59132 | I15: 14777.4765 | J15: 2909.976725 | K15: 18330.3132 | L15: 102887.5317 | M15: 12817.50507 | N15: 151198.462 | O15: 21857.09066 | P15: 27845.49167 | Q15: 62895.55441 | R15: 211305.2583 | S15: 48443.68719 | T15: 48443.68719
B16: Opex allowance 2029 | D16: 39152.32535 | F16: 18415.04506 | G16: 7562.065659 | H16: 18791.80569 | I16: 15095.7237 | J16: 3006.982202 | K16: 19010.92312 | L16: 108278.048 | M16: 13349.74899 | N16: 157357.2174 | O16: 22571.93491 | P16: 28653.36377 | Q16: 65885.46075 | R16: 220359.9534 | S16: 50200.36864 | T16: 50200.36864
B17: Opex allowance 2030 | D17: 40607.45084 | F17: 18820.87919 | G17: 7828.740778 | H17: 19371.61902 | I17: 15639.75317 | J17: 3107.865968 | K17: 19722.14759 | L17: 112791.7525 | M17: 13907.3204 | N17: 164307.8296 | O17: 23316.56008 | P17: 29491.8826 | Q17: 69138.71382 | R17: 229945.5803 | S17: 52032.7498 | T17: 52032.7498
B18: VCA allowance 2026 | D18: 33806.99194 | F18: 18566.87893 | G18: 6900.836005 | H18: 18611.83946 | I18: 11816.6664 | J18: 2259.842226 | K18: 25319.67118 | L18: 120360.8659 | M18: 23507.63336 | N18: 309756.0493 | O18: 29411.71078 | P18: 26152.89331 | Q18: 82704.05869 | R18: 356171.9863 | S18: 63757.49838 | T18: 63757.49838
B19: VCA allowance 2027 | D19: 31634.19315 | F19: 16034.82683 | G19: 9274.091234 | H19: 18902.87269 | I19: 13846.96714 | J19: 2733.287377 | K19: 21606.71458 | L19: 147674.3303 | M19: 32543.26386 | N19: 332459.3094 | O19: 27168.45612 | P19: 24209.84478 | Q19: 93763.55206 | R19: 347752.7412 | S19: 98923.98429 | T19: 98923.98429
B20: VCA allowance 2028 | D20: 28622.66127 | F20: 16081.98247 | G20: 9938.855278 | H20: 14929.74188 | I20: 13388.38161 | J20: 2861.223642 | K20: 19196.71612 | L20: 140489.2276 | M20: 33332.74797 | N20: 361289.8525 | O20: 23544.60511 | P20: 24626.1179 | Q20: 91072.78334 | R20: 303643.797 | S20: 93105.21328 | T20: 93105.21328
B21: VCA allowance 2029 | D21: 25578.15711 | F21: 15972.1822 | G21: 8196.960384 | H21: 17173.28506 | I21: 12257.67163 | J21: 2463.598589 | K21: 16928.87124 | L21: 147353.1362 | M21: 35965.28263 | N21: 369744.5983 | O21: 24912.5412 | P21: 25349.1084 | Q21: 93754.67526 | R21: 263077.4054 | S21: 94087.48626 | T21: 94087.48626
B22: VCA allowance 2030 | D22: 30227.97351 | F22: 16161.52336 | G22: 9826.051406 | H22: 16722.1888 | I22: 12210.00652 | J22: 2462.348694 | K22: 17036.92609 | L22: 151493.1718 | M22: 37734.02371 | N22: 387880.1989 | O22: 24008.82504 | P22: 24401.7391 | Q22: 114647.1196 | R22: 271317.3418 | S22: 75812.50367 | T22: 75812.50367
B24: Values for selected EDB | D24: 2025/26 | E24: 2026/27 | F24: 2027/28 | G24: 2028/29 | H24: 2029/30
B25: ="MAR values, "&D58&", original DPP4 model" -> MAR values, Wellington Electricity, original DPP4 model | D25: =TRANSPOSE(T8:T12) -> 118695.8121 | E25: 132692.4222 | F25: 148339.5127 | G25: 165831.708 | H25: 185386.583
B26: ="Total opex, "&D58&" , original DPP4 model" -> Total opex, Wellington Electricity , original DPP4 model | D26: =TRANSPOSE(T13:T17) -> 45192.98348 | E26: 46782.32832 | F26: 48443.68719 | G26: 50200.36864 | H26: 52032.7498
B27: ="Total VCA, "&D58&", original DPP4 model" -> Total VCA, Wellington Electricity, original DPP4 model | D27: =TRANSPOSE(T18:T22) -> 63757.49838 | E27: 98923.98429 | F27: 93105.21328 | G27: 94087.48626 | H27: 75812.50367
B29: Inflation inputs
C30: 2024/25 | D30: 2025/26 | E30: 2026/27 | F30: 2027/28 | G30: 2028/29 | H30: 2029/30
B31: Assessment period number for DPP4 FNAR calculations | D31: 1 | E31: 2 | F31: 3 | G31: 4 | H31: 5
B32: Assessment period number for reopener calculations | D32: =IF(D65="pre- reopener",E32-1,(IF(D65="reopener",1,IF(D65="post- reopener",C32+1,0)))) -> 0 | E32: =IF(E65="pre- reopener",F32-1,(IF(E65="reopener",1,IF(E65="post- reopener",D32+1,0)))) -> 1 | F32: =IF(F65="pre- reopener",G32-1,(IF(F65="reopener",1,IF(F65="post- reopener",E32+1,0)))) -> 2 | G32: =IF(G65="pre- reopener",H32-1,(IF(G65="reopener",1,IF(G65="post- reopener",F32+1,0)))) -> 3 | H32: =IF(H65="pre- reopener",I32-1,(IF(H65="reopener",1,IF(H65="post- reopener",G32+1,0)))) -> 4
B34: Original DPP4 forecast CPI | D34: =Inputs!E10 -> 0.0227449287 | E34: =Inputs!F10 -> 0.02 | F34: =Inputs!G10 -> 0.02 | G34: =Inputs!H10 -> 0.02 | H34: =Inputs!I10 -> 0.02 | I34: These values are from the 'Inputs' sheet and is unchanged from original DPP4.
B35: Forecast ∆CPI index | C35: 1 | D35: =C35*(1+D34) -> 1.022744929 | E35: =D35*(1+E34) -> 1.043199827 | F35: =E35*(1+F34) -> 1.064063824 | G35: =F35*(1+G34) -> 1.0853451 | H35: =G35*(1+H34) -> 1.107052002
B37: X factor | C37: =Inputs!S38 -> -0.096
B39: Original DPP4 opex input cost inflator | D39: 0.02389260277 | E39: 0.02110852066 | F39: 0.02151850212 | G39: 0.02231752241 | H39: 0.02260680639
B40: Original DPP4 capex input cost inflator | D40: 0.02140668285 | E40: 0.01955419827 | F40: 0.01894746908 | G40: 0.01883350675 | H40: 0.01901876278
B42: Total opex and VCA of previous price path
D43: 2025/26 | E43: 2026/27 | F43: 2027/28 | G43: 2028/29 | H43: 2029/30
B44: Original 2024 reset model opex for the chosen EDB | D44: =TRANSPOSE(T13:T17) -> 45192.98348 | E44: 46782.32832 | F44: 48443.68719 | G44: 50200.36864 | H44: 52032.7498
B45: Original 2024 reset model VCA for the chosen EDB | D45: =TRANSPOSE(T18:T22) -> 63757.49838 | E45: 98923.98429 | F45: 93105.21328 | G45: 94087.48626 | H45: 75812.50367
B46: Previous reopener total opex | D46: =IF($D$59=1,"None",Historical!Z11) -> None | E46: =IF($D$59=1,"None",Historical!AA11) -> None | F46: =IF($D$59=1,"None",Historical!AB11) -> None | G46: =IF($D$59=1,"None",Historical!AC11) -> None | H46: =IF($D$59=1,"None",Historical!AD11) -> None | I46: ="If the 'sequence' in row " & ROW(B59) & " is equal to 1, this is the first reopener and there will be no previous reopener values. From the second reopener onwards, values will be populated in these rows." -> If the 'sequence' in row 59 is equal to 1, this is the first reopener and there will be no previous reopener values. From the second reopener onwards, values will be populated in these rows.
B47: Previous reopener total VCA | D47: =IF($D$59=1,"None",Historical!AE11) -> None | E47: =IF($D$59=1,"None",Historical!AF11) -> None | F47: =IF($D$59=1,"None",Historical!AG11) -> None | G47: =IF($D$59=1,"None",Historical!AH11) -> None | H47: =IF($D$59=1,"None",Historical!AI11) -> None
B48: Previous reopener MAR | D48: =IF($D$59=1,"None",Historical!F11) -> None | E48: =IF($D$59=1,"None",Historical!G11) -> None | F48: =IF($D$59=1,"None",Historical!H11) -> None | G48: =IF($D$59=1,"None",Historical!I11) -> None | H48: =IF($D$59=1,"None",Historical!J11) -> None
B50: Reopener Instructions
B51: Operating instructions for this sheet are below in blue font.
A52: 1 | B52: Fill out the 5 inputs in D52:D56 below with the same pink fill colour as this instruction as required. The first four of these cells has a drop-down box from which the response is to be chosen
A53: 2 | B53: Note that the column for the reopener year is marked with the same fill colour as this instruction.
A54: 3 | B54: ="Previous price path MAR values are automatically popluated based on the sequence number selected in row " & ROW(B67) & ", e.g. DPP4 MAR values if this is the first reopener, first reopener MAR values if this iss the second reopener, etc." -> Previous price path MAR values are automatically popluated based on the sequence number selected in row 67, e.g. DPP4 MAR values if this is the first reopener, first reopener MAR values if this iss the second reopener, etc.
A55: 4 | B55: ="Fill Rows " & ROW(ReopOpex) & " and " & ROW(ReopCapex) & " cells with a green fill colour with the additional reopener opex and additional VCA values as required. Some of these green fill colour cells may be empty if nil. These input values should be nominal values based on the input costs inflators on row " & ROW(D39) & " and " & ROW(D40) & "." -> Fill Rows 71 and 72 cells with a green fill colour with the additional reopener opex and additional VCA values as required. Some of these green fill colour cells may be empty if nil. These input values should be nominal values based on the input costs inflators on row 39 and 40.
A56: 5 | B56: ="With these instructions completed, the resulting reopener MAR values should appear at Row " & ROW(B78) & "." -> With these instructions completed, the resulting reopener MAR values should appear at Row 78.
B58: Selected EDB | D58: Wellington Electricity
B59: Sequence # | C59: =IF(Historical!D11+1=D59,"OK","Check sequence in historical sheet") -> OK | D59: 1 | E59: Enter 1 if the reopener is the EDB's 1st DPP4 reopener, 2 if it is the 2nd etc. If this number is greater than 1, the rows in the Historical sheet need to be updated to reflect the data from previous reopeners.
B60: Reopener year | D60: 2026/27 | E60: Option to select Y2 to Y5 of the regulatory period.
B61: Reopener type of event, e.g. catastrophic | D61: unforeseeable large project (other than system growth) | E61: See Thresholds!B12:B23.
B62: Publication date of this reopener | D62: 2025-11-28
B63: Sum of checks - should be zero | D63: =SUM(D85:H85,D93:H93) -> 0
B64: Assessment period | D64: 2025/26 | E64: 2026/27 | F64: 2027/28 | G64: 2028/29 | H64: 2029/30
B65: Whether pre-reopener, reopener or post-reopener | D65: =IF(COLUMN(D64)<MATCH($D60,$D64:$H64)+COLUMN($D64)-1,"pre- reopener",IF(COLUMN(D64)=MATCH($D60,$D64:$H64)+COLUMN($D64)-1,"reopener",IF(COLUMN(D64)>MATCH($D60,$D64:$H64)+COLUMN($D64)-1,"post- reopener"))) -> pre- reopener | E65: =IF(COLUMN(E64)<MATCH($D60,$D64:$H64)+COLUMN($D64)-1,"pre- reopener",IF(COLUMN(E64)=MATCH($D60,$D64:$H64)+COLUMN($D64)-1,"reopener",IF(COLUMN(E64)>MATCH($D60,$D64:$H64)+COLUMN($D64)-1,"post- reopener"))) -> reopener | F65: =IF(COLUMN(F64)<MATCH($D60,$D64:$H64)+COLUMN($D64)-1,"pre- reopener",IF(COLUMN(F64)=MATCH($D60,$D64:$H64)+COLUMN($D64)-1,"reopener",IF(COLUMN(F64)>MATCH($D60,$D64:$H64)+COLUMN($D64)-1,"post- reopener"))) -> post- reopener | G65: =IF(COLUMN(G64)<MATCH($D60,$D64:$H64)+COLUMN($D64)-1,"pre- reopener",IF(COLUMN(G64)=MATCH($D60,$D64:$H64)+COLUMN($D64)-1,"reopener",IF(COLUMN(G64)>MATCH($D60,$D64:$H64)+COLUMN($D64)-1,"post- reopener"))) -> post- reopener | H65: =IF(COLUMN(H64)<MATCH($D60,$D64:$H64)+COLUMN($D64)-1,"pre- reopener",IF(COLUMN(H64)=MATCH($D60,$D64:$H64)+COLUMN($D64)-1,"reopener",IF(COLUMN(H64)>MATCH($D60,$D64:$H64)+COLUMN($D64)-1,"post- reopener"))) -> post- reopener
B67: Previous price path MAR values | D67: =IF($D$59=1,D25,Historical!F11) -> 118695.8121 | E67: =IF($D$59=1,E25,Historical!G11) -> 132692.4222 | F67: =IF($D$59=1,F25,Historical!H11) -> 148339.5127 | G67: =IF($D$59=1,G25,Historical!I11) -> 165831.708 | H67: =IF($D$59=1,H25,Historical!J11) -> 185386.583
B68: Previous price path total opex | D68: =IF($D$59=1,D26,Historical!Z11) -> 45192.98348 | E68: =IF($D$59=1,E26,Historical!AA11) -> 46782.32832 | F68: =IF($D$59=1,F26,Historical!AB11) -> 48443.68719 | G68: =IF($D$59=1,G26,Historical!AC11) -> 50200.36864 | H68: =IF($D$59=1,H26,Historical!AD11) -> 52032.7498
B69: Previous price path total VCA | D69: =IF($D$59=1,D27,Historical!AE11) -> 63757.49838 | E69: =IF($D$59=1,E27,Historical!AF11) -> 98923.98429 | F69: =IF($D$59=1,F27,Historical!AG11) -> 93105.21328 | G69: =IF($D$59=1,G27,Historical!AH11) -> 94087.48626 | H69: =IF($D$59=1,H27,Historical!AI11) -> 75812.50367
B70: MAR in revenue date terms for each pre-reopener year | D70: =IF(D65="pre- reopener",D67,0) -> 118695.8121 | E70: =IF(E65="pre- reopener",E67,0) -> 0 | F70: =IF(F65="pre- reopener",F67,0) -> 0 | G70: =IF(G65="pre- reopener",G67,0) -> 0 | H70: =IF(H65="pre- reopener",H67,0) -> 0
B71: Reopener additional opex (nominal based on original DPP4 opex inflators)
B72: Reopener additional VCA (nominal based on original DPP4 capex inflators) | G72: =11543*(1+D40)*(1+E40)*(1+F40)*(1+G40) -> 12479.08441
B74: Reopener Calculations
B75: FNAR increase resulting from the reopener
C76: Reopener sequence | D76: 2025/26 | E76: 2026/27 | F76: 2027/28 | G76: 2028/29 | H76: 2029/30
B77: Previous price path MAR | D77: =D67 -> 118695.8121 | E77: =E67 -> 132692.4222 | F77: =F67 -> 148339.5127 | G77: =G67 -> 165831.708 | H77: =H67 -> 185386.583
B78: Reopener MAR, using DPP4 forecast CPI | D78: =MAR!D38 -> 118695.8121 | E78: =MAR!E38 -> 133006.6836 | F78: =MAR!F38 -> 148690.8317 | G78: =MAR!G38 -> 166224.4545 | H78: =MAR!H38 -> 185825.6422
B79: FNAR increase (FNARI) as a result of the reopener | D79: =D78-D77 -> 0 | E79: =E78-E77 -> 314.2613106 | F79: =F78-F77 -> 351.3190043 | G79: =G78-G77 -> 392.7465413 | H79: =H78-H77 -> 439.0592135
B81: FNAR calculated using determination Sch 1.3 formulas 1 & 1A:
B82: FNAR = FNARY1 × (1+∆FCPI) × (1-x)(t-1) + Σ(FNARI)
B84: FNARY1 × (1+∆FCPI) × (1-x)(t-1) | D84: =D25 -> 118695.8121 | E84: =$D$84*(E35/$D$35)*(1-$C$37)^(E31-1) -> 132692.4222 | F84: =$D$84*(F35/$D$35)*(1-$C$37)^(F31-1) -> 148339.5127 | G84: =$D$84*(G35/$D$35)*(1-$C$37)^(G31-1) -> 165831.708 | H84: =$D$84*(H35/$D$35)*(1-$C$37)^(H31-1) -> 185386.583 | I84: This should equal the original DPP4 FNAR path
B85: check to DPP4 model | D85: =ROUND(D77-D84,8) -> 0 | E85: =ROUND(E77-E84,8) -> 0 | F85: =ROUND(F77-F84,8) -> 0 | G85: =ROUND(G77-G84,8) -> 0 | H85: =ROUND(H77-H84,8) -> 0
B86: FNARIyr × (1+ ∆RFCPI) × (1- x)y | C86: Current reopener | D86: =IF(D65="pre- reopener",0,IF(D65="reopener",D79,_xlfn.XLOOKUP("reopener",$D$65:$H$65,$D$79:$H$79,0))) -> 0 | E86: =IF(E65="pre- reopener",0,IF(E65="reopener",E79,_xlfn.XLOOKUP("reopener",$D$65:$H$65,$D$79:$H$79,0)*E35/(_xlfn.XLOOKUP(1,$D$32:$H$32,$D$35:$H$35))*(1-$C$37)^(E32-1))) -> 314.2613106 | F86: =IF(F65="pre- reopener",0,IF(F65="reopener",F79,_xlfn.XLOOKUP("reopener",$D$65:$H$65,$D$79:$H$79,0)*F35/(_xlfn.XLOOKUP(1,$D$32:$H$32,$D$35:$H$35))*(1-$C$37)^(F32-1))) -> 351.3190043 | G86: =IF(G65="pre- reopener",0,IF(G65="reopener",G79,_xlfn.XLOOKUP("reopener",$D$65:$H$65,$D$79:$H$79,0)*G35/(_xlfn.XLOOKUP(1,$D$32:$H$32,$D$35:$H$35))*(1-$C$37)^(G32-1))) -> 392.7465413 | H86: =IF(H65="pre- reopener",0,IF(H65="reopener",H79,_xlfn.XLOOKUP("reopener",$D$65:$H$65,$D$79:$H$79,0)*H35/(_xlfn.XLOOKUP(1,$D$32:$H$32,$D$35:$H$35))*(1-$C$37)^(H32-1))) -> 439.0592135 | I86: This should equal the FNAR increase as a result of the reopener. This row contains multiple If statements: - If pre-reopener year, return zero - If reopener year, return the incremental FNAR amount - If post-reopener year, return the incremental amount from the reopener year and adjust for ∆FCPI and (1-x)y since the reopener year
B87: FNARI from previous reopener 1 | C87: 1 | D87: =IFERROR(VLOOKUP(Reopener!$C87,Historical!$D$7:$AI$10,Historical!K$3,0),0) -> 0 | E87: =IFERROR(VLOOKUP(Reopener!$C87,Historical!$D$7:$AI$10,Historical!L$3,0),0) -> 0 | F87: =IFERROR(VLOOKUP(Reopener!$C87,Historical!$D$7:$AI$10,Historical!M$3,0),0) -> 0 | G87: =IFERROR(VLOOKUP(Reopener!$C87,Historical!$D$7:$AI$10,Historical!N$3,0),0) -> 0 | H87: =IFERROR(VLOOKUP(Reopener!$C87,Historical!$D$7:$AI$10,Historical!O$3,0),0) -> 0
B88: FNARI from previous reopener 2 | C88: 2 | D88: =IFERROR(VLOOKUP(Reopener!$C88,Historical!$D$7:$AI$10,Historical!K$3,0),0) -> 0 | E88: =IFERROR(VLOOKUP(Reopener!$C88,Historical!$D$7:$AI$10,Historical!L$3,0),0) -> 0 | F88: =IFERROR(VLOOKUP(Reopener!$C88,Historical!$D$7:$AI$10,Historical!M$3,0),0) -> 0 | G88: =IFERROR(VLOOKUP(Reopener!$C88,Historical!$D$7:$AI$10,Historical!N$3,0),0) -> 0 | H88: =IFERROR(VLOOKUP(Reopener!$C88,Historical!$D$7:$AI$10,Historical!O$3,0),0) -> 0
B89: FNARI from previous reopener 3 | C89: 3 | D89: =IFERROR(VLOOKUP(Reopener!$C89,Historical!$D$7:$AI$10,Historical!K$3,0),0) -> 0 | E89: =IFERROR(VLOOKUP(Reopener!$C89,Historical!$D$7:$AI$10,Historical!L$3,0),0) -> 0 | F89: =IFERROR(VLOOKUP(Reopener!$C89,Historical!$D$7:$AI$10,Historical!M$3,0),0) -> 0 | G89: =IFERROR(VLOOKUP(Reopener!$C89,Historical!$D$7:$AI$10,Historical!N$3,0),0) -> 0 | H89: =IFERROR(VLOOKUP(Reopener!$C89,Historical!$D$7:$AI$10,Historical!O$3,0),0) -> 0
B90: Σ(FNARI) | D90: =SUM(D86:D89) -> 0 | E90: =SUM(E86:E89) -> 314.2613106 | F90: =SUM(F86:F89) -> 351.3190043 | G90: =SUM(G86:G89) -> 392.7465413 | H90: =SUM(H86:H89) -> 439.0592135
B92: FNAR = FNARY1 × (1+∆FCPI) × (1-x)(t-1) + Σ(FNARI) | D92: =D84+D90 -> 118695.8121 | E92: =E84+E90 -> 133006.6836 | F92: =F84+F90 -> 148690.8317 | G92: =G84+G90 -> 166224.4545 | H92: =H84+H90 -> 185825.6422
B93: Check that model and determination formula produce the same result | D93: =D78-D92 -> 0 | E93: =E78-E92 -> 0 | F93: =F78-F92 -> 0 | G93: =G78-G92 -> 0 | H93: =H78-H92 -> 0
B96: Bill impacts
D97: 2025/26 | E97: 2026/27 | F97: 2027/28 | G97: 2028/29 | H97: 2029/30
B98: FNAR increase as a result of the reopener | D98: =D78-D77 -> 0 | E98: =E78-E77 -> 314.2613106 | F98: =F78-F77 -> 351.3190043 | G98: =G78-G77 -> 392.7465413 | H98: =H78-H77 -> 439.0592135
B99: Percentage MAR increase as a result of the reopener | D99: =D79/D77 -> 0 | E99: =E79/E77 -> 0.002368344064 | F99: =F79/F77 -> 0.002368344064 | G99: =G79/G77 -> 0.002368344064 | H99: =H79/H77 -> 0.002368344064
B100: Reopener capex as percentage of DPP4 capex | D100: =D72/SUM($D$45:$H$45) -> 0 | E100: =E72/SUM($D$45:$H$45) -> 0 | F100: =F72/SUM($D$45:$H$45) -> 0 | G100: =G72/SUM($D$45:$H$45) -> 0.02931518608 | H100: =H72/SUM($D$45:$H$45) -> 0
B101: Change in aggregate FNAR (for threshold test for change event) | D101: =SUM(D98:H98) -> 1497.38607
B102: Reopener price path | D102: =D78 -> 118695.8121 | E102: =E78 -> 133006.6836 | F102: =F78 -> 148690.8317 | G102: =G78 -> 166224.4545 | H102: =H78 -> 185825.6422
B103: Estimated number of consumers, 2024/25 | D103: 176075 | I103: Ex 2025 ID Schedule 8.
B104: Number of new connections | D104: 2182 | E104: 2185 | F104: 2210 | G104: 2617 | H104: 2652 | I104: Ex 2025 ID Schedule 12c.
B105: Number of ICPs | D105: =D103+D104 -> 178257 | E105: =D105+E104 -> 180442 | F105: =E105+F104 -> 182652 | G105: =F105+G104 -> 185269 | H105: =G105+H104 -> 187921
B106: Average increase per installation control point (ICP) in total for the years after the reopener year (annual) | D106: =1000*D98/D105 -> 0 | E106: =1000*E98/E105 -> 1.741619526 | F106: =1000*F98/F105 -> 1.923433657 | G106: =1000*G98/G105 -> 2.119871869 | H106: =1000*H98/H105 -> 2.336403135
B107: Average increase per installation control point (ICP) in total for the years after the reopener year (per month) | D107: =D106/12 -> 0 | E107: =E106/12 -> 0.1451349605 | F107: =F106/12 -> 0.1602861381 | G107: =G106/12 -> 0.1766559891 | H107: =H106/12 -> 0.1947002612
B109: Outputs
B110: Outputs for reporting and updating the Historical sheet for future reopeners
D111: Selected | F111: Reopener
D112: EDB | E112: Seq # | F112: year
D113: =D58 -> Wellington Electricity | E113: =D59 -> 1 | F113: =D60 -> 2026/27
D114: 2025/26 | E114: 2026/27 | F114: 2027/28 | G114: 2028/29 | H114: 2029/30
B115: MAR | D115: =D78 -> 118695.8121 | E115: =E78 -> 133006.6836 | F115: =F78 -> 148690.8317 | G115: =G78 -> 166224.4545 | H115: =H78 -> 185825.6422
B116: Incremental opex | D116: =D71 -> 0 | E116: 0 | F116: 0 | G116: 0 | H116: 0
B117: Incremental VCA | D117: 0 | E117: 0 | F117: 0 | G117: 12479.08441 | H117: 0
B118: Total opex | D118: =D68+D71 -> 45192.98348 | E118: 46782.32832 | F118: 48443.68719 | G118: 50200.36864 | H118: 52032.7498
B119: Total VCA | D119: 63757.49838 | E119: 98923.98429 | F119: 93105.21328 | G119: 106566.5707 | H119: 75812.50367
B120: FNARIyr | D120: =D86 -> 0 | E120: 314.2613106 | F120: 351.3190043 | G120: 392.7465413 | H120: 439.0592135
B121: FNARI from previous reopener 1 | D121: 0 | E121: 0 | F121: 0 | G121: 0 | H121: 0
B122: FNARI from previous reopener 2 | D122: 0 | E122: 0 | F122: 0 | G122: 0 | H122: 0
B123: FNARI from previous reopener 3 | D123: 0 | E123: 0 | F123: 0 | G123: 0 | H123: 0
B125: Wellington Electricity updated VCA values for IRIS calculations (Table 2.2.1 in determination):
B126: Value in DPP4 determination | G126: 93095.72104
B127: Reopener VCA | G127: =G117 -> 12479.08441
B128: Total | G128: =G126+G127 -> 105574.8054

Sheet ANAR guidance
B1: ANAR guidance | T1: =EDB_Name -> Wellington Electricity
B2: This calculation is included to provide guidance on how to calculate ANAR following a reopener. It is a simplified calculation that does not include any revenue from passthrough or recoverable costs. Results from this sheet will be indicative only and EDBs will still be required to perform their own calculation and ensure compliance with IMs.
B3: Inputs
C4: 2024/25 | D4: 2025/26 | E4: 2026/27 | F4: 2027/28 | G4: 2028/29 | H4: 2029/30
B5: =Reopener!B31 -> Assessment period number for DPP4 FNAR calculations | D5: 1 | E5: 2 | F5: 3 | G5: 4 | H5: 5
B6: =Reopener!B32 -> Assessment period number for reopener calculations | D6: =IF(D52="pre- reopener",E6-1,(IF(D52="reopener",1,IF(D52="post- reopener",C6+1,0)))) -> 0 | E6: =IF(E52="pre- reopener",F6-1,(IF(E52="reopener",1,IF(E52="post- reopener",D6+1,0)))) -> 1 | F6: =IF(F52="pre- reopener",G6-1,(IF(F52="reopener",1,IF(F52="post- reopener",E6+1,0)))) -> 2 | G6: =IF(G52="pre- reopener",H6-1,(IF(G52="reopener",1,IF(G52="post- reopener",F6+1,0)))) -> 3 | H6: =IF(H52="pre- reopener",I6-1,(IF(H52="reopener",1,IF(H52="post- reopener",G6+1,0)))) -> 4
B8: =Reopener!B34 -> Original DPP4 forecast CPI | D8: =Reopener!D34 -> 0.0227449287 | E8: =Reopener!E34 -> 0.02 | F8: =Reopener!F34 -> 0.02 | G8: =Reopener!G34 -> 0.02 | H8: =Reopener!H34 -> 0.02
B9: Actual CPI | D9: =CPI!G64 -> 0.02907201246 | E9: =CPI!H64 -> 0.02398182159 | F9: =CPI!I64 -> 0.02 | G9: =CPI!J64 -> 0.02 | H9: =CPI!K64 -> 0.02 | I9: These actual CPI values in the CPI sheet will need to be updated to calculate ANAR as actual CPI becomes available.
B10: Forecast ∆CPI index | C10: 1 | D10: =C10*(1+D8) -> 1.022744929 | E10: =D10*(1+E8) -> 1.043199827 | F10: 1.064063824 | G10: 1.0853451 | H10: 1.107052002
B11: Actual ∆CPI index for regulatory period | C11: 1 | D11: =C11*(1+D9) -> 1.029072012 | E11: 1.053751034 | F11: 1.074826055 | G11: 1.096322576 | H11: 1.118249027
B13: X-factor | C13: =Reopener!C37 -> -0.096
B15: Previous price path MAR values | D15: =Reopener!D67 -> 118695.8121 | E15: =Reopener!E67 -> 132692.4222 | F15: =Reopener!F67 -> 148339.5127 | G15: =Reopener!G67 -> 165831.708 | H15: =Reopener!H67 -> 185386.583
B16: Reopened FNAR | D16: =Reopener!D92 -> 118695.8121 | E16: =Reopener!E92 -> 133006.6836 | F16: =Reopener!F92 -> 148690.8317 | G16: =Reopener!G92 -> 166224.4545 | H16: =Reopener!H92 -> 185825.6422
B18: FNARIyr | D18: =Reopener!D120 -> 0 | E18: =Reopener!E120 -> 314.2613106 | F18: =Reopener!F120 -> 351.3190043 | G18: =Reopener!G120 -> 392.7465413 | H18: =Reopener!H120 -> 439.0592135
B20: FNARI from previous reopener 1 | D20: =Reopener!D121 -> 0 | E20: =Reopener!E121 -> 0 | F20: =Reopener!F121 -> 0 | G20: =Reopener!G121 -> 0 | H20: =Reopener!H121 -> 0
B21: FNARI from previous reopener 2 | D21: =Reopener!D122 -> 0 | E21: =Reopener!E122 -> 0 | F21: =Reopener!F122 -> 0 | G21: =Reopener!G122 -> 0 | H21: =Reopener!H122 -> 0
B22: FNARI from previous reopener 3 | D22: =Reopener!D123 -> 0 | E22: =Reopener!E123 -> 0 | F22: =Reopener!F123 -> 0 | G22: =Reopener!G123 -> 0 | H22: =Reopener!H123 -> 0
B24: Calculation of Actual Maximum Allowable Revenue (AMAR) for Y1 of DPP4
B25: This calculation is included to demonstrate the ANAR calculation. Before calculating ANAR, Actual Maximum Allowable Revenue (AMAR) for Y1 of DPP4 needs to be calculated. This is because the AMAR affects the ANAR amount in future years.
B26: Schedule 1.6(6) of the EDB DPP4 determination states that:
B27: For the purposes of paragraph (4), ‘actual maximum allowable revenue’ is the value of “MAR (applicable X factor) 2026” for the non-exempt EDB calculated in Row 18 of the “Outputs” sheet of the DPP4 financial model when replacing:
B28: 1) “Value of commissioned assets, 2024/25” in Row 47 of the “Inputs” sheet with the sum of the actual value of commissioned assets in disclosure year 2025.
B29: 2) “The sum of depreciation for existing assets” for each year in Rows 62-67 of the “Inputs” sheet with the sum of depreciation for existing assets in each year calculated by adopting the weighted average remaining asset life calculated under Part 2 of the IM determination in disclosure year 2025.
B31: To achieve this, take the following steps:
B32: 1) Create a copy of the EDB DPP4 financial model.
B33: 2) Update 2025 Value of commissioned assets in 'Inputs' row 47 (VCA) to the 2025 ID determination value.
B34: 3) Update the 2025 CPI used for revaluations to the updated actual CPI in this model 'Inputs' row 9. The updated CPI is calculated in the 'CPI' sheet of this reopener model. The reason CPI needs to be updated is driven by the EDB IM definition of CPI, which effectively means it is always the latest actual or forecast CPI. This, along with the 2025 actual capex update, aligns the 2025 closing RAB with the actual 2025 ID closing RAB.
B35: 4) Create a copy of the EDB DPP4 Existing Asset Depreciation model. Update the 2025 CPI for revaluations in this model (row 19 in 'Main' sheet) as per step 3 above. Confirm forecast sum of depreciation for existing assets from 2025 ID matches the input in the existing asset depreciation model (cell D36 in 'Main' sheet) or update as required. Check that the 2025 closing RAB in this model approximates the closing RAB in the ID schedule.
B36: 5) Use the updated values from the existing asset depreciation model to update 'Inputs' rows 62-67 of the copy of the EDB DPP4 financial model created in step 1 above.
B37: 6) Do not update CPI for the price path in this copy of the financial model (inputs row 10) as we are not updating the reopener forecast CPI (this will be done annually by the EDBs when they calculate their FNAR).
B38: ="7) Copy the updated Y1 MAR from this model 'Output' cell B18 into row " & ROW(D40) & " below. This represents the Y1 AMAR before applying the updated CPI (this is done in row " & ROW(D44) & " below)." -> 7) Copy the updated Y1 MAR from this model 'Output' cell B18 into row 40 below. This represents the Y1 AMAR before applying the updated CPI (this is done in row 44 below).
B40: AMAR DPP4 following calculation steps above - using DPP4 forecast inflation | D40: 119598.1127 | E40: DPP4 Sch1.6(6)
B41: AMAR impact before inflation update | D41: =D40-D15 -> 902.3006432
B42: Change in actual CPI | D42: =D9 -> 0.02907201246 | E42: DPP4 Sch 1.6(5). When actual CPI becomes available and updated in the CPI sheet, AMAR will be updated.
B43: Change in forecast CPI | D43: =D8 -> 0.0227449287 | E43: DPP4 Sch 1.6(4), specified as 2.27% which equals DPP4 CPI
B44: ANAR Y1 (AMAR updated for actual inflation) | D44: =D40/(1+D43)*(1+D42) -> 120337.9915 | E44: Sch 1.6(4): AMAR / (1+ΔFCPIY0−1) × (1+ΔCPIY0−1)
B45: Increase in AMAR vs. MAR | D45: =D44-D15 -> 1642.179429
B48: Actual Net Allowable Revenue (ANAR) calculations
B49: The actual CPI in row 9 needs to be updated annually when actual CPI for a specific year is released to calculate the ANAR for that year. The calculation below ignores other pass-through or recoverable costs.
C51: Reopener sequence | D51: 2025/26 | E51: 2026/27 | F51: 2027/28 | G51: 2028/29 | H51: 2029/30
D52: =Reopener!D65 -> pre- reopener | E52: =Reopener!E65 -> reopener | F52: =Reopener!F65 -> post- reopener | G52: =Reopener!G65 -> post- reopener | H52: =Reopener!H65 -> post- reopener
B53: ANAR calculated using determination Sch 1.6 formulas 7 and 7A:
B54: (7) ANAR = ANARY1 × (1 + ΔCPI) × (1 - x)t + Σ(ANARI)
B55: Where:
B56: ANARY1 × (1 + ΔCPI) × (1 - x)t | D56: =D44 -> 120337.9915 | E56: =$D$56*(E11/$D$11)*(1-$C$13)^(E5-1) -> 135053.4117 | F56: =$D$56*(F11/$D$11)*(1-$C$13)^(F5-1) -> 150978.91 | G56: =$D$56*(G11/$D$11)*(1-$C$13)^(G5-1) -> 168782.343 | H56: =$D$56*(H11/$D$11)*(1-$C$13)^(H5-1) -> 188685.1569
B58: (7A) ANARIyr = FNARIyr / (1+∆RFCPI) x (1+ ΔRCPI) x (1-X)y | C58: Current reopener | D58: =IF(D$52="pre- reopener",0,(IF(D$52="reopener",D18/(D$10)*(D$11),_xlfn.XLOOKUP(1,$D$6:$H$6,$D$18:$H$18)*(D$11/$E$10)*(1-$C$13)^(D6-1)))) -> 0 | E58: =IF(E$52="pre- reopener",0,(IF(E$52="reopener",E18/(E$10)*(E$11),_xlfn.XLOOKUP(1,$D$6:$H$6,$D$18:$H$18)*(E$11/$E$10)*(1-$C$13)^(E6-1)))) -> 317.4398349 | F58: =IF(F$52="pre- reopener",0,(IF(F$52="reopener",F18/(F$10)*(F$11),_xlfn.XLOOKUP(1,$D$6:$H$6,$D$18:$H$18)*(F$11/$E$10)*(1-$C$13)^(F6-1)))) -> 354.8723402 | G58: =IF(G$52="pre- reopener",0,(IF(G$52="reopener",G18/(G$10)*(G$11),_xlfn.XLOOKUP(1,$D$6:$H$6,$D$18:$H$18)*(G$11/$E$10)*(1-$C$13)^(G6-1)))) -> 396.7188866 | H58: =IF(H$52="pre- reopener",0,(IF(H$52="reopener",H18/(H$10)*(H$11),_xlfn.XLOOKUP(1,$D$6:$H$6,$D$18:$H$18)*(H$11/$E$10)*(1-$C$13)^(H6-1)))) -> 443.4999777 | I58: This row contains multiple If statements: - If pre-reopener year, return zero - If reopener year, return reopener year FNARI / ΔFCPI since y1 x ΔCPI since y1 - If post-reopener year, return reopener year ANARI and adjust for ∆CPI and (1-x)y since the reopener year
B59: ANARI from previous reopener 1 | C59: 1 | D59: =D20/'ANAR guidance'!D$10*'ANAR guidance'!D$11 -> 0 | E59: =E20/'ANAR guidance'!E$10*'ANAR guidance'!E$11 -> 0 | F59: =F20/'ANAR guidance'!F$10*'ANAR guidance'!F$11 -> 0 | G59: =G20/'ANAR guidance'!G$10*'ANAR guidance'!G$11 -> 0 | H59: =H20/'ANAR guidance'!H$10*'ANAR guidance'!H$11 -> 0 | I59: FNARI from previous reopeners, adjusted for difference between DPP4 ΔFCPI and actual ΔCPI since the start of DPP4
B60: ANARI from previous reopener 2 | C60: 2 | D60: =D21/'ANAR guidance'!D$10*'ANAR guidance'!D$11 -> 0 | E60: =E21/'ANAR guidance'!E$10*'ANAR guidance'!E$11 -> 0 | F60: =F21/'ANAR guidance'!F$10*'ANAR guidance'!F$11 -> 0 | G60: =G21/'ANAR guidance'!G$10*'ANAR guidance'!G$11 -> 0 | H60: =H21/'ANAR guidance'!H$10*'ANAR guidance'!H$11 -> 0 | I60: FNARI from previous reopeners, adjusted for difference between DPP4 ΔFCPI and actual ΔCPI since the start of DPP4
B61: ANARI from previous reopener 3 | C61: 3 | D61: =D22/'ANAR guidance'!D$10*'ANAR guidance'!D$11 -> 0 | E61: =E22/'ANAR guidance'!E$10*'ANAR guidance'!E$11 -> 0 | F61: =F22/'ANAR guidance'!F$10*'ANAR guidance'!F$11 -> 0 | G61: =G22/'ANAR guidance'!G$10*'ANAR guidance'!G$11 -> 0 | H61: =H22/'ANAR guidance'!H$10*'ANAR guidance'!H$11 -> 0 | I61: FNARI from previous reopeners, adjusted for difference between DPP4 ΔFCPI and actual ΔCPI since the start of DPP4
B62: Σ(ANARI) | D62: =SUM(D58:D61) -> 0 | E62: =SUM(E58:E61) -> 317.4398349 | F62: =SUM(F58:F61) -> 354.8723402 | G62: =SUM(G58:G61) -> 396.7188866 | H62: =SUM(H58:H61) -> 443.4999777
B64: ANAR | D64: =D62+D56 -> 120337.9915 | E64: =E62+E56 -> 135370.8515 | F64: =F62+F56 -> 151333.7823 | G64: =G62+G56 -> 169179.0619 | H64: =H62+H56 -> 189128.6569 | I64: ="ANAR Y1 = AMAR calculated in row " & ROW(D44) & ". Subsequent years ANAR = (ANAR previous year + incremental reopener FNAR in reopener year) * (1+ΔCPI) * (1-x) per sch 1.x of reopener determination." -> ANAR Y1 = AMAR calculated in row 44. Subsequent years ANAR = (ANAR previous year + incremental reopener FNAR in reopener year) * (1+ΔCPI) * (1-x) per sch 1.x of reopener determination.
B66: ANARI based on FNARI, adjusted for actual inflation (simplified calculation) | E66: =E18/E10*E11 -> 317.4398349 | F66: =F18/F10*F11 -> 354.8723402 | G66: =G18/G10*G11 -> 396.7188866 | H66: =H18/H10*H11 -> 443.4999777
B67: Check to determination formula result | E67: =E66-E58 -> 0 | F67: =F66-F58 -> 0 | G67: =G66-G58 -> 0 | H67: =H66-H58 -> 0
B69: Sense check to ANAR if no reopener took place
B70: ANAR based on DPP4 price path FNAR if no reopener took place | D70: =D15/D10*D11 -> 119430.1089 | E70: =$D$70*(E11/$D$11)*(1-$C$13)^(E5-1) -> 134034.5095 | F70: =$D$70*(F11/$D$11)*(1-$C$13)^(F5-1) -> 149839.8588 | G70: =$D$70*(G11/$D$11)*(1-$C$13)^(G5-1) -> 167508.975 | H70: =$D$70*(H11/$D$11)*(1-$C$13)^(H5-1) -> 187261.6333
B71: Impact of 2025 capex and depreciation wash-up through AMAR Y1, adjusted for actual inflation | D71: =D41/D10*D11 -> 907.8826134 | E71: =$D$71*(E11/$D$11)*(1-$C$13)^(E5-1) -> 1018.9022 | F71: =$D$71*(F11/$D$11)*(1-$C$13)^(F5-1) -> 1139.051148 | G71: =$D$71*(G11/$D$11)*(1-$C$13)^(G5-1) -> 1273.368059 | H71: =$D$71*(H11/$D$11)*(1-$C$13)^(H5-1) -> 1423.523621
B72: ANARI as a result of reopeners | D72: =D62 -> 0 | E72: =E62 -> 317.4398349 | F72: =F62 -> 354.8723402 | G72: =G62 -> 396.7188866 | H72: =H62 -> 443.4999777
B73: Total | D73: =SUM(D70:D72) -> 120337.9915 | E73: =SUM(E70:E72) -> 135370.8515 | F73: =SUM(F70:F72) -> 151333.7823 | G73: =SUM(G70:G72) -> 169179.0619 | H73: =SUM(H70:H72) -> 189128.6569
B74: Check to ANAR | D74: =D64-D73 -> 0 | E74: =E64-E73 -> 0 | F74: =F64-F73 -> 0 | G74: =G64-G73 -> 0 | H74: =H64-H73 -> 0
B76: Sense check to reopener FNAR
B77: Actual inflation applied to FNAR (cumulative from start of reg period)
B78: Reopened FNAR | D78: =D16 -> 118695.8121 | E78: =E16 -> 133006.6836 | F78: =F16 -> 148690.8317 | G78: =G16 -> 166224.4545 | H78: =H16 -> 185825.6422
B79: FNAR updated for actual inflation | D79: =D78/D10*D11-D78 -> 734.2968154 | E79: =E78/E10*E11-E78 -> 1345.265748 | F79: =F78/F10*F11-F78 -> 1503.899485 | G79: =G78/G10*G11-G78 -> 1681.239312 | H79: =H78/H10*H11-H78 -> 1879.491052
B80: Impact of Y1 AMAR (2025 RAB wash-up) not reflected in FNAR | D80: =D71 -> 907.8826134 | E80: =E71 -> 1018.9022 | F80: =F71 -> 1139.051148 | G80: =G71 -> 1273.368059 | H80: =H71 -> 1423.523621 | I80: This will flow through wash-up account
B81: Total | D81: =SUM(D78:D80) -> 120337.9915 | E81: =SUM(E78:E80) -> 135370.8515 | F81: =SUM(F78:F80) -> 151333.7823 | G81: =SUM(G78:G80) -> 169179.0619 | H81: =SUM(H78:H80) -> 189128.6569
B82: Check to ANAR | D82: =D73-D81 -> 0 | E82: =E73-E81 -> 0 | F82: =F73-F81 -> 0 | G82: =G73-G81 -> 0 | H82: =H73-H81 -> 0
B84: Sense check wash-up amounts
B85: Actual revenue (AR) | D85: =D78 -> 118695.8121 | E85: =E78 -> 133006.6836 | F85: =F78 -> 148690.8317 | G85: =G78 -> 166224.4545 | H85: =H78 -> 185825.6422 | I85: Assume equal to reopened FNAR and no other recoverable costs.
B86: ANAR | D86: =D73 -> 120337.9915 | E86: =E73 -> 135370.8515 | F86: =F73 -> 151333.7823 | G86: =G73 -> 169179.0619 | H86: =H73 -> 189128.6569
B87: Wash-up amount (WUA) | D87: =D86-D85 -> 1642.179429 | E87: =E86-E85 -> 2364.167948 | F87: =F86-F85 -> 2642.950633 | G87: =G86-G85 -> 2954.607371 | H87: =H86-H85 -> 3303.014672
B88: WUA made up of:
B89: Inflation wash-up | D89: =D79 -> 734.2968154 | E89: =E79 -> 1345.265748 | F89: 1503.899485 | G89: 1681.239312 | H89: 1879.491052
B90: Impact of 2025 capex and depreciation wash-up through AMAR Y1, adjusted for actual inflation | D90: 907.8826134 | E90: 1018.9022 | F90: 1139.051148 | G90: 1273.368059 | H90: 1423.523621
B91: Wash-up amount (WUA) | D91: =D89+D90 -> 1642.179429 | E91: =E89+E90 -> 2364.167948 | F91: =F89+F90 -> 2642.950633 | G91: =G89+G90 -> 2954.607371 | H91: =H89+H90 -> 3303.014672
B92: Check | D92: =ROUND(D87-D91,5) -> 0 | E92: =ROUND(E87-E91,5) -> 0 | F92: =ROUND(F87-F91,5) -> 0 | G92: =ROUND(G87-G91,5) -> 0 | H92: =ROUND(H87-H91,5) -> 0

Sheet CPI
B1: CPI calculation for the ANAR calculation
B2: The actual CPI values in this sheet will need to be updated annually to calculate ANAR when actual CPI data is released. The outputs from this sheet are linked to the ANAR guidance sheet.
B3: To update this sheet:
B4: 1) update the dates in cells G20 to G22
B5: 2) enter the latest Stats NZ actual CPI data in column C
B6: 3) enter the latest RBNZ CPI projection data in column I
B9: Link to actual CPI data | E9: Dec 2025 CPI ex Statistics NZ, Table 1
B10: Link to RBNZ CPI projection | E10: Feb 2026 RBNZ CPI forecast, Figure 2.15
B12: Nomenclature for the Updated Forecast CPI
B13: On this sheet ∆CPIt is calculated as: | G13: CPIJun,t + CPISep,t + CPIDec,t + CPIMar,t
E14: where– | G14: CPIJun,t-1 + CPISep,t-1 + CPIDec,t-1 + CPIMar,t-1
E15: CPIq,t | F15: is CPI for the quarter year ending in ‘q’ in the relevant year ‘t’;
E16: t | F16: is the current assessment period; and
E17: t-1 | F17: is the assessment period immediately prior to the current assessment period.
F18: Values of ∆CPIt are calculated in Column F below. Values in bold font in Column F are linked to Row 61.
B20: End of last quarter for which actual CPI available | G20: 2025-12-31
B21: Applicable monetary policy statement | G21: MPS Feb 2026
B22: End of last quarter for which RBNZ forecast is available | G22: 2029-03-31
B23: End of quarter | C23: Latest Stats NZ actual CPI | D23: =G21 -> MPS Feb 2026 | E23: Projected CPI | F23: 8 index ∆CPI increase March YEs | G23: Revaluation rate, 2 index, March YEs | I23: MPS Feb 2026 CPI forecast
B24: 2021-06-30 | C24: 1082 | D24: =I24 -> 3.3 | E24: =IF(B24>$G$20,E20*(1+D24/100),C24) -> 1082 | I24: 3.3
B25: 2021-09-30 | C25: 1106 | D25: =I25 -> 4.9 | E25: 1106 | I25: 4.9
B26: 2021-12-31 | C26: 1122 | D26: 5.9 | E26: 1122 | I26: 5.9
B27: 2022-03-31 | C27: 1142 | D27: 6.9 | E27: 1142 | I27: 6.9
B28: 2022-06-30 | C28: 1161 | D28: 7.3 | E28: 1161 | I28: 7.3
B29: 2022-09-30 | C29: 1186 | D29: 7.2 | E29: 1186 | I29: 7.2
B30: 2022-12-31 | C30: 1203 | D30: 7.2 | E30: 1203 | I30: 7.2
B31: 2023-03-31 | C31: 1218 | D31: 6.7 | E31: 1218 | I31: 6.7
B32: 2023-06-30 | C32: 1231 | D32: 6 | E32: 1231 | I32: 6
B33: 2023-09-30 | C33: 1253 | D33: 5.6 | E33: 1253 | I33: 5.6
B34: 2023-12-31 | C34: 1259 | D34: 4.7 | E34: 1259 | I34: 4.7
B35: 2024-03-31 | C35: 1267 | D35: 4 | E35: 1267 | I35: 4
B36: 2024-06-30 | C36: 1272 | D36: =I36 -> 3.3 | E36: 1272 | G36: =E36/E32-1 -> 0.03330625508 | I36: 3.3
B37: 2024-09-30 | C37: 1280 | D37: 2.2 | E37: 1280 | G37: =E37/E33-1 -> 0.02154828412 | I37: 2.2
B38: 2024-12-31 | C38: 1287 | D38: 2.2 | E38: 1287 | G38: 0.02223987292 | I38: 2.2
B39: 2025-03-31 | C39: 1299 | D39: 2.5 | E39: 1299 | G39: 0.02525651144 | I39: 2.5
B40: 2025-06-30 | C40: 1306 | D40: 2.7 | E40: 1306 | F40: =SUM(E37:E40)/SUM(E33:E36)-1 -> 0.02395565235 | G40: 0.02672955975 | I40: 2.7
B41: 2025-09-30 | C41: 1319 | D41: 3 | E41: 1319 | F41: 0.02619141394 | G41: 0.03046875 | I41: 3
B42: 2025-12-31 | C42: 1327 | D42: 3.1 | E42: 1327 | F42: 0.02839796318 | G42: 0.03108003108 | I42: 3.1
B43: 2026-03-31 | D43: 2.8 | E43: =IF(B43>$G$20,E39*(1+D43/100),C43) -> 1335.372 | F43: =SUM(E40:E43)/SUM(E36:E39)-1 -> 0.02907201246 | G43: 0.028 | I43: 2.8
B44: 2026-06-30 | D44: 2.7 | E44: 1341.262 | F44: 0.02912490333 | G44: 0.027 | I44: 2.7
B45: 2026-09-30 | D45: 2.5 | E45: 1351.975 | F45: 0.02775071963 | G45: 0.025 | I45: 2.5
B46: 2026-12-31 | D46: 2.3 | E46: 1357.521 | F46: 0.02573414588 | G46: =E46/E42-1 -> 0.023 | I46: 2.3
B47: 2027-03-31 | D47: 2.1 | E47: 1363.414812 | F47: 0.02398182159 | G47: =E47/E43-1 -> 0.021 | I47: 2.1
B48: 2027-06-30 | D48: 2 | E48: 1368.08724 | F48: 0.0222378717 | G48: 0.02 | I48: 2
B49: 2027-09-30 | D49: 2 | E49: 1379.0145 | F49: 0.02099267366 | G49: 0.02 | I49: 2
B50: 2027-12-31 | D50: 2 | E50: 1384.67142 | F50: 0.02024792792 | G50: 0.02 | I50: 2
B51: 2028-03-31 | D51: 2 | E51: 1390.683108 | F51: 0.02 | G51: 0.02 | I51: 2
B52: 2028-06-30 | D52: 2 | E52: 1395.448985 | F52: 0.02 | G52: 0.02 | I52: 2
B53: 2028-09-30 | D53: =I53 -> 2 | E53: 1406.59479 | F53: 0.02 | G53: 0.02 | I53: 2
B54: 2028-12-31 | D54: 2 | E54: 1412.364848 | F54: 0.02 | G54: 0.02 | I54: 2
B55: 2029-03-31 | D55: 2 | E55: 1418.49677 | F55: 0.02 | G55: 0.02 | I55: 2
B56: 2029-06-30 | D56: 2 | E56: 1423.357964 | F56: 0.02 | G56: 0.02 | I56: 2
B57: 2029-09-30 | D57: 2 | E57: 1434.726686 | F57: 0.02 | G57: 0.02 | I57: 2
B58: 2029-12-31 | D58: 2 | E58: 1440.612145 | F58: 0.02 | G58: 0.02 | I58: 2
B59: 2030-03-31 | D59: 2 | E59: 1446.866706 | F59: 0.02 | G59: 0.02 | I59: 2
N60: The Reserve Bank forecast in Column I went as far as March 2029.
N61: The IMs require subsequent quarters to be based on the last available
B62: Updated ∆CPI as at November 2025 MPS | N62: quarter and the difference between the last available quarterly forecast
F63: 2024/25 | G63: 2025/26 | H63: 2026/27 | I63: 2027/28 | J63: 2028/29 | K63: 2029/30 | N63: and the target midpoint. This difference is nil, so the March 2029
B64: ∆CPI for price path | G64: =F43 -> 0.02907201246 | H64: =F47 -> 0.02398182159 | I64: =F51 -> 0.02 | J64: =F55 -> 0.02 | K64: =F59 -> 0.02 | N64: value has been simply extrapolated.
B65: ∆CPI for revaluations | F65: =G39 -> 0.02525651144 | G65: =G43 -> 0.028 | H65: =G47 -> 0.021 | I65: =G51 -> 0.02 | J65: =G55 -> 0.02 | K65: =G59 -> 0.02 | N65: Grey cells have been extrapolated from the last available quarter.

Sheet Historical
B1: Historical record of previous DPP4 reopeners
B2: Please populate rows 7 onwards in the table below with the data from any previous DPP4 reopeners. These should all be zero if this is the first reopener. The last row will show the last reopener's values based on the sequence assigned in column C.
B3: Column number for lookups | D3: 1 | E3: 2 | F3: 3 | G3: 4 | H3: 5 | I3: 6 | J3: 7 | K3: 8 | L3: 9 | M3: 10 | N3: 11 | O3: 12 | P3: 13 | Q3: 14 | R3: 15 | S3: 16 | T3: 17 | U3: 18 | V3: 19 | W3: 20 | X3: 21 | Y3: 22 | Z3: 23 | AA3: 24 | AB3: 25 | AC3: 26 | AD3: 27 | AE3: 28 | AF3: 29 | AG3: 30 | AH3: 31 | AI3: 32
C4: Selected | E4: Reopener | F4: MAR | K4: FNARI | P4: Additional opex | U4: Additional VCA | Z4: Total opex | AE4: Total VCA
C5: EDB | D5: Seq # | E5: year | F5: 2025/26 | G5: 2026/27 | H5: 2027/28 | I5: 2028/29 | J5: 2029/30 | K5: 2025/26 | L5: 2026/27 | M5: 2027/28 | N5: 2028/29 | O5: 2029/30 | P5: 2025/26 | Q5: 2026/27 | R5: 2027/28 | S5: 2028/29 | T5: 2029/30 | U5: 2025/26 | V5: 2026/27 | W5: 2027/28 | X5: 2028/29 | Y5: 2029/30 | Z5: 2025/26 | AA5: 2026/27 | AB5: 2027/28 | AC5: 2028/29 | AD5: 2029/30 | AE5: 2025/26 | AF5: 2026/27 | AG5: 2027/28 | AH5: 2028/29 | AI5: 2029/30
B6: Data from Reopener | C6: =Reopener!D113 -> Wellington Electricity | D6: =Reopener!E113 -> 1 | E6: =Reopener!F113 -> 2026/27 | F6: =Reopener!D115 -> 118695.8121 | G6: =Reopener!E115 -> 133006.6836 | H6: =Reopener!F115 -> 148690.8317 | I6: =Reopener!G115 -> 166224.4545 | J6: =Reopener!H115 -> 185825.6422 | K6: =Reopener!D86 -> 0 | L6: =Reopener!E86 -> 314.2613106 | M6: =Reopener!F86 -> 351.3190043 | N6: =Reopener!G86 -> 392.7465413 | O6: =Reopener!H86 -> 439.0592135 | P6: =Reopener!D116 -> 0 | Q6: =Reopener!E116 -> 0 | R6: =Reopener!F116 -> 0 | S6: =Reopener!G116 -> 0 | T6: =Reopener!H116 -> 0 | U6: =Reopener!D117 -> 0 | V6: =Reopener!E117 -> 0 | W6: =Reopener!F117 -> 0 | X6: =Reopener!G117 -> 12479.08441 | Y6: =Reopener!H117 -> 0 | Z6: =Reopener!D118 -> 45192.98348 | AA6: =Reopener!E118 -> 46782.32832 | AB6: =Reopener!F118 -> 48443.68719 | AC6: =Reopener!G118 -> 50200.36864 | AD6: =Reopener!H118 -> 52032.7498 | AE6: =Reopener!D119 -> 63757.49838 | AF6: =Reopener!E119 -> 98923.98429 | AG6: =Reopener!F119 -> 93105.21328 | AH6: =Reopener!G119 -> 106566.5707 | AI6: =Reopener!H119 -> 75812.50367
B7: Previous reopeners | C7: =Reopener!D113 -> Wellington Electricity | D7: 0
C8: =Reopener!D113 -> Wellington Electricity | D8: 0
C9: =Reopener!D113 -> Wellington Electricity | D9: 0
B11: Last reopener | C11: =C9 -> Wellington Electricity | D11: =MAX(D7:D9) -> 0 | F11: =VLOOKUP($D$11,$D$7:$AI$10,F3,0) -> 0 | G11: =VLOOKUP($D$11,$D$7:$AI$10,G3,0) -> 0 | H11: 0 | I11: 0 | J11: 0 | K11: 0 | L11: 0 | M11: 0 | N11: 0 | O11: 0 | P11: 0 | Q11: 0 | R11: 0 | S11: 0 | T11: 0 | U11: 0 | V11: 0 | W11: 0 | X11: 0 | Y11: 0 | Z11: =VLOOKUP($D$11,$D$7:$AI$10,Z3,0) -> 0 | AA11: 0 | AB11: 0 | AC11: 0 | AD11: 0 | AE11: 0 | AF11: 0 | AG11: 0 | AH11: 0 | AI11: 0

Sheet Thresholds
B1: Types of reopeners and thresholds | P1: =EDB_Name -> Wellington Electricity
B2: This sheet lists the different reopener types and applicable thresholds. Future versions of this model will automate the threshold calculation.
B4: The standard threshold applies to most of the reopener types as detailed below. It is defined as effectively the lesser of:
B5: - 1% of the EDB’s forecast net allowable revenue for the DPP regulatory period, or
B6: - $5 million for Vector Limited or Powerco Limited, or $2.5 million for any other EDB.
B8: Reopener types
B9: Reopener type number selected | C9: =_xlfn.XMATCH(Reopener!D61,C12:C23) -> 8
C11: Reopener type list:
B12: 1 | C12: Catastrophic event
B13: 2 | C13: Change event (regulatory or legislative)
B14: 3 | C14: Change event (GAAP change)
B15: 4 | C15: Error event
B16: 5 | C16: False or misleading information
B17: 6 | C17: Major transaction event
B18: 7 | C18: Unforeseeable large project (system growth)
B19: 8 | C19: Unforeseeable large project (other than system growth)
B20: 9 | C20: Foreseeable large project (system growth)
B21: 10 | C21: Foreseeable large project (other than system growth)
B22: 11 | C22: Risk event
B23: 12 | C23: Quality standard variation
B25: Table of IM reference, reopener type, threshold and relevant expenditure
B27: IM reference | C27: Reopener type | F27: Threshold | I27: Relevant expenditure
B28: 4.5.4 | C28: catastrophic event | F28: standard | I28: Remediation costs before recognition of any insurance entitlements,
I29: third-party liability entitlements, and compensatory entitlements
B30: 4.5.5(2) | C30: change event (regulatory or legislative) | F30: standard | I30: The increase or reduction of the costs that will be incurred or revenue
I31: that can be recovered
B32: 4.5.5(4) | C32: change event (GAAP change) | F32: standard | I32: Change in aggregate FNAR for all DPP4 disclosure years
B34: 4.5.6 | C34: error event | F34: 100000 | I34: Impact on aggregate FNAR for all DPP4 disclosure years
B36: 4.5.7 | C36: false or misleading information | F36: not specified | I36: IM 4.5.7 relates to false or misleading information, but does not specify
I37: the relevant expenditure or threshold.
B38: 4.5.8 | C38: major transaction event | F38: 10% of EDB's total opening RAB value | I38: Value of assets acquired or assets disposed of or rights acquired or
I39: obligations or liabilities incurred (excluding loans in respect of assets)
B40: 4.5.9 | C40: unforeseeable large project | F40: standard | I40: In the case of system growth expenditure that includes an opex solution,
C41: (system growth) | I41: the forecast total lifetime solution costs plus any consequential capex
B42: 4.5.9 | C42: unforeseeable large project | F42: standard | I42: For other than system growth, total VCA for the project less capital
C43: (other than system growth) | I43: contributions less capex already included in setting DPP4
B44: 4.5.10 | C44: foreseeable large project | F44: standard | I44: In the case of system growth expenditure that includes an opex solution,
C45: (system growth) | I45: the forecast total lifetime solution costs plus any consequential capex
B46: 4.5.10 | C46: foreseeable large project | F46: standard | I46: For other than system growth, total VCA for the project less capital
C47: (other than system growth) | I47: contributions less capex already included in setting DPP4
B48: 4.5.11 | C48: risk event | F48: standard | I48: Deterioration remedy costs, whether opex, capex or both, excluding
I49: capital contributions and excluding costs already provided for in DPP4
B50: 4.5.12 | C50: quality standard variation | F50: not applicable | I50: not applicable

Sheet Inputs
A1: Inputs | S1: =EDB_Name -> Wellington Electricity
A2: All input data is entered into this sheet. | U2: Working area
A4: Inputs that are the same for all distributors
C5: Base | D5: Gap | E5: 1st | F5: 2nd | G5: 3rd | H5: 4th | I5: 5th | U5: This working area generates text for row headings below for opex, capex etc.
B6: Value | C6: =YEAR(B15)-1 & "/" & YEAR(B15)-2000 -> 2023/24 | D6: =LEFT(C6,4)+1 & "/" & RIGHT(C6,2)+1 -> 2024/25 | E6: 2025/26 | F6: 2026/27 | G6: 2027/28 | H6: 2028/29 | I6: 2029/30
A7: Year in modelling period | C7: 1 | D7: 2 | E7: 3 | F7: 4 | G7: 5 | H7: 6 | I7: 7 | U7: =C2 -> 0
A8: Year in regulatory period | E8: 1 | F8: 2 | G8: 3 | H8: 4 | I8: 5 | U8: =C5 -> Base
A9: Forecast changes in CPI used for revaluations | C9: 0.04022988506 | D9: 0.022 | E9: 0.021 | F9: 0.02 | G9: 0.02 | H9: 0.02 | I9: 0.02 | U9: =C6 -> 2023/24
A10: Forecast changes in the CPI element of the price path | E10: 0.0227449287 | F10: 0.02 | G10: 0.02 | H10: 0.02 | I10: 0.02 | U10: =LEFT(U9,4)+1 & "/" & RIGHT(U9,2)+1 -> 2024/25
A11: Company tax rate | C11: 0.28 | D11: 0.28 | E11: 0.28 | F11: 0.28 | G11: 0.28 | H11: 0.28 | I11: 0.28 | U11: 2025/26
A12: Days in a year | B12: 365 | U12: 2026/27
A13: Days from mid-year to year-end | B13: 182 | U13: 2027/28
A14: Days from revenue date to year-end | B14: 148 | U14: 2028/29
A15: Last day of the base year | B15: 2024-03-31 | C15: Enter 31-3-24 for operating this workbook as the DPP4 financial model. Enter 31-3-23 to run it as an initial conditions model with an early base year, ending 31-3-23. | U15: 2029/30
A16: Vanilla WACC (65th percentile) | B16: 0.071 | C16: Ex Cost of capital determination [2024] NZCC 21 25-9-24. | U16: ="PV at 1-Apr-" & MID(U11,3,2) & ")" -> PV at 1-Apr-25)
A17: Cost of debt | B17: 0.0574 | C17: Ditto
A18: Leverage | B18: 0.41
A19: Years of remaining life for newly commissioned assets | B19: 44
A20: Industry-wide X factor | B20: 0
A22: Inputs that are specific to individual distributors
A23: Name | B23: Alpine Energy | C23: Aurora Energy | D23: EA Networks | E23: Electricity Invercargill | F23: Firstlight Network | G23: Horizon Energy | H23: Nelson Electricity | I23: Network Tasman | J23: Orion NZ | K23: OtagoNet | L23: Powerco | M23: The Lines Company | N23: Top Energy | O23: Unison Networks | P23: Vector Lines | Q23: Wellington Electricity | S23: Selected supplier
A24: Distributor number | B24: 1 | C24: 2 | D24: 3 | E24: 4 | F24: 5 | G24: 6 | H24: 7 | I24: 8 | J24: 9 | K24: 10 | L24: 11 | M24: 12 | N24: 13 | O24: 14 | P24: 15 | Q24: 16 | S24: =INDEX(A23:Q23,'EDB data'!$C$5+1) -> Wellington Electricity
A25: Initial conditions | B25: alp | C25: aur | D25: ean | E25: inv | F25: fnl | G25: hor | H25: nel | I25: tas | J25: ori | K25: ojv | L25: pco | M25: tlc | N25: top | O25: uni | P25: vct | Q25: wel
A26: Opening RAB | B26: 293278.4862 | D26: 343290 | E26: 107300.1332 | F26: 209446.2753 | G26: 161215.809 | H26: 49284.29202 | I26: 209789 | J26: 1450078.697 | K26: 263617 | L26: 2589536.807 | M26: 263264.1674 | N26: 339120.8623 | O26: 805807.4552 | P26: 3891833 | Q26: 803430.1662 | S26: =INDEX(A26:Q26,'EDB data'!$C$5+1) -> 803430.1662
A27: Total depreciation | B27: 11923.11464 | D27: 12409 | E27: 4043.583572 | F27: 7839.74804 | G27: 7490.98279 | H27: 1771.309583 | I27: 6754 | J27: 55548 | K27: 10555 | L27: 114918.9823 | M27: 11608.70052 | N27: 13135.53976 | O27: 36673.18751 | P27: 155500 | Q27: 32360.71832 | S27: =INDEX(A27:Q27,'EDB data'!$C$5+1) -> 32360.71832
A28: Closing RAB | B28: 313091.8271 | D28: 360224 | E28: 113034.1658 | F28: 222586.9744 | G28: 167393.7445 | H28: 50132.1691 | I28: 225439 | J28: 1566054 | K28: 285678 | L28: 2796870.378 | M28: 284366.1182 | N28: 362367.6035 | O28: 886494.9259 | P28: 4193945 | Q28: 847276.4756 | S28: =INDEX(A28:Q28,'EDB data'!$C$5+1) -> 847276.4756
A29: Opening RAB excluding revaluations | B29: 237625.6187 | D29: 273613 | E29: 84867 | F29: 171771.6886 | G29: 130630.0465 | H29: 38945 | I29: 166965 | J29: 1162991 | K29: 213020 | L29: 2117854.074 | M29: 189820.3398 | N29: 263857.2784 | O29: 647140.233 | P29: 3078362 | Q29: 632965.6053 | S29: =INDEX(A29:Q29,'EDB data'!$C$5+1) -> 632965.6053
A30: Adjusted depreciation | B30: 9889.340772 | D30: 9670 | E30: 3183 | F30: 6467.39296 | G30: 5392.82601 | H30: 1312 | I30: 4841 | J30: 43593 | K30: 8299 | L30: 93584.56128 | M30: 9271.209779 | N30: 9786.039147 | O30: 28718.535 | P30: 122389 | Q30: 26367.51708 | S30: =INDEX(A30:Q30,'EDB data'!$C$5+1) -> 26367.51708
A31: Tax depreciation | B31: 13141.03218 | D31: 12383 | E31: 3992.169 | F31: 19106.89816 | G31: 5980.887029 | H31: 1426 | I31: 7042 | J31: 49825 | K31: 15918 | L31: 111265.9381 | M31: 7448.14072 | N31: 12479.39764 | O31: 40078.25731 | P31: 161700 | Q31: 31481.72074 | S31: =INDEX(A31:Q31,'EDB data'!$C$5+1) -> 31481.72074
A32: Opening regulatory tax asset value | B32: 139389.6894 | D32: 154927 | E32: 48341.68612 | F32: 78284.71742 | G32: 65434.91187 | H32: 18988 | I32: 83893 | J32: 568706 | K32: 101474 | L32: 1463848.012 | M32: 69145.04418 | N32: 157601.3023 | O32: 383709 | P32: 1447404 | Q32: 399511.951 | S32: =INDEX(A32:Q32,'EDB data'!$C$5+1) -> 399511.951
A33: Amortisation of initial differences in asset values | B33: 2647.133883 | D33: 2067.648406 | E33: 1248.571429 | F33: 1900.57606 | G33: 4218.944535 | H33: 693.0666667 | I33: 3235.60248 | J33: 15583.26316 | K33: 1327.058824 | L33: 9617.458587 | M33: 4085.302329 | N33: 3399.105263 | O33: 5670.133333 | P33: 31189.26923 | Q33: 7150.784348 | S33: =INDEX(A33:Q33,'EDB data'!$C$5+1) -> 7150.784348
A34: Term credit spread differential allowance | B34: 0 | D34: 0 | E34: 0 | F34: 0 | G34: 0 | H34: 0 | I34: 0 | J34: 1551.233351 | K34: 0 | L34: 2577.988664 | M34: 0 | N34: 0 | O34: 519.3691809 | P34: 4078.701029 | Q34: 375.8153725 | S34: =INDEX(A34:Q34,'EDB data'!$C$5+1) -> 375.8153725
A35: Opening deferred tax balance | B35: -19140.52557 | D35: -17374.91606 | E35: -5780.784643 | F35: -14443.51235 | G35: 0 | H35: -2446 | I35: -4576.831689 | J35: -70345 | K35: -23927 | L35: -106605.0699 | M35: -20927.0254 | N35: -19043.16806 | O35: -44705 | P35: -145959 | Q35: -49298.29954 | S35: =INDEX(A35:Q35,'EDB data'!$C$5+1) -> -49298.29954
A36: Adjustment factor (for accelerated depreciation) | B36: 1 | D36: 1 | E36: 1 | F36: 1 | G36: 1 | H36: 1 | I36: 1 | J36: 1 | K36: 1 | L36: 1 | M36: 1 | N36: 1 | O36: 1 | P36: 1 | Q36: 1 | S36: =INDEX(A36:Q36,'EDB data'!$C$5+1) -> 1
A37: ="Additional allowance (PV at 1-Apr-" & MID(E6,3,2) & ")" -> Additional allowance (PV at 1-Apr-25) | B37: 0 | D37: 0 | E37: 0 | F37: 0 | G37: 0 | H37: 0 | I37: 0 | J37: 0 | K37: 0 | L37: 0 | M37: 0 | N37: 0 | O37: 0 | P37: 0 | Q37: 0 | S37: =INDEX(A37:Q37,'EDB data'!$C$5+1) -> 0
A38: X factor | B38: 0 | D38: -0.107 | E38: -0.077 | F38: -0.102 | G38: -0.024 | H38: -0.071 | I38: -0.083 | J38: -0.098 | K38: -0.123 | L38: -0.039 | M38: -0.06 | N38: -0.135 | O38: -0.118 | P38: -0.08 | Q38: -0.096 | S38: =INDEX(A38:Q38,'EDB data'!$C$5+1) -> -0.096
A39: Operating expenditure
A40: ="Operating expenditure, " & U11 -> Operating expenditure, 2025/26 | B40: 35194.99754 | D40: 17306.34517 | E40: 6808.290398 | F40: 17203.12831 | G40: 14517.20461 | H40: 2729.900705 | I40: 17074.01825 | J40: 94623.96877 | K40: 11772.85037 | L40: 137742.3844 | M40: 20290.83787 | N40: 26345.73431 | O40: 58104.59611 | P40: 194846.7094 | Q40: 45192.98348 | S40: =INDEX(A40:Q40,'EDB data'!$C$5+1) -> 45192.98348
A41: ="Operating expenditure, " & U12 -> Operating expenditure, 2026/27 | B41: 36447.67042 | D41: 17657.56294 | E41: 7064.12018 | F41: 17707.7962 | G41: 15697.19727 | H41: 2818.070738 | I41: 17687.63734 | J41: 98624.43376 | K41: 12315.40597 | L41: 143835.9861 | M41: 21181.23588 | N41: 27080.44229 | O41: 61492.11714 | P41: 202840.8593 | Q41: 46782.32832 | S41: =INDEX(A41:Q41,'EDB data'!$C$5+1) -> 46782.32832
A42: ="Operating expenditure, " & U13 -> Operating expenditure, 2027/28 | B42: 37760.70436 | D42: 18024.54871 | E42: 7306.191113 | F42: 18234.59132 | G42: 14777.4765 | H42: 2909.976725 | I42: 18330.3132 | J42: 102887.5317 | K42: 12817.50507 | L42: 151198.462 | M42: 21857.09066 | N42: 27845.49167 | O42: 62895.55441 | P42: 211305.2583 | Q42: 48443.68719 | S42: =INDEX(A42:Q42,'EDB data'!$C$5+1) -> 48443.68719
A43: ="Operating expenditure, " & U14 -> Operating expenditure, 2028/29 | B43: 39152.32535 | D43: 18415.04506 | E43: 7562.065659 | F43: 18791.80569 | G43: 15095.7237 | H43: 3006.982202 | I43: 19010.92312 | J43: 108278.048 | K43: 13349.74899 | L43: 157357.2174 | M43: 22571.93491 | N43: 28653.36377 | O43: 65885.46075 | P43: 220359.9534 | Q43: 50200.36864 | S43: =INDEX(A43:Q43,'EDB data'!$C$5+1) -> 50200.36864
A44: ="Operating expenditure, " & U15 -> Operating expenditure, 2029/30 | B44: 40607.45084 | D44: 18820.87919 | E44: 7828.740778 | F44: 19371.61902 | G44: 15639.75317 | H44: 3107.865968 | I44: 19722.14759 | J44: 112791.7525 | K44: 13907.3204 | L44: 164307.8296 | M44: 23316.56008 | N44: 29491.8826 | O44: 69138.71382 | P44: 229945.5803 | Q44: 52032.7498 | S44: =INDEX(A44:Q44,'EDB data'!$C$5+1) -> 52032.7498
A45: Value of commissioned assets
A46: ="Value of commissioned assets, " & U9 -> Value of commissioned assets, 2023/24 | B46: 25370.24301 | D46: 16101 | E46: 6602.296 | F46: 14110.91848 | G46: 9342.19 | H46: 1755.40718 | I46: 15016 | J46: 131614 | K46: 19787 | L46: 238086.9777 | M46: 21089.35454 | N46: 18577.51892 | O46: 88256.01865 | P46: 305660 | Q46: 53542.8077 | S46: =INDEX(A46:Q46,'EDB data'!$C$5+1) -> 53542.8077
A47: Value of commissioned assets, 2024/25 | B47: 33458.9494 | D47: 14289.03292 | E47: 6364.298486 | F47: 21200.05301 | G47: 12144.62845 | H47: 3018.185034 | I47: 20972.25149 | J47: 128866.2058 | K47: 16760.48554 | L47: 283102.6972 | M47: 29222.94148 | N47: 32126.80425 | O47: 84341.25858 | P47: 264162.4166 | Q47: 47330.14159 | S47: =INDEX(A47:Q47,'EDB data'!$C$5+1) -> 47330.14159
A48: Value of commissioned assets, 2025/26 | B48: 33806.99194 | D48: 18566.87893 | E48: 6900.836005 | F48: 18611.83946 | G48: 11816.6664 | H48: 2259.842226 | I48: 25319.67118 | J48: 120360.8659 | K48: 23507.63336 | L48: 309756.0493 | M48: 29411.71078 | N48: 26152.89331 | O48: 82704.05869 | P48: 356171.9863 | Q48: 63757.49838 | S48: =INDEX(A48:Q48,'EDB data'!$C$5+1) -> 63757.49838
A49: Value of commissioned assets, 2026/27 | B49: 31634.19315 | D49: 16034.82683 | E49: 9274.091234 | F49: 18902.87269 | G49: 13846.96714 | H49: 2733.287377 | I49: 21606.71458 | J49: 147674.3303 | K49: 32543.26386 | L49: 332459.3094 | M49: 27168.45612 | N49: 24209.84478 | O49: 93763.55206 | P49: 347752.7412 | Q49: 98923.98429 | S49: =INDEX(A49:Q49,'EDB data'!$C$5+1) -> 98923.98429
A50: Value of commissioned assets, 2027/28 | B50: 28622.66127 | D50: 16081.98247 | E50: 9938.855278 | F50: 14929.74188 | G50: 13388.38161 | H50: 2861.223642 | I50: 19196.71612 | J50: 140489.2276 | K50: 33332.74797 | L50: 361289.8525 | M50: 23544.60511 | N50: 24626.1179 | O50: 91072.78334 | P50: 303643.797 | Q50: 93105.21328 | S50: =INDEX(A50:Q50,'EDB data'!$C$5+1) -> 93105.21328
A51: Value of commissioned assets, 2028/29 | B51: 25578.15711 | D51: 15972.1822 | E51: 8196.960384 | F51: 17173.28506 | G51: 12257.67163 | H51: 2463.598589 | I51: 16928.87124 | J51: 147353.1362 | K51: 35965.28263 | L51: 369744.5983 | M51: 24912.5412 | N51: 25349.1084 | O51: 93754.67526 | P51: 263077.4054 | Q51: 94087.48626 | S51: =INDEX(A51:Q51,'EDB data'!$C$5+1) -> 94087.48626
A52: Value of commissioned assets, 2029/30 | B52: 30227.97351 | D52: 16161.52336 | E52: 9826.051406 | F52: 16722.1888 | G52: 12210.00652 | H52: 2462.348694 | I52: 17036.92609 | J52: 151493.1718 | K52: 37734.02371 | L52: 387880.1989 | M52: 24008.82504 | N52: 24401.7391 | O52: 114647.1196 | P52: 271317.3418 | Q52: 75812.50367 | S52: =INDEX(A52:Q52,'EDB data'!$C$5+1) -> 75812.50367
A53: Disposed assets
A54: ="Value of disposed assets, " & U9 -> Value of disposed assets, 2023/24 | B54: 328.0608029 | D54: 1374 | E54: 163.1548838 | F54: 39.5122 | G54: 323.5100072 | H54: 864.0821003 | I54: 2275 | J54: 783 | K54: 111 | L54: 20095.84439 | M54: 390.8709484 | N54: 2.26271 | O54: 2129.56198 | P54: 18055 | Q54: 0 | S54: =INDEX(A54:Q54,'EDB data'!$C$5+1) -> 0
A55: Value of disposed assets, 2024/25 | B55: 81.60049399 | D55: 998.7072442 | E55: 119.201578 | F55: 33.049067 | G55: 516.7963992 | H55: 178.8006587 | I55: 1228.374563 | J55: 1003.36858 | K55: 117.1373317 | L55: 19152.94845 | M55: 270.2147869 | N55: 337.0157619 | O55: 1693.041535 | P55: 17002.19096 | Q55: 0 | S55: =INDEX(A55:Q55,'EDB data'!$C$5+1) -> 0
A56: Value of disposed assets, 2025/26 | B56: 83.31410437 | D56: 1019.680096 | E56: 121.7048111 | F56: 33.74309741 | G56: 527.6491236 | H56: 182.5554725 | I56: 1254.170429 | J56: 1024.439321 | K56: 119.5972156 | L56: 19555.16037 | M56: 275.8892974 | N56: 344.0930929 | O56: 1728.595407 | P56: 17359.23697 | Q56: 0 | S56: =INDEX(A56:Q56,'EDB data'!$C$5+1) -> 0
A57: Value of disposed assets, 2026/27 | B57: 84.98038645 | D57: 1040.073698 | E57: 124.1389074 | F57: 34.41795936 | G57: 538.2021061 | H57: 186.2065819 | I57: 1279.253838 | J57: 1044.928107 | K57: 121.9891599 | L57: 19946.26357 | M57: 281.4070833 | N57: 350.9749548 | O57: 1763.167315 | P57: 17706.42171 | Q57: 0 | S57: =INDEX(A57:Q57,'EDB data'!$C$5+1) -> 0
A58: Value of disposed assets, 2027/28 | B58: 86.67999418 | D58: 1060.875172 | E58: 126.6216855 | F58: 35.10631855 | G58: 548.9661482 | H58: 189.9307136 | I58: 1304.838915 | J58: 1065.826669 | K58: 124.4289431 | L58: 20345.18885 | M58: 287.035225 | N58: 357.9944539 | O58: 1798.430661 | P58: 18060.55015 | Q58: 0 | S58: =INDEX(A58:Q58,'EDB data'!$C$5+1) -> 0
A59: Value of disposed assets, 2028/29 | B59: 88.41359407 | D59: 1082.092676 | E59: 129.1541192 | F59: 35.80844492 | G59: 559.9454712 | H59: 193.7293278 | I59: 1330.935693 | J59: 1087.143202 | K59: 126.917522 | L59: 20752.09262 | M59: 292.7759295 | N59: 365.154343 | O59: 1834.399275 | P59: 18421.76115 | Q59: 0 | S59: =INDEX(A59:Q59,'EDB data'!$C$5+1) -> 0
A60: Value of disposed assets, 2029/30 | B60: 90.18186595 | D60: 1103.734529 | E60: 131.7372016 | F60: 36.52461382 | G60: 571.1443806 | H60: 197.6039144 | I60: 1357.554407 | J60: 1108.886066 | K60: 129.4558725 | L60: 21167.13448 | M60: 298.6314481 | N60: 372.4574298 | O60: 1871.08726 | P60: 18790.19637 | Q60: 0 | S60: =INDEX(A60:Q60,'EDB data'!$C$5+1) -> 0
A61: Depreciation of existing assets
A62: ="The sum of depreciation for existing assets, " & U10 -> The sum of depreciation for existing assets, 2024/25 | B62: 12488.96284 | D62: 13098.06932 | E62: 4296.621314 | F62: 8496.556218 | G62: 7940.4469 | H62: 2118.08658 | I62: 8449.7 | J62: 58459.24209 | K62: 11443 | L62: 113914.9738 | M62: 12271.73632 | N62: 13351.16962 | O62: 41174.03271 | P62: 175923.1315 | Q62: 32841.67495 | S62: =INDEX(A62:Q62,'EDB data'!$C$5+1) -> 32841.67495
A63: The sum of depreciation for existing assets, 2025/26 | B63: 12361.61967 | D63: 13274.07236 | E63: 4337.263579 | F63: 8519.863983 | G63: 7836.073781 | H63: 2142.309937 | I63: 7962.703785 | J63: 58098.12903 | K63: 11148.01198 | L63: 108305.7703 | M63: 11654.56284 | N63: 13336.45105 | O63: 39456.55467 | P63: 169179.1457 | Q63: 32843.93517 | S63: =INDEX(A63:Q63,'EDB data'!$C$5+1) -> 32843.93517
A64: The sum of depreciation for existing assets, 2026/27 | B64: 12251.32475 | D64: 13381.102 | E64: 4368.135938 | F64: 8511.550536 | G64: 7669.030213 | H64: 2170.410292 | I64: 7102.901166 | J64: 56973.91374 | K64: 10941.50102 | L64: 103780.7886 | M64: 10617.70894 | N64: 13072.01499 | O64: 38115.25157 | P64: 161754.8025 | Q64: 31024.9241 | S64: =INDEX(A64:Q64,'EDB data'!$C$5+1) -> 31024.9241
A65: The sum of depreciation for existing assets, 2027/28 | B65: 12189.7004 | D65: 13501.53064 | E65: 4404.284097 | F65: 8280.036402 | G65: 7524.706884 | H65: 1871.303435 | I65: 6908.700447 | J65: 56422.60575 | K65: 10876.19896 | L65: 100656.3661 | M65: 10544.75728 | N65: 12987.68143 | O65: 35950.35578 | P65: 157291.8619 | Q65: 30680.48695 | S65: =INDEX(A65:Q65,'EDB data'!$C$5+1) -> 30680.48695
A66: The sum of depreciation for existing assets, 2028/29 | B66: 12242.79078 | D66: 13633.90013 | E66: 4433.149059 | F66: 8349.842138 | G66: 7247.122632 | H66: 1857.929977 | I66: 6878.350484 | J66: 55770.28222 | K66: 10912.62865 | L66: 99440.57075 | M66: 10364.74253 | N66: 13104.54388 | O66: 34615.51131 | P66: 157085.2332 | Q66: 30537.5417 | S66: =INDEX(A66:Q66,'EDB data'!$C$5+1) -> 30537.5417
A67: The sum of depreciation for existing assets, 2029/30 | B67: 12296.61672 | D67: 13786.42706 | E67: 4375.512454 | F67: 8190.556541 | G67: 7134.83207 | H67: 1782.449818 | I67: 6888.906957 | J67: 55310.5512 | K67: 10782.56218 | L67: 98824.05936 | M67: 10300.21495 | N67: 13063.45402 | O67: 33944.05957 | P67: 151141.884 | Q67: 30361.68841 | S67: =INDEX(A67:Q67,'EDB data'!$C$5+1) -> 30361.68841

Sheet EDB data
A1: Inputs for the selected distributor | H1: =EDB_Name -> Wellington Electricity
A2: Data from the Inputs sheet that relates to the selected distributor. The distributor's name is user-selected in cell C4.
A3: Distributor | C3: Scenario
A4: Name | C4: =SelectedEDB -> Wellington Electricity
A5: Distributor number | C5: =MATCH(EDB_Name,rEDBNames) -> 16
A7: General data
A8: Non business-specific single inputs | B8: Value
A9: =Inputs!A16 -> Vanilla WACC (65th percentile) | B9: =Inputs!B16 -> 0.071
A10: =Inputs!A17 -> Cost of debt | B10: =Inputs!B17 -> 0.0574
A11: =Inputs!A18 -> Leverage | B11: =Inputs!B18 -> 0.41
A12: =Inputs!A19 -> Years of remaining life for newly commissioned assets | B12: =Inputs!B19 -> 44 | C12: years
A13: =Inputs!A20 -> Industry-wide X factor | B13: =Inputs!B20 -> 0
A14: =Inputs!A12 -> Days in a year | B14: =Inputs!B12 -> 365 | C14: days
A15: =Inputs!A13 -> Days from mid-year to year-end | B15: =Inputs!B13 -> 182 | C15: days
A16: =Inputs!A14 -> Days from revenue date to year-end | B16: =Inputs!B14 -> 148 | C16: days
A17: =Inputs!A15 -> Last day of the base year | B17: =Inputs!B15 -> 2024-03-31
A18: General time-series data
B19: =Inputs!C6 -> 2023/24 | C19: =Inputs!D6 -> 2024/25 | D19: =Inputs!E6 -> 2025/26 | E19: =Inputs!F6 -> 2026/27 | F19: =Inputs!G6 -> 2027/28 | G19: =Inputs!H6 -> 2028/29 | H19: =Inputs!I6 -> 2029/30
A20: =Inputs!A7 -> Year in modelling period | B20: =Inputs!C7 -> 1 | C20: =Inputs!D7 -> 2 | D20: =Inputs!E7 -> 3 | E20: =Inputs!F7 -> 4 | F20: =Inputs!G7 -> 5 | G20: =Inputs!H7 -> 6 | H20: =Inputs!I7 -> 7
A21: =Inputs!A8 -> Year in regulatory period | D21: =Inputs!E8 -> 1 | E21: =Inputs!F8 -> 2 | F21: =Inputs!G8 -> 3 | G21: =Inputs!H8 -> 4 | H21: =Inputs!I8 -> 5
A22: =Inputs!A9 -> Forecast changes in CPI used for revaluations | B22: =Inputs!C9 -> 0.04022988506 | C22: =Inputs!D9 -> 0.022 | D22: =Inputs!E9 -> 0.021 | E22: =Inputs!F9 -> 0.02 | F22: =Inputs!G9 -> 0.02 | G22: =Inputs!H9 -> 0.02 | H22: =Inputs!I9 -> 0.02
A23: =Inputs!A10 -> Forecast changes in the CPI element of the price path | D23: =Inputs!E10 -> 0.0227449287 | E23: =Inputs!F10 -> 0.02 | F23: =Inputs!G10 -> 0.02 | G23: =Inputs!H10 -> 0.02 | H23: =Inputs!I10 -> 0.02
A24: =Inputs!A11 -> Company tax rate | B24: =Inputs!C11 -> 0.28 | C24: =Inputs!D11 -> 0.28 | D24: =Inputs!E11 -> 0.28 | E24: =Inputs!F11 -> 0.28 | F24: =Inputs!G11 -> 0.28 | G24: =Inputs!H11 -> 0.28 | H24: =Inputs!I11 -> 0.28
A26: Business-specific data
A27: Initial conditions
A28: =Inputs!A26 -> Opening RAB | B28: =Inputs!S26 -> 803430.1662
A29: =Inputs!A27 -> Total depreciation | B29: =Inputs!S27 -> 32360.71832
A30: =Inputs!A28 -> Closing RAB | B30: =Inputs!S28 -> 847276.4756
A31: =Inputs!A29 -> Opening RAB excluding revaluations | B31: =Inputs!S29 -> 632965.6053
A32: =Inputs!A30 -> Adjusted depreciation | B32: =Inputs!S30 -> 26367.51708
A33: =Inputs!A31 -> Tax depreciation | B33: =Inputs!S31 -> 31481.72074
A34: =Inputs!A32 -> Opening regulatory tax asset value | B34: =Inputs!S32 -> 399511.951
A35: =Inputs!A33 -> Amortisation of initial differences in asset values | B35: =Inputs!S33 -> 7150.784348
A36: =Inputs!A34 -> Term credit spread differential allowance | B36: =Inputs!S34 -> 375.8153725
A37: =Inputs!A35 -> Opening deferred tax balance | B37: =Inputs!S35 -> -49298.29954
A38: =Inputs!A36 -> Adjustment factor (for accelerated depreciation) | B38: =Inputs!S36 -> 1
A39: =Inputs!A37 -> Additional allowance (PV at 1-Apr-25) | B39: =Inputs!S37 -> 0
A40: =Inputs!A38 -> X factor | B40: =Inputs!S38 -> -0.096
A41: Operating expenditure | B41: Original opex
A42: =Inputs!A40 -> Operating expenditure, 2025/26 | B42: =TRANSPOSE(Reopener!D118:H118) -> 45192.98348
A43: =Inputs!A41 -> Operating expenditure, 2026/27 | B43: 46782.32832
A44: =Inputs!A42 -> Operating expenditure, 2027/28 | B44: 48443.68719
A45: =Inputs!A43 -> Operating expenditure, 2028/29 | B45: 50200.36864
A46: =Inputs!A44 -> Operating expenditure, 2029/30 | B46: 52032.7498
A48: Value of commissioned assets
A49: =Inputs!A46 -> Value of commissioned assets, 2023/24 | B49: =Inputs!S46 -> 53542.8077
A50: =Inputs!A47 -> Value of commissioned assets, 2024/25 | B50: =Inputs!S47 -> 47330.14159
A51: =Inputs!A48 -> Value of commissioned assets, 2025/26 | B51: =TRANSPOSE(Reopener!D119:H119) -> 63757.49838
A52: =Inputs!A49 -> Value of commissioned assets, 2026/27 | B52: 98923.98429
A53: =Inputs!A50 -> Value of commissioned assets, 2027/28 | B53: 93105.21328
A54: =Inputs!A51 -> Value of commissioned assets, 2028/29 | B54: 106566.5707
A55: =Inputs!A52 -> Value of commissioned assets, 2029/30 | B55: 75812.50367
A57: Disposed assets
A58: =Inputs!A54 -> Value of disposed assets, 2023/24 | B58: =Inputs!S54 -> 0
A59: =Inputs!A55 -> Value of disposed assets, 2024/25 | B59: =Inputs!S55 -> 0
A60: =Inputs!A56 -> Value of disposed assets, 2025/26 | B60: =Inputs!S56 -> 0
A61: =Inputs!A57 -> Value of disposed assets, 2026/27 | B61: =Inputs!S57 -> 0
A62: =Inputs!A58 -> Value of disposed assets, 2027/28 | B62: =Inputs!S58 -> 0
A63: =Inputs!A59 -> Value of disposed assets, 2028/29 | B63: =Inputs!S59 -> 0
A64: =Inputs!A60 -> Value of disposed assets, 2029/30 | B64: =Inputs!S60 -> 0
A66: Depreciation of existing assets
A67: ="Depreciation of existing assets, " & Inputs!U10 -> Depreciation of existing assets, 2024/25 | B67: =Inputs!S62 -> 32841.67495
A68: ="Depreciation of existing assets, " & Inputs!U11 -> Depreciation of existing assets, 2025/26 | B68: =Inputs!S63 -> 32843.93517
A69: ="Depreciation of existing assets, " & Inputs!U12 -> Depreciation of existing assets, 2026/27 | B69: =Inputs!S64 -> 31024.9241
A70: ="Depreciation of existing assets, " & Inputs!U13 -> Depreciation of existing assets, 2027/28 | B70: =Inputs!S65 -> 30680.48695
A71: ="Depreciation of existing assets, " & Inputs!U14 -> Depreciation of existing assets, 2028/29 | B71: =Inputs!S66 -> 30537.5417
A72: ="Depreciation of existing assets, " & Inputs!U15 -> Depreciation of existing assets, 2029/30 | B72: =Inputs!S67 -> 30361.68841

Sheet Timing
A1: Intra-year timing
A2: Derivation of the five timing factors TFopex, TFtax, TFVCA and TFrev.
A3: Inputs
B4: From | C4: Value
A5: Last day of year 1 of the DPP period | B5: EDB data | C5: =EOMONTH('EDB data'!$B$17,24) -> 2026-03-31 | D5: =EOMONTH('EDB data'!$B$17,24) -> 2026-03-31
A6: Days in a year | B6: EDB data | C6: ='EDB data'!B14 -> 365
A7: Days from mid-year to year-end | B7: EDB data | C7: ='EDB data'!B15 -> 182
A8: Days from revenue date to year-end | B8: EDB data | C8: ='EDB data'!B16 -> 148
A9: Vanilla WACC (67th percentile) | B9: EDB data | C9: =WACC -> 0.071
A10: Calculations
C11: Value
A12: Mid-year date | C12: =EOMONTH(C5,-6) -> 2025-09-30
A13: Revenue date | C13: =C5-C8 -> 2025-11-03 | D13: As demonstrated below, 12 equal monthly transactions on the 20th of the following month can be approximated by a single payment on the revenue date.
A14: Operating expenditure date | C14: =C12 -> 2025-09-30 | D14: i.e. mid-year
A15: Tax date | C15: =C12 -> 2025-09-30 | D15: i.e. mid-year
A16: Asset commissioning date | C16: =C12 -> 2025-09-30 | D16: i.e. mid-year
A17: Interest date | C17: =C12 -> 2025-09-30 | D17: i.e. mid-year
A18: Asset disposal date | C18: =C12 -> 2025-09-30 | D18: i.e. mid-year
A19: TF for mid-year cash flows | C19: =(1+$C$9)^(C7/C6) -> 1.034794062 | D19: Intra-year timing factors: discount from mid year to end of year values
A20: TFrev | C20: =(1+$C$9)^(C8/C6) -> 1.028203359 | D20: Intra-year timing factor: discount from revenue date to end of year values
A21: Outputs
C22: Value
A23: TFopex | C23: =$C$19 -> 1.034794062
A24: TFtax | C24: =$C$19 -> 1.034794062
A25: TFVCA | C25: =$C$19 -> 1.034794062
A26: TFrev | C26: =$C$20 -> 1.028203359
A27: Check for timing of revenue receipt
A28: Demonstration that a 4 November receipt date for all revenues in a year ending 31 March is almost identical to
A29: receiving 12 equal revenue amounts on the 20th of the month following the provision of service.
A30: Monthly cash flows
A31: Dates of receipt of revenues | C31: =EDATE(C5,-12) -> 2025-03-31 | D31: =EOMONTH(C31,1)+20 -> 2025-05-20 | E31: =EDATE(D31,1) -> 2025-06-20 | F31: 2025-07-20 | G31: 2025-08-20 | H31: 2025-09-20 | I31: 2025-10-20 | J31: 2025-11-20 | K31: 2025-12-20 | L31: 2026-01-20 | M31: 2026-02-20 | N31: 2026-03-20 | O31: 2026-04-20
A32: Indexed amount of revenue | C32: 0 | D32: 1 | E32: 1 | F32: 1 | G32: 1 | H32: 1 | I32: 1 | J32: 1 | K32: 1 | L32: 1 | M32: 1 | N32: 1 | O32: 1
A34: Equivalent single cash flow
A35: Dates of receipt of revenues | C35: =C31 -> 2025-03-31 | D35: =C13 -> 2025-11-03
A36: Indexed amount of revenue | C36: 0 | D36: 12
A38: Present value | C38: Value
A39: ="PV as at "&TEXT(EOMONTH(C5,-12),"dd mmm yy")&" of the series of unit amounts" -> PV as at 31 Mar 25 of the series of unit amounts | C39: =XNPV(C9,C32:O32,C31:O31) -> 11.52021164
A40: PV of the equivalent single amount | C40: =XNPV(C9,C36:D36,C35:D35) -> 11.52048582
A41: ="Difference in PV for a date of " & TEXT(D35,"d mmm") -> Difference in PV for a date of 3 Nov | C41: =C39-C40 -> -0.0002741785342
A42: Percentage difference | C42: =C41/C39 -> -2.379978275e-05

Sheet RAB
A1: Regulatory asset base | J1: =EDB_Name -> Wellington Electricity
A2: Calculations involving the roll-forward of asset values.
A4: Inputs
B5: From | C5: Value | D5: =Inputs!C$6 -> 2023/24 | E5: =Inputs!D$6 -> 2024/25 | F5: =Inputs!E$6 -> 2025/26 | G5: =Inputs!F$6 -> 2026/27 | H5: =Inputs!G$6 -> 2027/28 | I5: =Inputs!H$6 -> 2028/29 | J5: =Inputs!I$6 -> 2029/30
A6: Opening RAB | B6: EDB data | C6: ='EDB data'!B28 -> 803430.1662
A7: Total depreciation | B7: EDB data | C7: ='EDB data'!B29 -> 32360.71832
A8: Closing RAB | B8: EDB data | C8: ='EDB data'!B30 -> 847276.4756
A9: Disposed assets | B9: EDB data | D9: =TRANSPOSE('EDB data'!B58:B64) -> 0 | E9: 0 | F9: 0 | G9: 0 | H9: 0 | I9: 0 | J9: 0
A10: Value of commissioned assets | B10: EDB data | D10: =TRANSPOSE('EDB data'!B49:B55) -> 53542.8077 | E10: 47330.14159 | F10: 63757.49838 | G10: 98923.98429 | H10: 93105.21328 | I10: 106566.5707 | J10: 75812.50367
A11: Remaining life of newly commissioned assets | B11: EDB data | C11: ='EDB data'!B12 -> 44
A12: Term credit spread differential allowance, base year | B12: EDB data | C12: ='EDB data'!B36 -> 375.8153725
A13: Forecast changes in CPI used for revaluations | B13: EDB data | D13: ='EDB data'!B22 -> 0.04022988506 | E13: ='EDB data'!C22 -> 0.022 | F13: ='EDB data'!D22 -> 0.021 | G13: ='EDB data'!E22 -> 0.02 | H13: ='EDB data'!F22 -> 0.02 | I13: ='EDB data'!G22 -> 0.02 | J13: ='EDB data'!H22 -> 0.02
A14: Adjustment factor (for accelerated depreciation) | B14: EDB data | C14: ='EDB data'!B38 -> 1
A15: The sum of depreciation for existing assets | B15: EDB data | E15: =TRANSPOSE(Inputs!S62:S67) -> 32841.67495 | F15: 32843.93517 | G15: 31024.9241 | H15: 30680.48695 | I15: 30537.5417 | J15: 30361.68841
A17: Calculations
D18: Base year | E18: Gap year | F18: First year of reg period
A19: Roll forward of existing assets | D19: =Inputs!C$6 -> 2023/24 | E19: =Inputs!D$6 -> 2024/25 | F19: =Inputs!E$6 -> 2025/26 | G19: =Inputs!F$6 -> 2026/27 | H19: =Inputs!G$6 -> 2027/28 | I19: =Inputs!H$6 -> 2028/29 | J19: =Inputs!I$6 -> 2029/30 | L19: References
A20: Opening RAB value of existing assets | D20: =C6 -> 803430.1662 | E20: =D24 -> 847276.4756 | F20: 833056.243 | G20: 817688.9948 | H20: 803001.4968 | I20: 788364.9797 | J20: 773578.9703 | L20: 4.2.1(2)(b)
A21: Disposed assets | D21: =D9 -> 0 | E21: =E9 -> 0 | F21: 0 | G21: 0 | H21: 0 | I21: 0 | J21: 0 | L21: simple ref
A22: Revaluation of existing assets | D22: =(D20*0.999-D21)*D13 -> 32289.58133 | E22: =(E20*0.999-E21)*E13 -> 18621.44238 | F22: 17476.68692 | G22: 16337.42612 | H22: 16043.96991 | I22: 15751.5323 | J22: 15456.10783 | L22: 4.2.3(2)(a)
A23: Depreciation of existing assets | E23: =E15 -> 32841.67495 | F23: 32843.93517 | G23: 31024.9241 | H23: 30680.48695 | I23: 30537.5417 | J23: 30361.68841 | L23: 4.2.2(2)(a)(ii)
A24: Closing RAB value of existing assets | D24: =C8 -> 847276.4756 | E24: =E20-E23+E22-E21 -> 833056.243 | F24: 817688.9948 | G24: 803001.4968 | H24: 788364.9797 | I24: 773578.9703 | J24: 758673.3898 | L24: 4.2.1(3)(b)
A25: Remaining asset life of existing assets | E25: =E20/E23 -> 25.79882045 | F25: =$C$14*F20/F23 -> 25.36408133 | G25: =$C$14*G20/G23 -> 26.35587414 | H25: =$C$14*H20/H23 -> 26.17303624 | I25: =$C$14*I20/I23 -> 25.81625553 | J25: =$C$14*J20/J23 -> 25.47878628 | L25: 4.2.2(3)(a)(ii)
A27: Individual roll forward of additional assets | D27: =Inputs!C$6 -> 2023/24 | E27: =Inputs!D$6 -> 2024/25 | F27: =Inputs!E$6 -> 2025/26 | G27: =Inputs!F$6 -> 2026/27 | H27: =Inputs!G$6 -> 2027/28 | I27: =Inputs!H$6 -> 2028/29 | J27: =Inputs!I$6 -> 2029/30
A28: Year in modelling period | D28: 1 | E28: =D28+1 -> 2 | F28: 3 | G28: 4 | H28: 5 | I28: 6 | J28: 7
A29: Revaluation rate | D29: =D13 -> 0.04022988506 | E29: 0.022 | F29: 0.021 | G29: 0.02 | H29: 0.02 | I29: 0.02 | J29: 0.02 | L29: simple ref
A30: Commissioned assets | D30: =D$10 -> 53542.8077 | E30: 47330.14159 | F30: 63757.49838 | G30: 98923.98429 | H30: 93105.21328 | I30: 106566.5707 | J30: 75812.50367 | L30: simple ref
A31: =" Assets commissioned in " & $E$27 -> Assets commissioned in 2024/25
A32: Year asset is added during modelling period | C32: =E28 -> 2
A33: Opening RAB | D33: 0 | E33: =D37 -> 0 | F33: 47330.14159 | G33: 47248.38953 | H33: 47094.55756 | I33: 46915.14973 | J33: 46709.18078 | L33: 4.2.1(4)
A34: Years of remaining life | D34: =$C$11+$C32 -> 46 | E34: =D34-1 -> 45 | F34: 44 | G34: 43 | H34: 42 | I34: 41 | J34: 40 | L34: 4.2.2(3)(b)
A35: Revaluation of assets | D35: =D33*D$29 -> 0 | E35: 0 | F35: 993.9329734 | G35: 944.9677906 | H35: 941.8911513 | I35: 938.3029945 | J35: 934.1836155 | L35: 4.2.3(2)(b)
A36: Depreciation of assets | D36: =D33/D34 -> 0 | E36: 0 | F36: 1075.685036 | G36: 1098.799757 | H36: 1121.29899 | I36: 1144.271945 | J36: 1167.729519 | L36: 4.2.2(2)(b)
A37: Closing RAB | D37: =D33-D36+D35+IF($C32=D$28,D$30,0) -> 0 | E37: 47330.14159 | F37: 47248.38953 | G37: 47094.55756 | H37: 46915.14973 | I37: 46709.18078 | J37: 46475.63487 | L37: 4.2.1(5)(b)
A38: =" Assets commissioned in " & $F$27 -> Assets commissioned in 2025/26
A39: Year asset is added during modelling period | C39: =F28 -> 3
A40: Opening RAB | D40: 0 | E40: =D44 -> 0 | F40: 0 | G40: 63757.49838 | H40: 63583.61429 | I40: 63376.59787 | J40: 63135.16321
A41: Years of remaining life | D41: =$C$11+$C39 -> 47 | E41: =D41-1 -> 46 | F41: 45 | G41: 44 | H41: 43 | I41: 42 | J41: 41
A42: Revaluation of assets | D42: =D40*D$29 -> 0 | E42: 0 | F42: 0 | G42: 1275.149968 | H42: 1271.672286 | I42: 1267.531957 | J42: 1262.703264
A43: Depreciation of assets | D43: =D40/D41 -> 0 | E43: 0 | F43: 0 | G43: 1449.034054 | H43: 1478.688704 | I43: 1508.966616 | J43: 1539.88203
A44: Closing RAB | D44: =D40-D43+D42+IF($C39=D$28,D$30,0) -> 0 | E44: 0 | F44: 63757.49838 | G44: 63583.61429 | H44: 63376.59787 | I44: 63135.16321 | J44: 62857.98445
A45: =" Assets commissioned in " & $G$27 -> Assets commissioned in 2026/27
A46: Year asset is added during modelling period | C46: =G28 -> 4
A47: Opening RAB | D47: 0 | E47: =D51 -> 0 | F47: 0 | G47: 0 | H47: 98923.98429 | I47: 98654.19161 | J47: 98332.99191
A48: Years of remaining life | D48: =$C$11+$C46 -> 48 | E48: =D48-1 -> 47 | F48: 46 | G48: 45 | H48: 44 | I48: 43 | J48: 42
A49: Revaluation of assets | D49: =D47*D$29 -> 0 | E49: 0 | F49: 0 | G49: 0 | H49: 1978.479686 | I49: 1973.083832 | J49: 1966.659838
A50: Depreciation of assets | D50: =D47/D48 -> 0 | E50: 0 | F50: 0 | G50: 0 | H50: 2248.27237 | I50: 2294.283526 | J50: 2341.261712
A51: Closing RAB | D51: =D47-D50+D49+IF($C46=D$28,D$30,0) -> 0 | E51: 0 | F51: 0 | G51: 98923.98429 | H51: 98654.19161 | I51: 98332.99191 | J51: 97958.39004
A52: =" Assets commissioned in " & $H$27 -> Assets commissioned in 2027/28
A53: Year asset is added during modelling period | C53: =H28 -> 5
A54: Opening RAB | D54: 0 | E54: =D58 -> 0 | F54: 0 | G54: 0 | H54: 0 | I54: 93105.21328 | J54: 92851.28997
A55: Years of remaining life | D55: =$C$11+$C53 -> 49 | E55: =D55-1 -> 48 | F55: 47 | G55: 46 | H55: 45 | I55: 44 | J55: 43
A56: Revaluation of assets | D56: =D54*D$29 -> 0 | E56: 0 | F56: 0 | G56: 0 | H56: 0 | I56: 1862.104266 | J56: 1857.025799
A57: Depreciation of assets | D57: =D54/D55 -> 0 | E57: 0 | F57: 0 | G57: 0 | H57: 0 | I57: 2116.027575 | J57: 2159.332325
A58: Closing RAB | D58: =D54-D57+D56+IF($C53=D$28,D$30,0) -> 0 | E58: 0 | F58: 0 | G58: 0 | H58: 93105.21328 | I58: 92851.28997 | J58: 92548.98345
A59: =" Assets commissioned in " & $I$27 -> Assets commissioned in 2028/29
A60: Year asset is added during modelling period | C60: =I28 -> 6
A61: Opening RAB | D61: 0 | E61: =D65 -> 0 | F61: 0 | G61: 0 | H61: 0 | I61: 0 | J61: 106566.5707
A62: Years of remaining life | D62: =$C$11+$C60 -> 50 | E62: =D62-1 -> 49 | F62: 48 | G62: 47 | H62: 46 | I62: 45 | J62: 44
A63: Revaluation of assets | D63: =D61*D$29 -> 0 | E63: 0 | F63: 0 | G63: 0 | H63: 0 | I63: 0 | J63: 2131.331413
A64: Depreciation of assets | D64: =D61/D62 -> 0 | E64: 0 | F64: 0 | G64: 0 | H64: 0 | I64: 0 | J64: 2421.967515
A65: Closing RAB | D65: =D61-D64+D63+IF($C60=D$28,D$30,0) -> 0 | E65: 0 | F65: 0 | G65: 0 | H65: 0 | I65: 106566.5707 | J65: 106275.9346
A66: =" Assets commissioned in " & $J$27 -> Assets commissioned in 2029/30
A67: Year asset is added during modelling period | C67: =J28 -> 7
A68: Opening RAB | D68: 0 | E68: =D72 -> 0 | F68: 0 | G68: 0 | H68: 0 | I68: 0 | J68: 0
A69: Years of remaining life | D69: =$C$11+$C67 -> 51 | E69: =D69-1 -> 50 | F69: 49 | G69: 48 | H69: 47 | I69: 46 | J69: 45
A70: Revaluation of assets | D70: =D68*D$29 -> 0 | E70: 0 | F70: 0 | G70: 0 | H70: 0 | I70: 0 | J70: 0
A71: Depreciation of assets | D71: =D68/D69 -> 0 | E71: 0 | F71: 0 | G71: 0 | H71: 0 | I71: 0 | J71: 0
A72: Closing RAB | D72: =D68-D71+D70+IF($C67=D$28,D$30,0) -> 0 | E72: 0 | F72: 0 | G72: 0 | H72: 0 | I72: 0 | J72: 75812.50367
A75: Aggregate roll forward of additional assets
A76: Opening RAB of commissioned additional assets | D76: =D33+D40+D47+D54+D61+D68 -> 0 | E76: 0 | F76: 47330.14159 | G76: 111005.8879 | H76: 209602.1561 | I76: 302051.1525 | J76: 407595.1965 | L76: Simple sum of values in the 6 calculation blocks immediately above
A77: Revaluation of commissioned additional assets | D77: =D35+D42+D49+D56+D63+D70 -> 0 | E77: 0 | F77: 993.9329734 | G77: 2220.117758 | H77: 4192.043123 | I77: 6041.02305 | J77: 8151.903931 | L77: Simple sum of values in the 6 calculation blocks immediately above
A78: Depreciation of commissioned additional assets | D78: 0 | E78: 0 | F78: 1075.685036 | G78: 2547.83381 | H78: 4848.260064 | I78: 7063.549661 | J78: 9630.173101 | L78: Simple sum of values in the 6 calculation blocks immediately above
A79: Closing RAB of commissioned additional assets | D79: 0 | E79: 47330.14159 | F79: 111005.8879 | G79: 209602.1561 | H79: 302051.1525 | I79: 407595.1965 | J79: 481929.431 | L79: Simple sum of values in the 6 calculation blocks immediately above
A83: Combined roll forward of existing and additional assets | D83: =Inputs!C$6 -> 2023/24 | E83: =Inputs!D$6 -> 2024/25 | F83: =Inputs!E$6 -> 2025/26 | G83: =Inputs!F$6 -> 2026/27 | H83: =Inputs!G$6 -> 2027/28 | I83: =Inputs!H$6 -> 2028/29 | J83: =Inputs!I$6 -> 2029/30
A84: Aggregate opening RAB value | D84: =C6 -> 803430.1662 | E84: =E20+E76 -> 847276.4756 | F84: 880386.3846 | G84: 928694.8827 | H84: 1012603.653 | I84: 1090416.132 | J84: 1181174.167 | L84: 4.2.1(1)
A85: =A21 -> Disposed assets | D85: =D21 -> 0 | E85: 0 | F85: 0 | G85: 0 | H85: 0 | I85: 0 | J85: 0 | L85: simple ref
A86: =A30 -> Commissioned assets | D86: =D30 -> 53542.8077 | E86: 47330.14159 | F86: 63757.49838 | G86: 98923.98429 | H86: 93105.21328 | I86: 106566.5707 | J86: 75812.50367 | L86: simple ref
A87: Total revaluation | D87: =D22+D77 -> 32289.58133 | E87: 18621.44238 | F87: 18470.6199 | G87: 18557.54387 | H87: 20236.01303 | I87: 21792.55535 | J87: 23608.01176 | L87: 4.2.3(1)
A88: Total depreciation | D88: =C7 -> 32360.71832 | E88: 32841.67495 | F88: 33919.62021 | G88: 33572.75791 | H88: 35528.74701 | I88: 37601.09136 | J88: 39991.86152 | L88: 4.2.2(1)
A89: Aggregate closing RAB value | D89: =D24+D79 -> 847276.4756 | E89: =E24+E79 -> 880386.3846 | F89: 928694.8827 | G89: 1012603.653 | H89: 1090416.132 | I89: 1181174.167 | J89: 1240602.821 | L89: 4.2.1(1)
A90: Check that closing value is as expected. Should = 0 | E90: =E84-E85+E86+E87-E88-E89 -> 0 | F90: =F84-F85+F86+F87-F88-F89 -> 0 | G90: =G84-G85+G86+G87-G88-G89 -> 0 | H90: =H84-H85+H86+H87-H88-H89 -> 0 | I90: =I84-I85+I86+I87-I88-I89 -> 0 | J90: =J84+J30+J87-J88-J21-J89 -> 0
A93: Outputs
D94: =Inputs!C$6 -> 2023/24 | E94: =Inputs!D$6 -> 2024/25 | F94: =Inputs!E$6 -> 2025/26 | G94: =Inputs!F$6 -> 2026/27 | H94: =Inputs!G$6 -> 2027/28 | I94: =Inputs!H$6 -> 2028/29 | J94: =Inputs!I$6 -> 2029/30
A95: Remaining asset life of existing assets | E95: =E25 -> 25.79882045 | F95: 25.36408133 | G95: 26.35587414 | H95: 26.17303624 | I95: 25.81625553 | J95: 25.47878628 | L95: simple ref
A96: Total depreciation | D96: =D88 -> 32360.71832 | E96: 32841.67495 | F96: 33919.62021 | G96: 33572.75791 | H96: 35528.74701 | I96: 37601.09136 | J96: 39991.86152 | L96: simple ref
A97: Aggregate opening RAB value | D97: =D84 -> 803430.1662 | E97: 847276.4756 | F97: 880386.3846 | G97: 928694.8827 | H97: 1012603.653 | I97: 1090416.132 | J97: 1181174.167 | L97: simple ref
A98: Total revaluation | D98: =D87 -> 32289.58133 | E98: 18621.44238 | F98: 18470.6199 | G98: 18557.54387 | H98: 20236.01303 | I98: 21792.55535 | J98: 23608.01176 | L98: simple ref
A99: Aggregate closing RAB value | D99: =D89 -> 847276.4756 | E99: 880386.3846 | F99: 928694.8827 | G99: 1012603.653 | H99: 1090416.132 | I99: 1181174.167 | J99: 1240602.821 | L99: simple ref
A100: Term credit spread differential allowance | D100: =$C$12*D97/$D$97 -> 375.8153725 | E100: 396.3250793 | F100: 411.8126889 | G100: 434.409645 | H100: 473.659112 | I100: 510.056956 | J100: 552.5102594 | L100: 4.4.7(2)
A101: Opening RAB value for existing assets for the base year | D101: =D20 -> 803430.1662

Sheet TAX
A1: Tax calculations | J1: =EDB_Name -> Wellington Electricity
A2: Calculations involving the roll-forward of adjusted depreciation regulatory asset values, deferred tax and tax adjustments.
A4: Inputs | B4: Source | D4: =Inputs!C$6 -> 2023/24 | E4: =Inputs!D$6 -> 2024/25 | F4: =Inputs!E$6 -> 2025/26 | G4: =Inputs!F$6 -> 2026/27 | H4: =Inputs!G$6 -> 2027/28 | I4: =Inputs!H$6 -> 2028/29 | J4: =Inputs!I$6 -> 2029/30
A5: Year in modelling period | B5: EDB data | D5: ='EDB data'!B20 -> 1 | E5: ='EDB data'!C20 -> 2 | F5: ='EDB data'!D20 -> 3 | G5: ='EDB data'!E20 -> 4 | H5: ='EDB data'!F20 -> 5 | I5: ='EDB data'!G20 -> 6 | J5: ='EDB data'!H20 -> 7
A6: Tax rate | B6: EDB data | D6: ='EDB data'!B24 -> 0.28 | E6: ='EDB data'!C24 -> 0.28 | F6: ='EDB data'!D24 -> 0.28 | G6: ='EDB data'!E24 -> 0.28 | H6: ='EDB data'!F24 -> 0.28 | I6: ='EDB data'!G24 -> 0.28 | J6: ='EDB data'!H24 -> 0.28
A7: Value of commissioned assets | B7: EDB data | D7: =TRANSPOSE('EDB data'!B49:B55) -> 53542.8077 | E7: 47330.14159 | F7: 63757.49838 | G7: 98923.98429 | H7: 93105.21328 | I7: 106566.5707 | J7: 75812.50367
A8: Remaining life of newly commissioned assets | B8: EDB data | D8: ='EDB data'!B12 -> 44
A9: Amortisation of initial differences in asset values | B9: EDB data | D9: ='EDB data'!B35 -> 7150.784348
A10: Disposed assets | B10: EDB data | D10: ='EDB data'!$B58 -> 0 | E10: ='EDB data'!$B59 -> 0 | F10: ='EDB data'!$B60 -> 0 | G10: ='EDB data'!$B61 -> 0 | H10: ='EDB data'!$B62 -> 0 | I10: ='EDB data'!$B63 -> 0 | J10: ='EDB data'!$B64 -> 0
A11: Opening RAB excluding revaluations | B11: EDB data | D11: ='EDB data'!B31 -> 632965.6053
A12: Adjusted depreciation | B12: EDB data | D12: ='EDB data'!B32 -> 26367.51708
A13: Tax depreciation | B13: EDB data | D13: ='EDB data'!B33 -> 31481.72074
A14: Opening regulatory tax asset value | B14: EDB data | D14: ='EDB data'!B34 -> 399511.951
A15: Opening deferred tax balance | B15: EDB data | D15: ='EDB data'!B37 -> -49298.29954
A16: Cost of debt | B16: EDB data | D16: ='EDB data'!B10 -> 0.0574
A17: Leverage | B17: EDB data | D17: ='EDB data'!B11 -> 0.41
A18: Remaining asset life of existing assets | B18: RAB | E18: =RAB!E95 -> 25.79882045 | F18: =RAB!F95 -> 25.36408133 | G18: =RAB!G95 -> 26.35587414 | H18: =RAB!H95 -> 26.17303624 | I18: =RAB!I95 -> 25.81625553 | J18: =RAB!J95 -> 25.47878628
A19: Total depreciation | B19: RAB | D19: =RAB!D96 -> 32360.71832 | E19: =RAB!E96 -> 32841.67495 | F19: =RAB!F96 -> 33919.62021 | G19: =RAB!G96 -> 33572.75791 | H19: =RAB!H96 -> 35528.74701 | I19: =RAB!I96 -> 37601.09136 | J19: =RAB!J96 -> 39991.86152
A20: Term credit spread differential allowance | B20: RAB | D20: =RAB!D100 -> 375.8153725 | E20: =RAB!E100 -> 396.3250793 | F20: =RAB!F100 -> 411.8126889 | G20: =RAB!G100 -> 434.409645 | H20: =RAB!H100 -> 473.659112 | I20: =RAB!I100 -> 510.056956 | J20: =RAB!J100 -> 552.5102594
A21: Aggregate opening RAB value | B21: RAB | D21: =RAB!D97 -> 803430.1662 | E21: =RAB!E97 -> 847276.4756 | F21: =RAB!F97 -> 880386.3846 | G21: =RAB!G97 -> 928694.8827 | H21: =RAB!H97 -> 1012603.653 | I21: =RAB!I97 -> 1090416.132 | J21: =RAB!J97 -> 1181174.167
A22: Total depreciation | B22: RAB | F22: =RAB!F96 -> 33919.62021 | G22: =RAB!G96 -> 33572.75791 | H22: =RAB!H96 -> 35528.74701 | I22: =RAB!I96 -> 37601.09136 | J22: =RAB!J96 -> 39991.86152
A23: Operating expenditure | B23: EDB data | F23: =TRANSPOSE('EDB data'!B42:B46) -> 45192.98348 | G23: 46782.32832 | H23: 48443.68719 | I23: 50200.36864 | J23: 52032.7498
A24: Maximum allowable revenue before tax in revenue date terms | B24: MAR | F24: =MAR!D38 -> 118695.8121 | G24: =MAR!E38 -> 133006.6836 | H24: =MAR!F38 -> 148690.8317 | I24: =MAR!G38 -> 166224.4545 | J24: =MAR!H38 -> 185825.6422
A25: BBAR before tax in revenue date terms | B25: BBAR | F25: =BBAR!F141 -> 134068.7543 | G25: =BBAR!G141 -> 140735.9131 | H25: =BBAR!H141 -> 148779.5315 | I25: =BBAR!I141 -> 157532.9098 | J25: =BBAR!J141 -> 165311.1062
A26: Opening tax losses | B26: Input
A27: Tftax | B27: Timing | D27: =Timing!C24 -> 1.034794062
A28: Calculations
A29: Adjusted RAB & depreciation of assets commissioned | C29: Value | D29: =Inputs!C$6 -> 2023/24 | E29: =Inputs!D$6 -> 2024/25 | F29: =Inputs!E$6 -> 2025/26 | G29: =Inputs!F$6 -> 2026/27 | H29: =Inputs!G$6 -> 2027/28 | I29: =Inputs!H$6 -> 2028/29 | J29: =Inputs!I$6 -> 2029/30
A30: Adjusted depreciation of assets commissioned and existing assets are calculated to determine depreciation excluding RAB valuations.
A31: This in turn is used to calculate the depreciation temporary differences used to calculate deferred tax.
A32: Commissioned assets | D32: =D7 -> 53542.8077 | E32: 47330.14159 | F32: 63757.49838 | G32: 98923.98429 | H32: 93105.21328 | I32: 106566.5707 | J32: 75812.50367 | L32: simple ref
A33: =" Assets commissioned in " & $E$29 -> Assets commissioned in 2024/25 | C33: =E5 -> 2
A34: Opening RAB, adjusted depreciation | D34: 0 | E34: =D37 -> 0 | F34: 47330.14159 | G34: 46254.45656 | H34: 45178.77152 | I34: 44103.08648 | J34: 43027.40145 | L34: 4.2.1(4)
A35: Years of remaining life | D35: =$D$8+$C33 -> 46 | E35: =D35-1 -> 45 | F35: 44 | G35: 43 | H35: 42 | I35: 41 | J35: 40 | L35: 4.2.2(3)(b)adj 1.1.4(2)
A36: Adjusted depreciation | D36: =D34/D35 -> 0 | E36: 0 | F36: 1075.685036 | G36: 1075.685036 | H36: 1075.685036 | I36: 1075.685036 | J36: 1075.685036 | L36: 4.2.2(2)(b)adj
A37: Closing RAB, adjusted depreciation | D37: =D34-D36+IF($C33=D$5,D$32,0) -> 0 | E37: 47330.14159 | F37: 46254.45656 | G37: 45178.77152 | H37: 44103.08648 | I37: 43027.40145 | J37: 41951.71641 | L37: 4.2.1(5)(b)
A38: =" Assets commissioned in " & $F$29 -> Assets commissioned in 2025/26 | C38: =F5 -> 3
A39: Opening RAB, adjusted depreciation | D39: 0 | E39: =D42 -> 0 | F39: 0 | G39: 63757.49838 | H39: 62308.46432 | I39: 60859.43027 | J39: 59410.39621 | L39: 4.2.1(4)
A40: Years of remaining life | D40: =$D$8+$C38 -> 47 | E40: =D40-1 -> 46 | F40: 45 | G40: 44 | H40: 43 | I40: 42 | J40: 41 | L40: 4.2.2(3)(b)adj
A41: Adjusted depreciation | D41: =D39/D40 -> 0 | E41: 0 | F41: 0 | G41: 1449.034054 | H41: 1449.034054 | I41: 1449.034054 | J41: 1449.034054 | L41: 4.2.2(2)(b)adj
A42: Closing RAB, adjusted depreciation | D42: =D39-D41+IF($C38=D$5,D$32,0) -> 0 | E42: 0 | F42: 63757.49838 | G42: 62308.46432 | H42: 60859.43027 | I42: 59410.39621 | J42: 57961.36216 | L42: 4.2.1(5)(b)
A43: =" Assets commissioned in " & $G$29 -> Assets commissioned in 2026/27 | C43: =G5 -> 4
A44: Opening RAB, adjusted depreciation | D44: 0 | E44: =D47 -> 0 | F44: 0 | G44: 0 | H44: 98923.98429 | I44: 96675.71192 | J44: 94427.43955 | L44: 4.2.1(4)
A45: Years of remaining life | D45: =$D$8+$C43 -> 48 | E45: =D45-1 -> 47 | F45: 46 | G45: 45 | H45: 44 | I45: 43 | J45: 42 | L45: 4.2.2(3)(b)adj
A46: Adjusted depreciation | D46: =D44/D45 -> 0 | E46: 0 | F46: 0 | G46: 0 | H46: 2248.27237 | I46: 2248.27237 | J46: 2248.27237 | L46: 4.2.2(2)(b)adj
A47: Closing RAB, adjusted depreciation | D47: =D44-D46+IF($C43=D$5,D$32,0) -> 0 | E47: 0 | F47: 0 | G47: 98923.98429 | H47: 96675.71192 | I47: 94427.43955 | J47: 92179.16718 | L47: 4.2.1(5)(b)
A48: =" Assets commissioned in " & $H$29 -> Assets commissioned in 2027/28 | C48: =H5 -> 5
A49: Opening RAB, adjusted depreciation | D49: 0 | E49: =D52 -> 0 | F49: 0 | G49: 0 | H49: 0 | I49: 93105.21328 | J49: 90989.18571 | L49: 4.2.1(4)
A50: Years of remaining life | D50: =$D$8+$C48 -> 49 | E50: =D50-1 -> 48 | F50: 47 | G50: 46 | H50: 45 | I50: 44 | J50: 43 | L50: 4.2.2(3)(b)adj
A51: Adjusted depreciation | D51: =D49/D50 -> 0 | E51: 0 | F51: 0 | G51: 0 | H51: 0 | I51: 2116.027575 | J51: 2116.027575 | L51: 4.2.2(2)(b)adj
A52: Closing RAB, adjusted depreciation | D52: =D49-D51+IF($C48=D$5,D$32,0) -> 0 | E52: 0 | F52: 0 | G52: 0 | H52: 93105.21328 | I52: 90989.18571 | J52: 88873.15813 | L52: 4.2.1(5)(b)
A53: =" Assets commissioned in " & $I$29 -> Assets commissioned in 2028/29 | C53: =I5 -> 6
A54: Opening RAB, adjusted depreciation | D54: 0 | E54: =D57 -> 0 | F54: 0 | G54: 0 | H54: 0 | I54: 0 | J54: 106566.5707 | L54: 4.2.1(4)
A55: Years of remaining life | D55: =$D$8+$C53 -> 50 | E55: =D55-1 -> 49 | F55: 48 | G55: 47 | H55: 46 | I55: 45 | J55: 44 | L55: 4.2.2(3)(b)adj
A56: Adjusted depreciation | D56: =D54/D55 -> 0 | E56: 0 | F56: 0 | G56: 0 | H56: 0 | I56: 0 | J56: 2421.967515 | L56: 4.2.2(2)(b)adj
A57: Closing RAB, adjusted depreciation | D57: =D54-D56+IF($C53=D$5,D$32,0) -> 0 | E57: 0 | F57: 0 | G57: 0 | H57: 0 | I57: 106566.5707 | J57: 104144.6031 | L57: 4.2.1(5)(b)
A58: =" Assets commissioned in " & $J$29 -> Assets commissioned in 2029/30 | C58: =J5 -> 7
A59: Opening RAB, adjusted depreciation | D59: 0 | E59: =D62 -> 0 | F59: 0 | G59: 0 | H59: 0 | I59: 0 | J59: 0 | L59: 4.2.1(4)
A60: Years of remaining life | D60: =$D$8+$C58 -> 51 | E60: =D60-1 -> 50 | F60: 49 | G60: 48 | H60: 47 | I60: 46 | J60: 45 | L60: 4.2.2(3)(b)adj
A61: Adjusted depreciation | D61: =D59/D60 -> 0 | E61: 0 | F61: 0 | G61: 0 | H61: 0 | I61: 0 | J61: 0 | L61: 4.2.2(2)(b)adj
A62: Closing RAB, adjusted depreciation | D62: =D59-D61+IF($C58=D$5,D$32,0) -> 0 | E62: 0 | F62: 0 | G62: 0 | H62: 0 | I62: 0 | J62: 75812.50367 | L62: 4.2.1(5)(b)
A63: Total assets commissioned
A64: Total adjusted depreciation of commissioned assets | D64: =D36+D41+D46+D51+D56+D61 -> 0 | E64: 0 | F64: 1075.685036 | G64: 2524.71909 | H64: 4772.99146 | I64: 6889.019035 | J64: 9310.98655 | L64: aggregation of adjusted depreciation values
A66: Adjusted depreciation of existing assets
D67: =Inputs!C$6 -> 2023/24 | E67: =Inputs!D$6 -> 2024/25 | F67: =Inputs!E$6 -> 2025/26 | G67: =Inputs!F$6 -> 2026/27 | H67: =Inputs!G$6 -> 2027/28 | I67: =Inputs!H$6 -> 2028/29 | J67: =Inputs!I$6 -> 2029/30
A68: Opening RAB value of existing assets, adjusted depreciation | D68: =D11 -> 632965.6053 | E68: =D72 -> 660140.8959 | F68: 634552.8696 | G68: 609535.095 | H68: 586407.989 | I68: 564002.9465 | J68: 542156.132 | L68: 4.2.1(2)adj
A69: Disposed assets | D69: =-D10 -> 0 | E69: 0 | F69: 0 | G69: 0 | H69: 0 | I69: 0 | J69: 0 | L69: simple ref
A70: Adjusted depreciation of existing assets | D70: =-D12 -> -26367.51708 | E70: =-E68/E18 -> -25588.02628 | F70: -25017.7746 | G70: -23127.106 | H70: -22405.04249 | I70: -21846.81453 | J70: -21278.72678 | L70: 4.2.2(2)(a)(ii) 1.1.4(2)
A71: Base year commissioned assets | D71: =D7 -> 53542.8077 | L71: simple ref
A72: Closing RAB value of existing assets, adjusted depreciation | D72: =SUM(D68:D71) -> 660140.8959 | E72: =SUM(E68:E71) -> 634552.8696 | F72: 609535.095 | G72: 586407.989 | H72: 564002.9465 | I72: 542156.132 | J72: 520877.4052 | L72: 4.2.1(3)adj
A74: Regulatory tax asset value
A75: The regulatory tax asset value is calculated to enable the calculation of the annual tax depreciation, which is used in the calculation of depreciation differences,
A76: which is in turn used to in the deferred tax calculation.
C77: Value | D77: =Inputs!C$6 -> 2023/24 | E77: =Inputs!D$6 -> 2024/25 | F77: =Inputs!E$6 -> 2025/26 | G77: =Inputs!F$6 -> 2026/27 | H77: =Inputs!G$6 -> 2027/28 | I77: =Inputs!H$6 -> 2028/29 | J77: =Inputs!I$6 -> 2029/30
A78: Average DV rate | C78: =D13/D14 -> 0.07880044803 | L78: 4.3.5(3)(b)
A79: Opening regulatory tax asset value | D79: =D14 -> 399511.951 | E79: =D82 -> 421573.038 | F79: 435683.0353 | G79: 465108.5153 | H79: 527381.7402 | I79: 578929.0361 | J79: 639875.7393 | L79: 4.3.5(3)(a)
A80: Tax depreciation | D80: =-D13 -> -31481.72074 | E80: =-E79*$C78 -> -33220.14427 | F80: -34332.01838 | G80: -36650.75939 | H80: -41557.91741 | I80: -45619.86742 | J80: -50422.49494 | L80: 4.3.5(2)(b)
A81: Value of commissioned assets | D81: =D7 -> 53542.8077 | E81: 47330.14159 | F81: 63757.49838 | G81: 98923.98429 | H81: 93105.21328 | I81: 106566.5707 | J81: 75812.50367 | L81: simple ref
A82: Closing regulatory tax asset value | D82: =SUM(D79:D81) -> 421573.038 | E82: =SUM(E79:E81) -> 435683.0353 | F82: 465108.5153 | G82: 527381.7402 | H82: 578929.0361 | I82: 639875.7393 | J82: 665265.7481 | L82: 4.3.5(3)(c)
A84: Depreciation temporary differences
A85: Depreciation temporary differences are the differences between depreciation of assets for accounting and tax purposes, and is uses in the deferred tax calculation.
D86: =Inputs!C$6 -> 2023/24 | E86: =Inputs!D$6 -> 2024/25 | F86: =Inputs!E$6 -> 2025/26 | G86: =Inputs!F$6 -> 2026/27 | H86: =Inputs!G$6 -> 2027/28 | I86: =Inputs!H$6 -> 2028/29 | J86: =Inputs!I$6 -> 2029/30
A87: Total adjusted depreciation of assets | D87: =D64-D70 -> 26367.51708 | E87: 25588.02628 | F87: 26093.45963 | G87: 25651.82509 | H87: 27178.03395 | I87: 28735.83357 | J87: 30589.71333 | L87: 1.1.4(2)adj
A88: Tax depreciation | D88: =D80 -> -31481.72074 | E88: =E80 -> -33220.14427 | F88: -34332.01838 | G88: -36650.75939 | H88: -41557.91741 | I88: -45619.86742 | J88: -50422.49494 | L88: simple ref
A89: Depreciation temporary differences | D89: =SUM(D87:D88) -> -5114.203657 | E89: =SUM(E87:E88) -> -7632.117989 | F89: -8238.558751 | G89: -10998.9343 | H89: -14379.88346 | I89: -16884.03385 | J89: -19832.78161 | L89: 4.3.5(1)
A91: Deferred tax
A92: The deferred tax balance is calculated by adding the tax effects of depreciation temporary differences and amortisation of initial values to the opening deferred tax.
A93: The deferred tax balance is used in the calculation of the investment value for the calculation of notional interest.
D94: =Inputs!C$6 -> 2023/24 | E94: =Inputs!D$6 -> 2024/25 | F94: =Inputs!E$6 -> 2025/26 | G94: =Inputs!F$6 -> 2026/27 | H94: =Inputs!G$6 -> 2027/28 | I94: =Inputs!H$6 -> 2028/29 | J94: =Inputs!I$6 -> 2029/30
A95: Opening deferred tax | D95: =D15 -> -49298.29954 | E95: =D98 -> -52732.49618 | F95: -56871.70884 | G95: -61180.72491 | H95: -66262.64613 | I95: -72291.23311 | J95: -79020.98221 | L95: 4.3.4(1)
A96: Tax effect of depreciation temporary differences | D96: =D89*D6 -> -1431.977024 | E96: -2136.993037 | F96: -2306.79645 | G96: -3079.701604 | H96: -4026.36737 | I96: -4727.529479 | J96: -5553.178852 | L96: simple ref
A97: Tax effect of amortisation of initial differences in asset values | D97: =-D9*D6 -> -2002.219617 | E97: =D97 -> -2002.219617 | F97: -2002.219617 | G97: -2002.219617 | H97: -2002.219617 | I97: -2002.219617 | J97: -2002.219617 | L97: 4.3.3(3)
A98: Closing deferred tax | D98: =SUM(D95:D97) -> -52732.49618 | E98: =SUM(E95:E97) -> -56871.70884 | F98: -61180.72491 | G98: -66262.64613 | H98: -72291.23311 | I98: -79020.98221 | J98: -86576.38068 | L98: 4.3.4(2)
A100: Amortisation of revaluations
A101: Amortisation of revaluations is calculated as the difference between total depreciation and adjusted depreciation. This amount is a deduction for regulatory tax purposes.
D102: =Inputs!C$6 -> 2023/24 | E102: =Inputs!D$6 -> 2024/25 | F102: =Inputs!E$6 -> 2025/26 | G102: =Inputs!F$6 -> 2026/27 | H102: =Inputs!G$6 -> 2027/28 | I102: =Inputs!H$6 -> 2028/29 | J102: =Inputs!I$6 -> 2029/30
A103: Total depreciation | D103: =D19 -> 32360.71832 | E103: 32841.67495 | F103: 33919.62021 | G103: 33572.75791 | H103: 35528.74701 | I103: 37601.09136 | J103: 39991.86152 | L103: simple ref
A104: Adjusted depreciation | D104: =-D87 -> -26367.51708 | E104: =-E87 -> -25588.02628 | F104: -26093.45963 | G104: -25651.82509 | H104: -27178.03395 | I104: -28735.83357 | J104: -30589.71333 | L104: simple ref
A105: Amortisation of revaluations | D105: =SUM(D103:D104) -> 5993.201243 | E105: =SUM(E103:E104) -> 7253.648672 | F105: 7826.160578 | G105: 7920.932818 | H105: 8350.713065 | I105: 8865.25779 | J105: 9402.148188 | L105: 4.3.3(5)
A107: Opening investment value
A108: The opening investment value is calculated to use in the calculation of notional deductible interest.
A109: Total opening RAB value | D109: =D21 -> 803430.1662 | E109: 847276.4756 | F109: 880386.3846 | G109: 928694.8827 | H109: 1012603.653 | I109: 1090416.132 | J109: 1181174.167 | L109: simple ref
A110: Opening deferred tax | D110: =D95 -> -49298.29954 | E110: =E95 -> -52732.49618 | F110: -56871.70884 | G110: -61180.72491 | H110: -66262.64613 | I110: -72291.23311 | J110: -79020.98221 | L110: simple ref
A111: Opening investment value | D111: =SUM(D109:D110) -> 754131.8666 | E111: =SUM(E109:E110) -> 794543.9794 | F111: 823514.6758 | G111: 867514.1578 | H111: 946341.0068 | I111: 1018124.899 | J111: 1102153.185 | L111: 4.3.3(4)
A113: Regulatory tax adjustments | L113: 4.3.3
A114: The following items are treated as adjustments in the calculation of regulatory taxable income.
A115: Amortisation of initial differences in asset values | D115: =D9 -> 7150.784348 | E115: =D115 -> 7150.784348 | F115: 7150.784348 | G115: 7150.784348 | H115: 7150.784348 | I115: 7150.784348 | J115: 7150.784348 | L115: simple ref
A116: Amortisation of revaluations | D116: =D105 -> 5993.201243 | E116: 7253.648672 | F116: 7826.160578 | G116: 7920.932818 | H116: 8350.713065 | I116: 8865.25779 | J116: 9402.148188 | L116: 4.3.3(5)
A117: Notional deductible interest | D117: =-(D111*$D$17*$D$16+D20)/(1+$D$16)^0.5 -> -17624.78104 | E117: -18569.61113 | F117: -19247.70534 | G117: -20276.66693 | H117: -22118.89326 | I117: -23797.15903 | J117: -25761.54279 | L117: 4.3.3(2) & (4)
A118: Regulatory tax adjustments | D118: =SUM(D115:D117) -> -4480.795454 | E118: =SUM(E115:E117) -> -4165.178112 | F118: -4270.760411 | G118: -5204.949768 | H118: -6617.395846 | I118: -7781.116891 | J118: -9208.610259 | L118: 4.3.3(1)
A120: Regulatory profit / (loss) before tax
A121: This calculates the regulatory profit/(loss) before tax, which is used to calculate the regulatory taxable income. The calculation below uses the BBAR from the BBAR sheet. This
A122: requires a reference at Row 25 of this sheet to the BAR sheet to the right of this sheet. This is required as it is only the BBAR sheet that resolves the revenue and tax calculation
A123: circularity. Such a reference to a sheet to the right is generally not best spreadsheeting practice, but we consider it important for this TAX sheet to calculate the tax allowance.
A124: Allowable revenue before tax | F124: =F25 -> 134068.7543 | G124: =G25 -> 140735.9131 | H124: =H25 -> 148779.5315 | I124: =I25 -> 157532.9098 | J124: =J25 -> 165311.1062 | L124: simple ref
A125: Other regulated income
A126: Operating expenditure | F126: =-F23 -> -45192.98348 | G126: =-G23 -> -46782.32832 | H126: =-H23 -> -48443.68719 | I126: =-I23 -> -50200.36864 | J126: =-J23 -> -52032.7498 | L126: simple ref
A127: Total depreciation | F127: =-F22 -> -33919.62021 | G127: =-G22 -> -33572.75791 | H127: =-H22 -> -35528.74701 | I127: =-I22 -> -37601.09136 | J127: =-J22 -> -39991.86152 | L127: simple ref
A128: Regulatory profit/(loss) before tax | F128: =SUM(F124:F127) -> 54956.15065 | G128: =SUM(G124:G127) -> 60380.82689 | H128: =SUM(H124:H127) -> 64807.09734 | I128: =SUM(I124:I127) -> 69731.44979 | J128: =SUM(J124:J127) -> 73286.49487 | L128: 4.3.1(4)
A130: Regulatory taxable income
A131: This calculates the regulatory taxable income, by adding the regulatory tax adjustments to the regulatory profit/ (loss) before tax
A132: Regulatory profit/(loss) before tax | F132: =F128 -> 54956.15065 | G132: =G128 -> 60380.82689 | H132: =H128 -> 64807.09734 | I132: =I128 -> 69731.44979 | J132: =J128 -> 73286.49487 | L132: simple ref
A133: Regulatory tax adjustments | F133: =F118 -> -4270.760411 | G133: =G118 -> -5204.949768 | H133: =H118 -> -6617.395846 | I133: =I118 -> -7781.116891 | J133: =J118 -> -9208.610259 | L133: simple ref
A134: Regulatory taxable income | F134: =SUM(F132:F133) -> 50685.39024 | G134: =SUM(G132:G133) -> 55175.87712 | H134: =SUM(H132:H133) -> 58189.70149 | I134: =SUM(I132:I133) -> 61950.3329 | J134: =SUM(J132:J133) -> 64077.88462 | L134: 4.3.1(3)
A136: Utilised tax losses
A137: This calculates tax losses utilised and closing tax losses. Note that none of the EDBs are expected to incur or to have opening tax losses
A138: Opening tax losses | F138: =F26 -> 0 | G138: =G26 -> 0 | H138: =H26 -> 0 | I138: =I26 -> 0 | J138: =J26 -> 0 | L138: 4.3.2(3)(a)
A139: Current period tax losses | F139: =MIN(F134,0) -> 0 | G139: =MIN(G134,0) -> 0 | H139: =MIN(H134,0) -> 0 | I139: =MIN(I134,0) -> 0 | J139: =MIN(J134,0) -> 0 | L139: 4.3.2(4)
A140: Utilised tax losses (nil if no opening or current tax losses) | F140: =IF(F134>0,-MIN(F134,F138),0) -> 0 | G140: =IF(G134>0,-MIN(G134,G138),0) -> 0 | H140: =IF(H134>0,-MIN(H134,H138),0) -> 0 | I140: =IF(I134>0,-MIN(I134,I138),0) -> 0 | J140: =IF(J134>0,-MIN(J134,J138),0) -> 0 | L140: 4.3.2(1) & (2)
A141: Closing tax losses | F141: =SUM(F138:F140) -> 0 | G141: =SUM(G138:G140) -> 0 | H141: =SUM(H138:H140) -> 0 | I141: =SUM(I138:I140) -> 0 | J141: =SUM(J138:J140) -> 0 | L141: 4.3.2(3)(b)
A144: Net regulatory taxable income and regulatory tax allowance | C144: NPV | D144: 2023/24 | E144: 2024/25 | F144: 2025/26 | G144: 2026/27 | H144: 2027/28 | I144: 2028/29 | J144: 2029/30
A145: This calculates the regulatory tax allowance which is used in the BBAR calculation.
A146: Regulatory taxable income | F146: =F134 -> 50685.39024 | G146: =G134 -> 55175.87712 | H146: =H134 -> 58189.70149 | I146: =I134 -> 61950.3329 | J146: =J134 -> 64077.88462 | L146: simple ref
A147: Utilised tax losses | F147: =F140 -> 0 | G147: =G140 -> 0 | H147: =H140 -> 0 | I147: =I140 -> 0 | J147: =J140 -> 0 | L147: simple ref
A148: Regulatory net taxable income | F148: =SUM(F146:F147) -> 50685.39024 | G148: =SUM(G146:G147) -> 55175.87712 | H148: =SUM(H146:H147) -> 58189.70149 | I148: =SUM(I146:I147) -> 61950.3329 | J148: =SUM(J146:J147) -> 64077.88462 | L148: 4.3.1(2)
A149: x Corporate tax rate
A150: Regulatory tax allowance in tax date terms | C150: =NPV(Inputs!$B$16,F150:J150) -> 65899.22886 | F150: =MAX(F148,0)*F6 -> 14191.90927 | G150: =MAX(G148,0)*G6 -> 15449.24559 | H150: =MAX(H148,0)*H6 -> 16293.11642 | I150: =MAX(I148,0)*I6 -> 17346.09321 | J150: =MAX(J148,0)*J6 -> 17941.80769 | L150: 4.3.1(3)
A151: Regulatory tax allowance in year-end terms | C151: =NPV(Inputs!$B$16,F151:J151) -> 68192.13071 | F151: =F150*$D$27 -> 14685.70344 | G151: =G150*$D$27 -> 15986.7876 | H151: =H150*$D$27 -> 16860.02012 | I151: =I150*$D$27 -> 17949.63426 | J151: =J150*$D$27 -> 18566.07606 | L151: simple ref
A152: Check to BBAR tax allowance | F152: =BBAR!F109-F151 -> 0 | G152: =BBAR!G109-G151 -> 0 | H152: =BBAR!H109-H151 -> 0 | I152: =BBAR!I109-I151 -> 0 | J152: =BBAR!J109-J151 -> 0
A154: Tax payable for IRR calculation | C154: NPV | D154: 2023/24 | E154: 2024/25 | F154: 2025/26 | G154: 2026/27 | H154: 2027/28 | I154: 2028/29 | J154: 2029/30
A155: This calculates the tax payable which is used in the IRR calculation.
A156: Maximum allowable revenue before tax in revenue date terms | F156: =F24 -> 118695.8121 | G156: =G24 -> 133006.6836 | H156: =H24 -> 148690.8317 | I156: =I24 -> 166224.4545 | J156: =J24 -> 185825.6422 | L156: simple ref
A157: Operating expenditure | F157: =-F23 -> -45192.98348 | G157: =-G23 -> -46782.32832 | H157: =-H23 -> -48443.68719 | I157: =-I23 -> -50200.36864 | J157: =-J23 -> -52032.7498 | L157: simple ref
A158: Total depreciation | F158: =-F22 -> -33919.62021 | G158: =-G22 -> -33572.75791 | H158: =-H22 -> -35528.74701 | I158: =-I22 -> -37601.09136 | J158: =-J22 -> -39991.86152 | L158: simple ref
A159: Regulatory tax adjustments | F159: =F118 -> -4270.760411 | G159: =G118 -> -5204.949768 | H159: =H118 -> -6617.395846 | I159: =I118 -> -7781.116891 | J159: =J118 -> -9208.610259 | L159: simple ref
A160: Taxable profit / (loss) before tax | F160: =SUM(F156:F159) -> 35312.44798 | G160: =SUM(G156:G159) -> 47446.64755 | H160: =SUM(H156:H159) -> 58101.00162 | I160: =SUM(I156:I159) -> 70641.87766 | J160: =SUM(J156:J159) -> 84592.42066
A161: x Corporate tax rate
A162: Tax allowance based on price path revenue in tax date terms, deferred tax approach | C162: =NPV(Inputs!$B$16,F162:J162) -> 65899.22886 | F162: =F160*F6 -> 9887.485433 | G162: =G160*G6 -> 13285.06132 | H162: =H160*H6 -> 16268.28045 | I162: =I160*I6 -> 19779.72574 | J162: =J160*J6 -> 23685.87778
A163: Tax allowance based on price path revenue in year-end terms, deferred tax approach | C163: =NPV(Inputs!$B$16,F163:J163) -> 68192.13071 | F163: =F162*$D$27 -> 10231.51121 | G163: =G162*$D$27 -> 13747.30256 | H163: =H162*$D$27 -> 16834.32001 | I163: =I162*$D$27 -> 20467.94275 | J163: =J162*$D$27 -> 24510.00568
A164: Increase in deferred tax | F164: =F96+F97 -> -4309.016068 | G164: =G96+G97 -> -5081.921221 | H164: =H96+H97 -> -6028.586987 | I164: =I96+I97 -> -6729.749097 | J164: =J96+J97 -> -7555.39847
A165: Tax payable for the deferred tax approach in tax date terms | F165: =F162+F164 -> 5578.469366 | G165: =G162+G164 -> 8203.140094 | H165: =H162+H164 -> 10239.69347 | I165: =I162+I164 -> 13049.97665 | J165: =J162+J164 -> 16130.47931
A166: Check NPV of regulatory tax allowance and tax payable | C166: =C151-C163 -> 0
A168: Alternative tax payable calculation, showing deferred tax movement
A169: Taxable profit - deferred tax | F169: =F160 -> 35312.44798 | G169: =G160 -> 47446.64755 | H169: =H160 -> 58101.00162 | I169: =I160 -> 70641.87766 | J169: =J160 -> 84592.42066
A170: Add back regulatory depreciation | F170: =F19 -> 33919.62021 | G170: =G19 -> 33572.75791 | H170: =H19 -> 35528.74701 | I170: =I19 -> 37601.09136 | J170: =J19 -> 39991.86152
A171: Deduct tax depreciation | F171: =F88 -> -34332.01838 | G171: =G88 -> -36650.75939 | H171: =H88 -> -41557.91741 | I171: =I88 -> -45619.86742 | J171: =J88 -> -50422.49494
A172: Add back regulatory tax adjustments | F172: =-F118 -> 4270.760411 | G172: =-G118 -> 5204.949768 | H172: =-H118 -> 6617.395846 | I172: =-I118 -> 7781.116891 | J172: =-J118 -> 9208.610259
A173: Deduct notional deductible interest | F173: =F117 -> -19247.70534 | G173: =G117 -> -20276.66693 | H173: =H117 -> -22118.89326 | I173: =I117 -> -23797.15903 | J173: =J117 -> -25761.54279
A174: Taxable profit | F174: =SUM(F169:F173) -> 19923.10488 | G174: =SUM(G169:G173) -> 29296.92891 | H174: =SUM(H169:H173) -> 36570.33381 | I174: =SUM(I169:I173) -> 46607.05946 | J174: =SUM(J169:J173) -> 57608.8547
A175: Tax payable | F175: =F174*D6 -> 5578.469366 | G175: =G174*E6 -> 8203.140094 | H175: =H174*F6 -> 10239.69347 | I175: =I174*G6 -> 13049.97665 | J175: =J174*H6 -> 16130.47931
A177: Deferred tax movement | F177: =SUM(F170:F173)*$D6 -> -4309.016068 | G177: =SUM(G170:G173)*$D6 -> -5081.921221 | H177: =SUM(H170:H173)*$D6 -> -6028.586987 | I177: =SUM(I170:I173)*$D6 -> -6729.749097 | J177: =SUM(J170:J173)*$D6 -> -7555.39847 | L177: sum of rows in highlighted block above
A179: Check | F179: =F165-F175 -> 0 | G179: =G165-G175 -> 0 | H179: =H165-H175 -> 0 | I179: =I165-I175 -> 0 | J179: =J165-J175 -> 0 | L179: check between alternative calculations
A180: Outputs
D181: =Inputs!C$6 -> 2023/24 | E181: =Inputs!D$6 -> 2024/25 | F181: =Inputs!E$6 -> 2025/26 | G181: =Inputs!F$6 -> 2026/27 | H181: =Inputs!G$6 -> 2027/28 | I181: =Inputs!H$6 -> 2028/29 | J181: =Inputs!I$6 -> 2029/30
A182: Total adjusted depreciation of commissioned assets | D182: =D64 -> 0 | E182: 0 | F182: 1075.685036 | G182: 2524.71909 | H182: 4772.99146 | I182: 6889.019035 | J182: 9310.98655 | L182: simple ref
A183: Opening deferred tax | D183: =D95 -> -49298.29954 | E183: -52732.49618 | F183: -56871.70884 | G183: -61180.72491 | H183: -66262.64613 | I183: -72291.23311 | J183: -79020.98221 | L183: simple ref
A184: Closing deferred tax | D184: =D98 -> -52732.49618 | E184: -56871.70884 | F184: -61180.72491 | G184: -66262.64613 | H184: -72291.23311 | I184: -79020.98221 | J184: -86576.38068 | L184: simple ref
A185: Regulatory tax adjustments | D185: =D118 -> -4480.795454 | E185: -4165.178112 | F185: -4270.760411 | G185: -5204.949768 | H185: -6617.395846 | I185: -7781.116891 | J185: -9208.610259 | L185: simple ref
A186: Opening RAB excluding revaluations | D186: =D34+D39+D44+D49+D54+D59+D68 -> 632965.6053 | E186: 660140.8959 | F186: 681883.0112 | G186: 719547.0499 | H186: 792819.2091 | I186: 858746.3885 | J186: 936577.1256 | L186: aggregation of new and existing asset values
A187: Tax depreciation | D187: =-D80 -> 31481.72074 | E187: 33220.14427 | F187: 34332.01838 | G187: 36650.75939 | H187: 41557.91741 | I187: 45619.86742 | J187: 50422.49494 | L187: simple ref
A188: Opening regulatory tax asset value | D188: =D79 -> 399511.951 | E188: 421573.038 | F188: 435683.0353 | G188: 465108.5153 | H188: 527381.7402 | I188: 578929.0361 | J188: 639875.7393 | L188: simple ref
A189: Amortisation of initial differences in asset values | D189: =D115 -> 7150.784348 | E189: 7150.784348 | F189: 7150.784348 | G189: 7150.784348 | H189: 7150.784348 | I189: 7150.784348 | J189: 7150.784348 | L189: simple ref
A190: Opening deferred tax balance | D190: =D95 -> -49298.29954 | E190: -52732.49618 | F190: -56871.70884 | G190: -61180.72491 | H190: -66262.64613 | I190: -72291.23311 | J190: -79020.98221 | L190: simple ref
A191: Total adjusted depreciation | D191: =-D104 -> 26367.51708 | E191: 25588.02628 | F191: 26093.45963 | G191: 25651.82509 | H191: 27178.03395 | I191: 28735.83357 | J191: 30589.71333 | L191: aggregation of new and existing asset values
A192: Tax payable for the deferred tax approach in tax date terms | F192: =F165 -> 5578.469366 | G192: =G165 -> 8203.140094 | H192: =H165 -> 10239.69347 | I192: =I165 -> 13049.97665 | J192: =J165 -> 16130.47931 | L192: simple ref
A193: ∆

Sheet BBAR
A1: Building block allowable revenue | K1: =EDB_Name -> Wellington Electricity
A2: This sheet calculates the building blocks allowable revenue for each year of the regulatory period.
A3: Inputs
B4: Source | C4: Value | D4: =Inputs!C$6 -> 2023/24 | E4: =Inputs!D$6 -> 2024/25 | F4: =Inputs!E$6 -> 2025/26 | G4: =Inputs!F$6 -> 2026/27 | H4: =Inputs!G$6 -> 2027/28 | I4: =Inputs!H$6 -> 2028/29 | J4: =Inputs!I$6 -> 2029/30
A5: Year in regulatory period | B5: EDB data | F5: ='EDB data'!D21 -> 1 | G5: ='EDB data'!E21 -> 2 | H5: ='EDB data'!F21 -> 3 | I5: ='EDB data'!G21 -> 4 | J5: ='EDB data'!H21 -> 5
A6: Tax rate | B6: EDB data | D6: ='EDB data'!B24 -> 0.28 | E6: ='EDB data'!C24 -> 0.28 | F6: ='EDB data'!D24 -> 0.28 | G6: ='EDB data'!E24 -> 0.28 | H6: ='EDB data'!F24 -> 0.28 | I6: ='EDB data'!G24 -> 0.28 | J6: ='EDB data'!H24 -> 0.28
A7: Term credit spread differential allowance | B7: EDB data | D7: =RAB!D100 -> 375.8153725 | E7: =RAB!E100 -> 396.3250793 | F7: =RAB!F100 -> 411.8126889 | G7: =RAB!G100 -> 434.409645 | H7: =RAB!H100 -> 473.659112 | I7: =RAB!I100 -> 510.056956 | J7: =RAB!J100 -> 552.5102594
A8: Value of commissioned assets | B8: EDB data | D8: =TRANSPOSE('EDB data'!B49:B55) -> 53542.8077 | E8: 47330.14159 | F8: 63757.49838 | G8: 98923.98429 | H8: 93105.21328 | I8: 106566.5707 | J8: 75812.50367
A9: Operating expenditure | B9: EDB data | F9: =TRANSPOSE('EDB data'!B42:B46) -> 45192.98348 | G9: 46782.32832 | H9: 48443.68719 | I9: 50200.36864 | J9: 52032.7498
A12: Vanilla WACC (67th percentile) | B12: EDB data | C12: =WACC -> 0.071
A13: TFopex | B13: TIMING | C13: =Timing!C23 -> 1.034794062
A14: TFtax | B14: TIMING | C14: =Timing!C24 -> 1.034794062
A15: TFVCA | B15: TIMING | C15: =Timing!C25 -> 1.034794062
A16: TFrev | B16: TIMING | C16: =Timing!C26 -> 1.028203359
A17: Aggregate opening RAB value | B17: RAB | D17: =RAB!D97 -> 803430.1662 | E17: =RAB!E97 -> 847276.4756 | F17: =RAB!F97 -> 880386.3846 | G17: =RAB!G97 -> 928694.8827 | H17: =RAB!H97 -> 1012603.653 | I17: =RAB!I97 -> 1090416.132 | J17: =RAB!J97 -> 1181174.167
A18: Total revaluation | B18: RAB | D18: =RAB!D98 -> 32289.58133 | E18: =RAB!E98 -> 18621.44238 | F18: =RAB!F98 -> 18470.6199 | G18: =RAB!G98 -> 18557.54387 | H18: =RAB!H98 -> 20236.01303 | I18: =RAB!I98 -> 21792.55535 | J18: =RAB!J98 -> 23608.01176
A19: Total depreciation | B19: RAB | D19: =RAB!D96 -> 32360.71832 | E19: =RAB!E96 -> 32841.67495 | F19: =RAB!F96 -> 33919.62021 | G19: =RAB!G96 -> 33572.75791 | H19: =RAB!H96 -> 35528.74701 | I19: =RAB!I96 -> 37601.09136 | J19: =RAB!J96 -> 39991.86152
A20: Opening deferred tax | B20: TAX | D20: =TAX!D183 -> -49298.29954 | E20: =TAX!E183 -> -52732.49618 | F20: =TAX!F183 -> -56871.70884 | G20: =TAX!G183 -> -61180.72491 | H20: =TAX!H183 -> -66262.64613 | I20: =TAX!I183 -> -72291.23311 | J20: =TAX!J183 -> -79020.98221
A21: Closing deferred tax | B21: TAX | D21: =TAX!D184 -> -52732.49618 | E21: =TAX!E184 -> -56871.70884 | F21: =TAX!F184 -> -61180.72491 | G21: =TAX!G184 -> -66262.64613 | H21: =TAX!H184 -> -72291.23311 | I21: =TAX!I184 -> -79020.98221 | J21: =TAX!J184 -> -86576.38068
A22: Regulatory tax adjustments | B22: TAX | D22: =TAX!D118 -> -4480.795454 | E22: =TAX!E118 -> -4165.178112 | F22: =TAX!F118 -> -4270.760411 | G22: =TAX!G118 -> -5204.949768 | H22: =TAX!H118 -> -6617.395846 | I22: =TAX!I118 -> -7781.116891 | J22: =TAX!J118 -> -9208.610259
A23: Opening RAB value for existing assets for the base year | B23: RAB | D23: =RAB!D101 -> 803430.1662
A25: Calculations
A26: Building blocks are used to calculate building block allowable revenue (BBAR).
A27: Schematically, the high level BBAR calculation is structured as follows: | E27: In formula form the BBAR calculation is as follows:
E30: (regulatory investment value × cost of capital + total value of commissioned assets × (TFVCA - 1)
E31: + term credit spread differential allowance × TF - total revaluation) ÷ (TFrev - corporate tax rate × TF)
E32: + (total depreciation × (1 – corporate tax rate × TF)
E33: + forecast operating expenditure × TF × (1 – corporate tax rate)
E34: + (closing deferred tax – opening deferred tax) × (TF – 1)
E35: + (permanent differences + regulatory tax adjustments - utilised tax losses) × corporate tax rate × TF)
E36: ÷ (TFrev - corporate tax rate × TF).
A49: The calculations below set out how each of the building blocks are calculated and includes other calculations that feed into the building blocks.
A51: 1) Term credit spread differential allowance (TCSD)
A52: The TCSD allowance compensates suppliers for the additional debt premium that can be incurred from issuing debt with an original tenor longer than the five-year debt premium allowance implicit in the WACC.
A53: It is calculated by adjusting the base year allowance by an asset base scaling factor based on the size of the opening RAB in any year compared to the opening RAB at the start of the regulatory period.
A54: It is a component of the return on capital calculation below.
D55: =D$4 -> 2023/24 | E55: =E$4 -> 2024/25 | F55: 2025/26 | G55: 2026/27 | H55: 2027/28 | I55: 2028/29 | J55: 2029/30 | K55: IM ref
A56: Aggregate opening RAB value | B56: Input | D56: =D17 -> 803430.1662 | E56: =E17 -> 847276.4756 | F56: 880386.3846 | G56: 928694.8827 | H56: 1012603.653 | I56: 1090416.132 | J56: 1181174.167
A57: Asset base scaling factor | B57: Calc | D57: =D56/$D$23 -> 1 | E57: =E56/$D$23 -> 1.05457389 | F57: 1.095784577 | G57: 1.155912389 | H57: 1.260350551 | I57: 1.357200885 | J57: 1.470164075 | K57: 4.4.7(2)
A58: Term credit spread differential allowance (base year) | B58: Input | D58: =IF(D7>0,D7,0) -> 375.8153725
A59: Term credit spread differential allowance × scaling factor | B59: Calc | E59: =$D$58*E57 -> 396.3250793 | F59: 411.8126889 | G59: 434.409645 | H59: 473.659112 | I59: 510.056956 | J59: 552.5102594
A61: 2) Regulatory investment value
A62: The regulated investment value (RIV) is used to calculate the return on capital. It is calculated by adding opening RAB and deferred tax .
F63: =F$4 -> 2025/26 | G63: =G$4 -> 2026/27 | H63: =H$4 -> 2027/28 | I63: =I$4 -> 2028/29 | J63: =J$4 -> 2029/30
A64: Total opening RAB value | B64: Input | F64: =F56 -> 880386.3846 | G64: =G56 -> 928694.8827 | H64: =H56 -> 1012603.653 | I64: =I56 -> 1090416.132 | J64: =J56 -> 1181174.167
A65: Deferred tax asset/ (liability) | B65: Input | F65: =F20 -> -56871.70884 | G65: =G20 -> -61180.72491 | H65: =H20 -> -66262.64613 | I65: =I20 -> -72291.23311 | J65: =J20 -> -79020.98221
A66: Regulatory investment value | B66: Total | F66: =F64+F65 -> 823514.6758 | G66: =G64+G65 -> 867514.1578 | H66: =H64+H65 -> 946341.0068 | I66: =I64+I65 -> 1018124.899 | J66: =J64+J65 -> 1102153.185
A68: 3) Return on capital
A69: Return on capital is calculated by adding the return on the opening RIV (RIV x WACC), the return on the total value of commissioned assets for part year, capex x (TFVCA-1)
A70: and the TCSD allowance.
F71: =F$4 -> 2025/26 | G71: =G$4 -> 2026/27 | H71: =H$4 -> 2027/28 | I71: =I$4 -> 2028/29 | J71: =J$4 -> 2029/30
A72: Return on opening RIV | B72: Calc | F72: =F66*$C$12 -> 58469.54198 | G72: =G66*$C$12 -> 61593.5052 | H72: =H66*$C$12 -> 67190.21148 | I72: =I66*$C$12 -> 72286.86784 | J72: =J66*$C$12 -> 78252.87611 | M72: RIV x WACC
A73: Return on commissioned assets | B73: Calc | F73: =F8*($C$15-1) -> 2218.382351 | G73: =G8*($C$15-1) -> 3441.967243 | H73: =H8*($C$15-1) -> 3239.508563 | I73: =I8*($C$15-1) -> 3707.883867 | J73: =J8*($C$15-1) -> 2637.824953 | M73: Capex x WACC adjusted for capex timing
A74: Term credit spread differential allowance | B74: 1 | F74: =F59 -> 411.8126889 | G74: =G59 -> 434.409645 | H74: =H59 -> 473.659112 | I74: =I59 -> 510.056956 | J74: =J59 -> 552.5102594 | M74: TCSD input
A75: Total return on capital | F75: =SUM(F72:F74) -> 61099.73702 | G75: =SUM(G72:G74) -> 65469.88209 | H75: =SUM(H72:H74) -> 70903.37916 | I75: =SUM(I72:I74) -> 76504.80866 | J75: =SUM(J72:J74) -> 81443.21132 | M75: Sum of the three rows above
A77: 4) Tax impact of non-revenue items
A78: Tax impacts of tax deductible expenditure and tax adjustments are calculated to help determine the total revenue requirement.
F79: =Inputs!E$6 -> 2025/26 | G79: =Inputs!F$6 -> 2026/27 | H79: =Inputs!G$6 -> 2027/28 | I79: =Inputs!H$6 -> 2028/29 | J79: =Inputs!I$6 -> 2029/30 | M79: simple ref
A80: Operating expenditure in expenditure date terms | B80: Input | F80: =-F9 -> -45192.98348 | G80: =-G9 -> -46782.32832 | H80: =-H9 -> -48443.68719 | I80: =-I9 -> -50200.36864 | J80: =-J9 -> -52032.7498 | M80: simple ref
A81: Total depreciation | B81: Input | F81: =-F19 -> -33919.62021 | G81: =-G19 -> -33572.75791 | H81: =-H19 -> -35528.74701 | I81: =-I19 -> -37601.09136 | J81: =-J19 -> -39991.86152 | M81: simple ref
A82: Regulatory tax adjustments | B82: Input | F82: =F22 -> -4270.760411 | G82: =G22 -> -5204.949768 | H82: =H22 -> -6617.395846 | I82: =I22 -> -7781.116891 | J82: =J22 -> -9208.610259 | M82: simple ref
A83: Total tax deductible expenditure and tax adjustments | B83: Total | F83: =SUM(F80:F82) -> -83383.36411 | G83: =SUM(G80:G82) -> -85560.036 | H83: =SUM(H80:H82) -> -90589.83005 | I83: =SUM(I80:I82) -> -95582.57689 | J83: =SUM(J80:J82) -> -101233.2216
A84: Tax impact of non-revenue items in year-end terms | B84: Calc | F84: =F83*F6*$C$14 -> -24159.69081 | G84: =G83*G6*$C$14 -> -24790.36481 | H84: =H83*H6*$C$14 -> -26247.7091 | I84: =I83*I6*$C$14 -> -27694.31924 | J84: =J83*J6*$C$14 -> -29331.55024
A86: 5) Allowable revenue before tax
A87: Due to the tax circularity in calculating allowable revenue, allowable revenue for the tax calculation is calculated by adding the return on capital, depreciation and opex building blocks,
A88: together with their respective tax impacts, and then grossing the result up by the tax rate to account for the tax on revenue.
F89: =F$4 -> 2025/26 | G89: =G$4 -> 2026/27 | H89: =H$4 -> 2027/28 | I89: =I$4 -> 2028/29 | J89: =J$4 -> 2029/30
A90: Total return on capital | B90: 3 | F90: =F75 -> 61099.73702 | G90: =G75 -> 65469.88209 | H90: =H75 -> 70903.37916 | I90: =I75 -> 76504.80866 | J90: =J75 -> 81443.21132 | M90: Total from return on capital calculation (3)
A91: Total depreciation | B91: Input | F91: =F19 -> 33919.62021 | G91: =G19 -> 33572.75791 | H91: =H19 -> 35528.74701 | I91: =I19 -> 37601.09136 | J91: =J19 -> 39991.86152 | M91: Total depreciation input
A92: Impact of stating deferred tax in year-end terms | B92: Calc | F92: =(-F21+F20)*(1-$C$14) -> -149.9281722 | G92: =(-G21+G20)*(1-$C$14) -> -176.820682 | H92: =(-H21+H20)*(1-$C$14) -> -209.7590294 | I92: =(-I21+I20)*(1-$C$14) -> -234.1553073 | J92: =(-J21+J20)*(1-$C$14) -> -262.8830028 | M92: (- Closing deferred tax asset + opening deferred tax) × TFtax
A93: Operating expenditure allowance | B93: Calc | F93: =F9*$C$13 -> 46765.43095 | G93: =G9*$C$13 -> 48410.07555 | H93: =H9*$C$13 -> 50129.23985 | I93: =I9*$C$13 -> 51947.04338 | J93: =J9*$C$13 -> 53843.18052 | M93: Operating expenditure × TFopex
A94: Total revaluation | B94: Input | F94: =-F18 -> -18470.6199 | G94: =-G18 -> -18557.54387 | H94: =-H18 -> -20236.01303 | I94: =-I18 -> -21792.55535 | J94: =-J18 -> -23608.01176 | M94: - Revaluation input
A95: Tax impact of non-revenue items | B95: 4 | F95: =F84 -> -24159.69081 | G95: =G84 -> -24790.36481 | H95: =H84 -> -26247.7091 | I95: =I84 -> -27694.31924 | J95: =J84 -> -29331.55024 | M95: Total from tax on non-revenue items calculation (5)
A96: Total allowable revenue requirement after tax | B96: Total | F96: =SUM(F90:F95) -> 99004.5493 | G96: =SUM(G90:G95) -> 103927.9862 | H96: =SUM(H90:H95) -> 109867.8849 | I96: =SUM(I90:I95) -> 116331.9135 | J96: =SUM(J90:J95) -> 122075.8084 | M96: Sum of the six rows above
A97: Allowable revenue before tax in revenue date terms | B97: Calc | F97: =(F96)/($C$16-F6*$C$14) -> 134068.7543 | G97: =(G96)/($C$16-G6*$C$14) -> 140735.9131 | H97: =(H96)/($C$16-H6*$C$14) -> 148779.5315 | I97: =(I96)/($C$16-I6*$C$14) -> 157532.9098 | J97: =(J96)/($C$16-J6*$C$14) -> 165311.1062 | M97: Total above grossed up for tax (/TFtax-tax rate), converted to revenue date terms (/Tfrev)
A98: Allowable revenue before tax in year-end terms | B98: Calc | F98: =F97*$C$16 -> 137849.9436 | G98: =G97*$C$16 -> 144705.1386 | H98: =H97*$C$16 -> 152975.6141 | I98: =I97*$C$16 -> 161975.867 | J98: =J97*$C$16 -> 169973.4347 | M98: Total above converted to year-end terms (xTFrev)
A100: 6) Regulatory tax allowance
A101: The regulatory tax allowance is calculated by calculating the taxable profit/ (loss) and multiplying this by the tax rate. Taxable profit/ (loss) is calculated by adding allowable revenue,
A102: tax-deductible expenditure and tax adjustments.
F103: =F$4 -> 2025/26 | G103: =G$4 -> 2026/27 | H103: =H$4 -> 2027/28 | I103: =I$4 -> 2028/29 | J103: =J$4 -> 2029/30
A104: Allowable revenue before tax in revenue date terms | B104: 5 | F104: =F97 -> 134068.7543 | G104: =G97 -> 140735.9131 | H104: =H97 -> 148779.5315 | I104: =I97 -> 157532.9098 | J104: =J97 -> 165311.1062 | M104: Total from allowable revenue calculation (5)
A105: Operating expenditure in expenditure date terms | B105: Input | F105: =-F9 -> -45192.98348 | G105: =-G9 -> -46782.32832 | H105: =-H9 -> -48443.68719 | I105: =-I9 -> -50200.36864 | J105: =-J9 -> -52032.7498 | M105: - Operating expenditure input
A106: Total depreciation | B106: Input | F106: =-F19 -> -33919.62021 | G106: =-G19 -> -33572.75791 | H106: =-H19 -> -35528.74701 | I106: =-I19 -> -37601.09136 | J106: =-J19 -> -39991.86152 | M106: - Total depreciation input
A107: Regulatory tax adjustments | B107: Input | F107: =F22 -> -4270.760411 | G107: =G22 -> -5204.949768 | H107: =H22 -> -6617.395846 | I107: =I22 -> -7781.116891 | J107: =J22 -> -9208.610259 | M107: Regulatory tax adjustments input
A108: Taxable profit/ (loss) | B108: Total | F108: =SUM(F104:F107) -> 50685.39024 | G108: =SUM(G104:G107) -> 55175.87712 | H108: =SUM(H104:H107) -> 58189.70149 | I108: =SUM(I104:I107) -> 61950.3329 | J108: =SUM(J104:J107) -> 64077.88462 | M108: Sum of the four rows above
A109: Regulatory tax allowance in year-end terms | B109: Calc | F109: =F108*F$6*$C$14 -> 14685.70344 | G109: =G108*G$6*$C$14 -> 15986.7876 | H109: =H108*H$6*$C$14 -> 16860.02012 | I109: =I108*I$6*$C$14 -> 17949.63426 | J109: =J108*J$6*$C$14 -> 18566.07606 | M109: Total above x tax rate , adjusted to year-end terms
A110: Regulatory tax allowance in tax date terms | B110: Calc | F110: =F109/$C$14 -> 14191.90927 | G110: =G109/$C$14 -> 15449.24559 | H110: =H109/$C$14 -> 16293.11642 | I110: =I109/$C$14 -> 17346.09321 | J110: =J109/$C$14 -> 17941.80769 | M110: Total above x tax rate , adjusted to year-end terms
A111: Check to calculations 4 and 5 | F111: =F97*D6*$C$14+F84-F109 -> 0 | G111: =G97*E6*$C$14+G84-G109 -> 0 | H111: =H97*F6*$C$14+H84-H109 -> 0 | I111: =I97*G6*$C$14+I84-I109 -> 0 | J111: =J97*H6*$C$14+J84-J109 -> 0 | M111: Checks the result in row 99 to the tax impacts of revenue in calculation 5 and the tax impacts of non-revenue in calculation 4.
A112: Regulatory tax allowance before considering possibility of tax losses, calculation not referencing revenue | F112: =(F75-F18+F9*($C13-$C16)-F19*($C16-1)+F22*$C16+(F21-F20)*($C14-1))/(($C16/F6)-$C14) -> 14191.90927 | G112: =(G75-G18+G9*($C13-$C16)-G19*($C16-1)+G22*$C16+(G21-G20)*($C14-1))/(($C16/G6)-$C14) -> 15449.24559 | H112: =(H75-H18+H9*($C13-$C16)-H19*($C16-1)+H22*$C16+(H21-H20)*($C14-1))/(($C16/H6)-$C14) -> 16293.11642 | I112: =(I75-I18+I9*($C13-$C16)-I19*($C16-1)+I22*$C16+(I21-I20)*($C14-1))/(($C16/I6)-$C14) -> 17346.09321 | J112: =(J75-J18+J9*($C13-$C16)-J19*($C16-1)+J22*$C16+(J21-J20)*($C14-1))/(($C16/J6)-$C14) -> 17941.80769
A113: Check | F113: =F110-F112 -> 0 | G113: =G110-G112 -> 0 | H113: =H110-H112 -> 0 | I113: =I110-I112 -> 0 | J113: =J110-J112 -> 0
A115: 8) Building block allowable revenue before tax (BBAR before tax)
A116: The building block allowable revenue is re-calculated below as per the diagram at the top of the page, by adding together the building blocks calculated individually above.
A117: Because the tax allowance is calculated separately in calculation 6, the circularity due to the tax impact of revenue is avoided. All amounts are stated in year-end terms.
F118: =Inputs!E$6 -> 2025/26 | G118: =Inputs!F$6 -> 2026/27 | H118: =Inputs!G$6 -> 2027/28 | I118: =Inputs!H$6 -> 2028/29 | J118: =Inputs!I$6 -> 2029/30
A119: Total return on capital | B119: 3 | F119: =F75 -> 61099.73702 | G119: =G75 -> 65469.88209 | H119: =H75 -> 70903.37916 | I119: =I75 -> 76504.80866 | J119: =J75 -> 81443.21132 | M119: Linked to calculation 3
A120: Total depreciation | B120: Input | F120: =F19 -> 33919.62021 | G120: =G19 -> 33572.75791 | H120: =H19 -> 35528.74701 | I120: =I19 -> 37601.09136 | J120: =J19 -> 39991.86152 | M120: Total depreciation input
A121: Regulatory tax allowance | B121: 6 | F121: =F109 -> 14685.70344 | G121: =G109 -> 15986.7876 | H121: =H109 -> 16860.02012 | I121: =I109 -> 17949.63426 | J121: =J109 -> 18566.07606 | M121: Linked to calculation 6
A122: Impact of stating deferred tax in year-end terms | B122: Calc | F122: =(-F21+F20)*(1-$C$14) -> -149.9281722 | G122: =(-G21+G20)*(1-$C$14) -> -176.820682 | H122: =(-H21+H20)*(1-$C$14) -> -209.7590294 | I122: =(-I21+I20)*(1-$C$14) -> -234.1553073 | J122: =(-J21+J20)*(1-$C$14) -> -262.8830028 | M122: (- Closing deferred tax asset + opening deferred tax) × TFtax
A123: Operating expenditure allowance in year-end terms | B123: Calc | F123: =F9*$C$13 -> 46765.43095 | G123: =G9*$C$13 -> 48410.07555 | H123: =H9*$C$13 -> 50129.23985 | I123: =I9*$C$13 -> 51947.04338 | J123: =J9*$C$13 -> 53843.18052 | M123: Operating expenditure × TFopex
A124: Total revaluation | B124: Calc | F124: =-F18 -> -18470.6199 | G124: =-G18 -> -18557.54387 | H124: =-H18 -> -20236.01303 | I124: =-I18 -> -21792.55535 | J124: =-J18 -> -23608.01176 | M124: - Total revaluation input
A125: Building block allowable revenue before tax in year-end terms | B125: Total | F125: =SUM(F119:F124) -> 137849.9436 | G125: =SUM(G119:G124) -> 144705.1386 | H125: =SUM(H119:H124) -> 152975.6141 | I125: =SUM(I119:I124) -> 161975.867 | J125: =SUM(J119:J124) -> 169973.4347 | M125: Sum of the six rows above
A126: Building block allowable revenue before tax in revenue date terms | B126: Calc | F126: =F125/$C$16 -> 134068.7543 | G126: =G125/$C$16 -> 140735.9131 | H126: =H125/$C$16 -> 148779.5315 | I126: =I125/$C$16 -> 157532.9098 | J126: =J125/$C$16 -> 165311.1062 | M126: Total above converted to revenue date terms (/TFrev)
A129: Present value of the building block allowable revenue before tax
F130: =Inputs!E$6 -> 2025/26 | G130: =Inputs!F$6 -> 2026/27 | H130: =Inputs!G$6 -> 2027/28 | I130: =Inputs!H$6 -> 2028/29 | J130: =Inputs!I$6 -> 2029/30
A131: Number of years to discount the year-end values to start of the present value period | F131: 1 | G131: 2 | H131: 3 | I131: 4 | J131: 5
A132: BBAR before tax in year-end terms, i.e. Rev * TFrev | F132: =F125 -> 137849.9436 | G132: =G125 -> 144705.1386 | H132: =H125 -> 152975.6141 | I132: =I125 -> 161975.867 | J132: =J125 -> 169973.4347
A133: ="PV at 1 Apr " & LEFT(F130,4) & " of BBAR before tax for each year" -> PV at 1 Apr 2025 of BBAR before tax for each year | F133: =F132/(1+$C$12)^F131 -> 128711.4319 | G133: =G132/(1+$C$12)^G131 -> 126155.158 | H133: =H132/(1+$C$12)^H131 -> 124524.2093 | I133: =I132/(1+$C$12)^I131 -> 123109.7445 | J133: =J132/(1+$C$12)^J131 -> 120623.9917
A134: ="PV at 1 Apr " & LEFT(F130,4) & " of BBAR before tax over the regulatory period" -> PV at 1 Apr 2025 of BBAR before tax over the regulatory period | C134: =SUM(F133:J133) -> 623124.5354
A136: Outputs
C137: Value | D137: =Inputs!C$6 -> 2023/24 | E137: =Inputs!D$6 -> 2024/25 | F137: =Inputs!E$6 -> 2025/26 | G137: =Inputs!F$6 -> 2026/27 | H137: =Inputs!G$6 -> 2027/28 | I137: =Inputs!H$6 -> 2028/29 | J137: =Inputs!I$6 -> 2029/30
A138: Opening investment value | D138: =D66 -> 0 | E138: 0 | F138: 823514.6758 | G138: 867514.1578 | H138: 946341.0068 | I138: 1018124.899 | J138: 1102153.185 | M138: simple ref
A139: ="PV at 1 Apr " & LEFT(F137,4) & " of BBAR before tax over the regulatory period" -> PV at 1 Apr 2025 of BBAR before tax over the regulatory period | C139: =C134 -> 623124.5354 | M139: simple ref
A140: Term credit spread differential allowance | F140: =F59 -> 411.8126889 | G140: =G59 -> 434.409645 | H140: =H59 -> 473.659112 | I140: =I59 -> 510.056956 | J140: =J59 -> 552.5102594 | M140: simple ref
A141: BBAR before tax in revenue date terms | F141: =F126 -> 134068.7543 | G141: =G126 -> 140735.9131 | H141: =H126 -> 148779.5315 | I141: =I126 -> 157532.9098 | J141: =J126 -> 165311.1062 | M141: simple ref

Sheet MAR
A1: Maximum allowable revenue | H1: =EDB_Name -> Wellington Electricity
A2: This sheet derives the starting prices. It calculates the set of 5 MAR values such that the present value of this MAR time series is equal to the present value of the 5 BBAR values calculated in the BBAR sheet.
A3: Inputs
B4: Source | C4: Value | D4: =Inputs!E$6 -> 2025/26 | E4: =Inputs!F$6 -> 2026/27 | F4: =Inputs!G$6 -> 2027/28 | G4: =Inputs!H$6 -> 2028/29 | H4: =Inputs!I$6 -> 2029/30
A5: Year in regulatory period | B5: EDB data | D5: ='EDB data'!D21 -> 1 | E5: ='EDB data'!E21 -> 2 | F5: ='EDB data'!F21 -> 3 | G5: ='EDB data'!G21 -> 4 | H5: ='EDB data'!H21 -> 5
A6: Industry-wide X factor | B6: EDB data | C6: ='EDB data'!B13 -> 0
A7: ='EDB data'!A39 -> Additional allowance (PV at 1-Apr-25) | B7: EDB data | C7: ='EDB data'!B39 -> 0
A8: Alternative X factor | B8: EDB data | C8: ='EDB data'!B40 -> -0.096
A9: Forecast changes in the CPI element of the price path | B9: EDB data | D9: ='EDB data'!D23 -> 0.0227449287 | E9: ='EDB data'!E23 -> 0.02 | F9: ='EDB data'!F23 -> 0.02 | G9: ='EDB data'!G23 -> 0.02 | H9: ='EDB data'!H23 -> 0.02
A10: Vanilla WACC (67th percentile) | B10: EDB data | C10: =WACC -> 0.071
A11: TFrev | B11: TIMING | C11: =Timing!C26 -> 1.028203359
A12: ="PV at 1 Apr " & LEFT(D4,4) & " of BBAR before tax over the regulatory period" -> PV at 1 Apr 2025 of BBAR before tax over the regulatory period | B12: BBAR | C12: =BBAR!C139 -> 623124.5354
A14: Calculations
A15: ="CPI minus X revenues with applicable X factor (" & IF(ISNUMBER(C8),"alternate X factor of " & TEXT(C8,"#0.0%"), "industry-wide X factor of " & TEXT(C6,"#0.0%"))&")" -> CPI minus X revenues with applicable X factor (alternate X factor of -9.6%)
C16: PV at 1-Apr-25 | D16: =Inputs!E$6 -> 2025/26 | E16: =Inputs!F$6 -> 2026/27 | F16: =Inputs!G$6 -> 2027/28 | G16: =Inputs!H$6 -> 2028/29 | H16: =Inputs!I$6 -> 2029/30
A17: Which years are pre-reopener, reopener and post-reopener? | D17: =Reopener!D65 -> pre- reopener | E17: =Reopener!E65 -> reopener | F17: =Reopener!F65 -> post- reopener | G17: =Reopener!G65 -> post- reopener | H17: =Reopener!H65 -> post- reopener
A18: =C16 & " of BBAR before tax over the regulatory period" -> PV at 1-Apr-25 of BBAR before tax over the regulatory period | C18: =C12 -> 623124.5354
A19: =A7 -> Additional allowance (PV at 1-Apr-25) | C19: =C7 -> 0
A20: =C16 & " of maximum allowable revenue before tax" -> PV at 1-Apr-25 of maximum allowable revenue before tax | C20: =C18+C19 -> 623124.5354
A21: Indexed maximum allowable revenue before tax, reopener and post-reopener years only | D21: =IF(D17="reopener",1,IF(D17="post- reopener",C21*(1+D9)*(1-$C$8),IF(D17="pre- reopener",0,"error"))) -> 0 | E21: =IF(E17="reopener",1,IF(E17="post- reopener",D21*(1+E9)*(1-$C$8),IF(E17="pre- reopener",0,"error"))) -> 1 | F21: =IF(F17="reopener",1,IF(F17="post- reopener",E21*(1+F9)*(1-$C$8),IF(F17="pre- reopener",0,"error"))) -> 1.11792 | G21: =IF(G17="reopener",1,IF(G17="post- reopener",F21*(1+G9)*(1-$C$8),IF(G17="pre- reopener",0,"error"))) -> 1.249745126 | H21: =IF(H17="reopener",1,IF(H17="post- reopener",G21*(1+H9)*(1-$C$8),IF(H17="pre- reopener",0,"error"))) -> 1.397115072 | J21: The same formula is applied for each
A22: Present value of indexed maximum allowable revenue for each year | D22: =D21/(1+$C$10)^D$5 -> 0 | E22: =E21/(1+$C$10)^E$5 -> 0.8718084184 | F22: =F21/(1+$C$10)^F$5 -> 0.91000193 | G22: =G21/(1+$C$10)^G$5 -> 0.9498686812 | H22: =H21/(1+$C$10)^H$5 -> 0.9914819758 | J22: ="DPP4 year in this row " & ROW(A21) & ". The formula" -> DPP4 year in this row 21. The formula
A23: Present value of indexed revenue | C23: =SUM(D22:H22) -> 3.723161005 | J23: ="tests whether the Row "&ROW(A17)&" entry in the" -> tests whether the Row 17 entry in the
A24: Maximum allowable revenue before tax in revenue-date terms, pre-reopener years only | D24: =Reopener!D70 -> 118695.8121 | E24: =Reopener!E70 -> 0 | F24: =Reopener!F70 -> 0 | G24: =Reopener!G70 -> 0 | H24: =Reopener!H70 -> 0 | J24: same column is pre-reopener, reopener
A25: PV of MAR before tax for the pre-reopener years only | D25: =D24*$C$11/(1+$C$10)^D5 -> 113952.7849 | E25: =E24*$C$11/(1+$C$10)^E5 -> 0 | F25: =F24*$C$11/(1+$C$10)^F5 -> 0 | G25: =G24*$C$11/(1+$C$10)^G5 -> 0 | H25: =H24*$C$11/(1+$C$10)^H5 -> 0 | J25: or post- reopener. If "pre- reopener",
A26: Total PV of MAR before tax, the pre-reopener years only | C26: =SUM(D25:H25) -> 113952.7849 | J26: a nil entry applies because the row
A27: Maximum allowable revenue before tax in the reopener year in year-end terms | C27: =(C20-C26)/C23 -> 136757.9188 | D27: =IF(D17="reopener",$C27,0) -> 0 | E27: =IF(E17="reopener",$C27,0) -> 136757.9188 | F27: =IF(F17="reopener",$C27,0) -> 0 | G27: =IF(G17="reopener",$C27,0) -> 0 | H27: =IF(H17="reopener",$C27,0) -> 0 | J27: only applies values for the reopener
A28: Maximum allowable revenue before tax in year-end terms, reopener and post-reopener years only | D28: =$C27*D21 -> 0 | E28: =$C27*E21 -> 136757.9188 | F28: =$C27*F21 -> 152884.4126 | G28: =$C27*G21 -> 170912.5425 | H28: =$C27*H21 -> 191066.5495 | J28: year and post- reopener years.
A29: Maximum allowable revenue before tax in revenue date terms, reopener and post-reopener years only | D29: =D28/$C$11 -> 0 | E29: =E28/$C$11 -> 133006.6836 | F29: =F28/$C$11 -> 148690.8317 | G29: =G28/$C$11 -> 166224.4545 | H29: =H28/$C$11 -> 185825.6422 | J29: If "reopener", then a 1 applies.
A30: Maximum allowable revenue before tax in revenue date terms, all years | D30: =D24+D29 -> 118695.8121 | E30: =E24+E29 -> 133006.6836 | F30: =F24+F29 -> 148690.8317 | G30: =G24+G29 -> 166224.4545 | H30: =H24+H29 -> 185825.6422 | J30: If "post- reopener", then the value of
A31: PV at 1-Apr-25 of maximum allowable revenue before tax in each year | D31: =D30*$C$11/(1+$C$10)^D$5 -> 113952.7849 | E31: =E30*$C$11/(1+$C$10)^E$5 -> 119226.7049 | F31: =F30*$C$11/(1+$C$10)^F$5 -> 124449.9701 | G31: =G30*$C$11/(1+$C$10)^G$5 -> 129902.064 | H31: =H30*$C$11/(1+$C$10)^H$5 -> 135593.0115 | J31: the previous entry in the row, increased
A32: PV at 1-Apr-25 of maximum allowable revenue before tax | C32: =SUM(D31:H31) -> 623124.5354 | J32: by forecast ∆CPI-X.
A33: Error check for PV equivalence (should = 0) | C33: =C20-C32 -> 0
A34: ="The calculation block above uses the applicable 20" & MID(D16,3,2) & "/" & MID(D16,3,2)+5 & " X factor to calculate the maximum allowable revenues for the regulatory period." -> The calculation block above uses the applicable 2025/30 X factor to calculate the maximum allowable revenues for the regulatory period.
A36: Outputs
C37: PV at 1-Apr-25 | D37: =Inputs!E$6 -> 2025/26 | E37: =Inputs!F$6 -> 2026/27 | F37: =Inputs!G$6 -> 2027/28 | G37: =Inputs!H$6 -> 2028/29 | H37: =Inputs!I$6 -> 2029/30
A38: Maximum allowable revenue before tax in revenue-date terms for applicable X factor | D38: =D30 -> 118695.8121 | E38: =E30 -> 133006.6836 | F38: =F30 -> 148690.8317 | G38: =G30 -> 166224.4545 | H38: =H30 -> 185825.6422
A39: =C37 & " of MAR before tax over the regulatory period (Applicable X)" -> PV at 1-Apr-25 of MAR before tax over the regulatory period (Applicable X) | C39: =C20 -> 623124.5354

Sheet IRR
A1: Internal rate of return | S1: =EDB_Name -> Wellington Electricity
A2: This sheet calculates the internal rate of return for the selected EDB. It should be equal to the 65th percentile of the vanilla WACC.
A3: Inputs
B4: Source | C4: Value | D4: ='EDB data'!D19 -> 2025/26 | E4: ='EDB data'!E19 -> 2026/27 | F4: ='EDB data'!F19 -> 2027/28 | G4: ='EDB data'!G19 -> 2028/29 | H4: ='EDB data'!H19 -> 2029/30
A5: Vanilla WACC (67th percentile) | B5: EDB Data | C5: =WACC -> 0.071
A6: Aggregate opening RAB value | B6: RAB | D6: =RAB!F97 -> 880386.3846 | E6: =RAB!G97 -> 928694.8827 | F6: =RAB!H97 -> 1012603.653 | G6: =RAB!I97 -> 1090416.132 | H6: =RAB!J97 -> 1181174.167
A7: Opening deferred tax | B7: TAX | D7: =TAX!F183 -> -56871.70884 | E7: =TAX!G183 -> -61180.72491 | F7: =TAX!H183 -> -66262.64613 | G7: =TAX!I183 -> -72291.23311 | H7: =TAX!J183 -> -79020.98221
A8: Maximum allowable revenue before tax in revenue-date terms | B8: MAR | D8: =MAR!D38 -> 118695.8121 | E8: =MAR!E38 -> 133006.6836 | F8: =MAR!F38 -> 148690.8317 | G8: =MAR!G38 -> 166224.4545 | H8: =MAR!H38 -> 185825.6422
A9: Operating expenditure | B9: EDB data | D9: ='EDB data'!B42 -> 45192.98348 | E9: ='EDB data'!B43 -> 46782.32832 | F9: ='EDB data'!B44 -> 48443.68719 | G9: ='EDB data'!B45 -> 50200.36864 | H9: ='EDB data'!B46 -> 52032.7498
A10: Depreciation | B10: RAB | D10: =RAB!F96 -> 33919.62021 | E10: =RAB!G96 -> 33572.75791 | F10: =RAB!H96 -> 35528.74701 | G10: =RAB!I96 -> 37601.09136 | H10: =RAB!J96 -> 39991.86152
A11: Term credit spread differential allowance | B11: RAB | D11: =RAB!F100 -> 411.8126889 | E11: =RAB!G100 -> 434.409645 | F11: =RAB!H100 -> 473.659112 | G11: =RAB!I100 -> 510.056956 | H11: =RAB!J100 -> 552.5102594
A12: Regulatory tax adjustments | B12: TAX | D12: =TAX!F185 -> -4270.760411 | E12: =TAX!G185 -> -5204.949768 | F12: =TAX!H185 -> -6617.395846 | G12: =TAX!I185 -> -7781.116891 | H12: =TAX!J185 -> -9208.610259
A13: Corporate tax rate | B13: EDB data | D13: ='EDB data'!D24 -> 0.28 | E13: ='EDB data'!E24 -> 0.28 | F13: ='EDB data'!F24 -> 0.28 | G13: ='EDB data'!G24 -> 0.28 | H13: ='EDB data'!H24 -> 0.28
A14: Assets commissioned | B14: EDB data | D14: ='EDB data'!B51 -> 63757.49838 | E14: ='EDB data'!B52 -> 98923.98429 | F14: ='EDB data'!B53 -> 93105.21328 | G14: ='EDB data'!B54 -> 106566.5707 | H14: ='EDB data'!B55 -> 75812.50367
A15: Assets disposed | B15: EDB data | D15: ='EDB data'!B60 -> 0 | E15: ='EDB data'!B61 -> 0 | F15: ='EDB data'!B62 -> 0 | G15: ='EDB data'!B63 -> 0 | H15: ='EDB data'!B64 -> 0
A16: Closing deferred tax | B16: TAX | D16: =TAX!F184 -> -61180.72491 | E16: =TAX!G184 -> -66262.64613 | F16: =TAX!H184 -> -72291.23311 | G16: =TAX!I184 -> -79020.98221 | H16: =TAX!J184 -> -86576.38068
A17: Closing RAB value | B17: RAB | H17: =RAB!J99 -> 1240602.821
A18: ='EDB data'!A39 -> Additional allowance (PV at 1-Apr-25) | B18: EDB data | C18: ='EDB data'!B39 -> 0
A19: Tax payable for the deferred tax approach | D19: =TAX!F192 -> 5578.469366 | E19: =TAX!G192 -> 8203.140094 | F19: =TAX!H192 -> 10239.69347 | G19: =TAX!I192 -> 13049.97665 | H19: =TAX!J192 -> 16130.47931
A20: Calculations
A21: Return on Investment
D22: =G22-365 -> 2025-03-31 | E22: =G22-E24 -> 2025-09-30 | F22: =G22-F24 -> 2025-11-03 | G22: =DATE(LEFT(E4,4),3,31) -> 2026-03-31 | H22: =J22-H24 -> 2026-09-30 | I22: =J22-I24 -> 2026-11-03 | J22: =G22+365 -> 2027-03-31 | K22: =M22-K24 -> 2027-09-30 | L22: =M22-L24 -> 2027-11-03 | M22: =J22+365 -> 2028-03-30 | N22: =P22-N24 -> 2028-09-29 | O22: =P22-O24 -> 2028-11-02 | P22: =M22+365 -> 2029-03-30 | Q22: =S22-Q24 -> 2029-09-29 | R22: =S22-R24 -> 2029-11-02 | S22: =P22+365 -> 2030-03-30
A23: Year end | D23: =YEAR(D22)+(MONTH(D22)>3) -> 2025 | E23: 2026 | F23: 2026 | G23: 2026 | H23: 2027 | I23: 2027 | J23: 2027 | K23: 2028 | L23: 2028 | M23: 2028 | N23: 2029 | O23: 2029 | P23: 2029 | Q23: 2030 | R23: 2030 | S23: 2030
A24: Days to end of (365 day) year | D24: 0 | E24: 182 | F24: 148 | G24: 0 | H24: 182 | I24: 148 | J24: 0 | K24: 182 | L24: 148 | M24: 0 | N24: 182 | O24: 148 | P24: 0 | Q24: 182 | R24: 148 | S24: 0
A25: Days from start of (365 day) year | D25: =365-D24 -> 365 | E25: =365-E24 -> 183 | F25: 217 | G25: 365 | H25: 183 | I25: 217 | J25: 365 | K25: 183 | L25: 217 | M25: 365 | N25: 183 | O25: 217 | P25: 365 | Q25: 183 | R25: 217 | S25: 365
A26: Days from start of regulatory period (365 day year) | D26: =D25+365*(D23-$D$23-1) -> 0 | E26: 183 | F26: 217 | G26: 365 | H26: 548 | I26: 582 | J26: 730 | K26: 913 | L26: 947 | M26: 1095 | N26: 1278 | O26: 1312 | P26: 1460 | Q26: 1643 | R26: 1677 | S26: 1825
A27: Discount factor | D27: =(1+$C$5)^-(D26/365) -> 1 | E27: =(1+$C$5)^-(E26/365) -> 0.9661942689 | F27: 0.9600404846 | G27: 0.9337068161 | H27: 0.9021421745 | I27: 0.8963963441 | J27: 0.8718084184 | K27: 0.8423362974 | L27: 0.8369713764 | M27: 0.8140134625 | N27: 0.7864951423 | O27: 0.781485879 | P27: 0.7600499183 | Q27: 0.7343558752 | R27: 0.7296786919 | S27: 0.7096637893
A28: Check of discount factors
A29: Derived timing factors to end of year value | E29: =E27/G27 -> 1.034794062 | F29: =F27/G27 -> 1.028203359 | G29: =G27/G27 -> 1 | H29: =H27/J27 -> 1.034794062 | I29: =I27/J27 -> 1.028203359 | J29: =J27/J27 -> 1 | K29: =K27/M27 -> 1.034794062 | L29: =L27/M27 -> 1.028203359 | M29: =M27/M27 -> 1 | N29: =N27/P27 -> 1.034794062 | O29: =O27/P27 -> 1.028203359 | P29: =P27/P27 -> 1 | Q29: =Q27/S27 -> 1.034794062 | R29: =R27/S27 -> 1.028203359 | S29: =S27/S27 -> 1
A30: Agrees with TF (TRUE/FALSE) | E30: =ROUND(Timing!$C$19-E29,15)=0 -> TRUE | F30: =ROUND(Timing!$C$20-F29,15)=0 -> TRUE | G30: =G29=1 -> TRUE | H30: =ROUND(Timing!$C$19-H29,15)=0 -> TRUE | I30: =ROUND(Timing!$C$20-I29,15)=0 -> TRUE | J30: =J29=1 -> TRUE | K30: =ROUND(Timing!$C$19-K29,15)=0 -> TRUE | L30: =ROUND(Timing!$C$20-L29,15)=0 -> TRUE | M30: =M29=1 -> TRUE | N30: =ROUND(Timing!$C$19-N29,15)=0 -> TRUE | O30: =ROUND(Timing!$C$20-O29,15)=0 -> TRUE | P30: =P29=1 -> TRUE | Q30: =ROUND(Timing!$C$19-Q29,15)=0 -> TRUE | R30: =ROUND(Timing!$C$20-R29,15)=0 -> TRUE | S30: =S29=1 -> TRUE
A31: Cash flows by date with residual value calculation | C31: ="PV at " & TEXT(D22,"dd.mm.yy") -> PV at 31.03.25
A32: Revenue | C32: =SUMPRODUCT($D32:$S32,$D$27:$S$27) -> 623124.5354 | F32: =D8 -> 118695.8121 | I32: =E8 -> 133006.6836 | L32: =F8 -> 148690.8317 | O32: =G8 -> 166224.4545 | R32: =H8 -> 185825.6422
A33: less operating expenditure | C33: =SUMPRODUCT($D33:$S33,$D$27:$S$27) -> -204368.2907 | E33: =-D9 -> -45192.98348 | H33: =-E9 -> -46782.32832 | K33: =-F9 -> -48443.68719 | N33: =-G9 -> -50200.36864 | Q33: =-H9 -> -52032.7498
A34: less Commissioned assets | C34: -368758.9761 | E34: =-D14 -> -63757.49838 | H34: =-E14 -> -98923.98429 | K34: =-F14 -> -93105.21328 | N34: =-G14 -> -106566.5707 | Q34: =-H14 -> -75812.50367
A35: less Term credit spread differential allowance | C35: -1928.564466 | G35: =-D11 -> -411.8126889 | J35: =-E11 -> -434.409645 | M35: =-F11 -> -473.659112 | P35: =-G11 -> -510.056956 | S35: =-H11 -> -552.5102594
A36: add Disposed assets | C36: =SUMPRODUCT($D36:$S36,$D$27:$S$27) -> 0 | G36: =D15 -> 0 | J36: =E15 -> 0 | M36: =F15 -> 0 | P36: =G15 -> 0 | S36: =H15 -> 0
A37: less Tax payable | C37: -43524.80475 | E37: =-D19 -> -5578.469366 | H37: =-E19 -> -8203.140094 | K37: =-F19 -> -10239.69347 | N37: =-G19 -> -13049.97665 | Q37: =-H19 -> -16130.47931
A38: less expenditure associated with additional allowance | C38: 0 | D38: =-C18 -> 0
A39: Total cash flows | C39: 4543.899359 | D39: =SUM(D32:D38) -> 0 | E39: -114528.9512 | F39: 118695.8121 | G39: -411.8126889 | H39: -153909.4527 | I39: 133006.6836 | J39: -434.409645 | K39: -151788.5939 | L39: 148690.8317 | M39: -473.659112 | N39: -169816.916 | O39: 166224.4545 | P39: -510.056956 | Q39: -143975.7328 | R39: 185825.6422 | S39: -552.5102594
A40: less Opening RIV | C40: -823514.6758 | D40: =-D6-D7 -> -823514.6758
A41: add Closing RIV | C41: 818970.7764 | S41: =H17+H16 -> 1154026.44
A42: Residual value (PV should be 0) | C42: 0 | D42: =SUM(D39:D41) -> -823514.6758 | E42: =SUM(E39:E41) -> -114528.9512 | F42: 118695.8121 | G42: -411.8126889 | H42: -153909.4527 | I42: 133006.6836 | J42: -434.409645 | K42: -151788.5939 | L42: 148690.8317 | M42: -473.659112 | N42: -169816.916 | O42: 166224.4545 | P42: -510.056956 | Q42: -143975.7328 | R42: 185825.6422 | S42: 1153473.93
A43: Outputs
C44: Value
A45: XIRR residual value (should be WACC) | C45: =XIRR(D42:S42,D22:S22) -> 0.07100000083
A46: XIRR less WACC (should = 0) | C46: =C45-C5 -> 8.344650526e-10
A47: XNPV of cash flows | C47: =XNPV($C$5,D42:S42,D22:S22) -> 0
